{"text_format":"1","workbook":"xlsx","n_sheets":15,"sheets":["ניהול","א. פתיח","ב. תוכן עניינים","ג. שאלון למילוי מגיש הבקשה","ד. ריפוי בעיסוק","ה. קלינאות תקשורת","ו. סנוזלן","ז. מתקני חצר ","ח. פיזיותרפיה","ט. ציוד טיפולי-שיקומי","י. מטבח מבשל","יא. ציוד צוות","יב. ציוד נוסף","יג. סיכום","סיכום מפורט (לשימוש משרדי)"],"not_rendered":{"charts":0,"images":1,"macros":1,"external_links":0,"defined_names":13,"comments":0,"pivot_tables":0},"unopened":[],"bounds":{"document_bytes":16777216,"sheet_cells":100000,"rows_first":2000,"rows_last":500,"rows_between":2000,"halvings":0,"cell_chars":16384,"cell_head_chars":4096},"cells_cut":0,"cells_raw":0,"read":"whole","date_system":"1900"}

{"sheet":"ניהול","index":0,"n_rows":17,"n_cols":4,"rows_kept":17,"cut":false,"hidden":true,"merged":[]}
["סוג המסגרת",null,"פעולות נעילה/ פתיחה"]
["נא לבחור מתוך הרשימה",null,"כלים","הסבר"]
["מרכז רש\"ת/מע\"ש 21+",1,null,"הכפתור נועל את הנתונים הנבחרים "]
["מפעל רב נכותי 21+",null,null,"הקובץ  נשלח עם נעילת נתוני התקן ונוסחאות"]
["מרכז יום (טיפולי/סיעודי) 21+",2,null,"הכפתור פותח את כל הנתונים"]
["יח' טיפולית במרכז רש\"ת/מע\"ש 21+",null,null,"יש להפעיל אותו לאחר  אישור בקשת הגוף"]
["יח' מזדקנים במרכז רש\"ת",null,null,"לצורך נעילת שלב אישור בקשת הגוף"]
["מרכז יום לגמלאים",3,null,"יש להפעיל את הכפתור אחרי פעולה מס' 2"]
[null,null,null,"ואחרי זה כפתור מס' 1 "]
[null,4,null,"הכפתור נדרש במקרים מיוחדים"]
[null,null,null,"במידה ויש לעשות תיקונים אחרי שלב האישור"]
[null,null,null,"או לצרכים טכניים"]
[null,null,null,"להפעלתו יש לעשות פעולה מס' 2"]
[null,null,null,"ואחרי תיקון נתוני האישור לבצע פעולות  3 ו- 1"]
[null,5,null,"סינון ציוד מוזמן בסעיף \"סיכום מפורט\" אינו מוגן"]
[null,null,null,"מפני שהסינון לא עובד במצב נעול, לכן יש להיזהר "]
[null,null,null,"מכול פעולה מעבר מהפעלת הסינון באמצאות הכפתורים"]

{"sheet":"א. פתיח","index":1,"n_rows":40,"n_cols":3,"rows_kept":40,"cut":false,"hidden":false,"merged":[[26,1,26,10],[27,1,27,10],[28,1,28,7],[22,1,22,10],[23,1,23,10],[24,1,24,10],[25,1,25,10]]}
[]
[]
[]
[]
[]
[]
[]
[null,"תקן ציוד למרכזי יום טיפוליים סיעודיים ו/או תעסוקה"]
[null," ציוד פרא רפואי, חדר סנוזלן, ציוד למטבח מבשל וציוד לצוות. "]
[]
[null,"רקע כללי"]
[null,"הסיוע ניתן לשיפוץ או ציוד. תקן זה עוסק בציוד. "]
[null,"מענק מעלה","עד 60,000 ₪ אחת ל 3 שנים מתאריך תשלום אחרון."]
[null,"מענק צמרת","עד 500,000 ₪ ועד 50%  מהעלות הכוללת, הנמוך מביניהם, אחת ל 5 שנים מתאריך תשלום אחרון."]
[null,"יש להיכנס לאתר קרן שלם, פיתוח פיזי מענקים, ולפעול בהתאם להנחיות המתעדכנות באתר."]
[null,"מטרת תקן ציוד"]
[null," לסייע לרשויות או גופים המפעילים מסגרות, לבנות את רשימת הציוד בהתאם להיקף ולסוג פעילותם. "]
[null,"התקן מהווה רשימת ציוד מומלצת אשר ניתן לבחור מתוכה את פריטי הציוד הדרושים. "]
[null,"ניתן להשתמש בתקן בצורה מודולרית בהתאם למספר המשתתפים, גודל המקום והתכנים המופעלים בו. "]
[null,"לא נדרש להציג שתי הצעות מחיר, למעט בגיליון ציוד נוסף= ציוד שאינו נמצא בתקן."]
[]
[null,"הבהרות"]
[]
[null,"הסיוע בציוד למרכזי יום סיעודיים טיפוליים ותעסוקה, יינתן על פי מספר משתתפים. "]
[null,"לתשומת ליבכם, הכמויות של חלק מהציוד נקבעות לפי מספר האנשים במסגרת (כמו לדוגמא: כמות הכיסאות והשולחנות),"]
[null,"ואילו הכמויות של חלק אחר מהציוד הינן קבועות ואינן תלויות במספר האנשים (כמו לדוגמא: ציוד מטבח או מתקני חצר)."]
[null,"במידה וקיים צורך בציוד אשר אינו מופיע בתקן ניתן לבקש בגיליון ציוד נוסף. "]
[null,"הסכומים המופיעים בטבלאות כוללים מע\"מ בשיעור 17%. "]
[null,"גובה הסיוע כפוף להחלטות ומדיניות הנהלת הקרן המשתנות/מתעדכנות באתר הקרן."]
[]
[null,"הנחיות למילוי הקובץ:"]
[null,"שלב הגשת הבקשה:"]
[null,"עליכם למלא גיליון ג' טרם מילוי הגיליונות האחרים."]
[null,"גיליונות ד' עד י\"ב עליכם למלא רק עמודות הצבועות בירוק."]
[null,"אין לגעת בתאים האחרים- תאים אלו \"נעולים\"."]
[]
[null,"שלב הדיווח על ההוצאות:"]
[null,"לאחר אישור הבקשה יוחזר הגיליון עם הפריטים המאושרים. "]
[null,"גיליונות ד' עד י\"ב, עליכם למלא רק עמודות הצבועות בכתום. "]
[null,"אין לגעת בתאים האחרים- תאים אלו \"נעולים\"."]

{"sheet":"ב. תוכן עניינים","index":2,"n_rows":27,"n_cols":3,"rows_kept":27,"cut":false,"hidden":false,"merged":[]}
[]
[]
[]
[]
[]
[]
[]
[null,"תקן ציוד למרכזי יום טיפוליים סיעודיים ו/או תעסוקה"]
[null," ציוד פרא רפואי, חדר סנוזלן, ציוד למטבח מבשל וציוד לצוות. "]
[]
[null,"תוכן עניינים"]
[]
[null,"לשונית בקובץ","תוכן הלשונית "]
[null,"א","פתיח"]
[null,"ב","תוכן עניינים"]
[null,"ג","שאלון מגיש הבקשה "]
[null,"ד","ריפוי בעיסוק"]
[null,"ה","קלינאות תקשורת"]
[null,"ו","חדר סנוזלן"]
[null,"ז","מתקני חצר"]
[null,"ח","פיזיותרפיה"]
[null,"ט","ציוד טיפולי שיקומי"]
[null,"י","ציוד מטבח מבשל"]
[null,"יא","ציוד לצוות"]
[null,"יב","ציוד נוסף"]
[null,"יג","סיכום "]
[null,"יד","סיכום מפורט (לשימוש משרדי)"]

{"sheet":"ג. שאלון למילוי מגיש הבקשה","index":3,"n_rows":44,"n_cols":7,"rows_kept":44,"cut":false,"hidden":false,"merged":[[39,2,39,5],[27,2,27,5],[29,2,29,5],[31,2,31,5],[33,2,33,5]]}
[]
[]
[]
[]
[]
[]
[]
[null,"תקן ציוד למרכזי יום טיפוליים סיעודיים ו/או תעסוקה "]
[null,"ציוד פרא רפואי, חדר סנוזלן, ציוד למטבח מבשל וציוד לצוות. "]
[]
[]
[null,"שאלון למגיש הבקשה"]
[]
[null,"הערות והסברים למילוי הבקשה"]
[null,"יש למלא את השאלון לעיל לפני מעבר לכתב הכמויות"]
[null,"הגוף המבקש מתבקש למלא רק פרטים בתאים המסומנים בצבע ירוק . אין לגעת בתאים אחרים."]
[null,"כל מחירי הציוד כוללים מע\"מ בשיעור של 17%"]
[null,"קרן שלם מסייעת למסגרות  לאנשים עם מש\"ה.  במסגרות לאוכלוסיה  רב נכותית,  ההתיחסות הינה עפי מס' המקבלי השרות המוכרים עם מש\"ה."]
[]
[]
[]
[null,null,"תאריך הגשת הבקשה"]
[]
[null,null,"שם המסגרת"]
[]
[null,null,"סוג המסגרת",null,null,null,"נא לבחור מתוך הרשימה"]
[]
[null,null,"שם הרשות"]
[]
[null,null,"שם הארגון המפעיל"]
[]
[null,null,"כתובת המסגרת"]
[]
[null,null,"שם ושם משפחה איש קשר"]
[]
[null,null,"תפקיד איש קשר"]
[]
[null,null,"נייד איש קשר "]
[]
[null,null,"מייל איש קשר"]
[]
[null,null,"מספר האנשים שעבורם מיועד הפרויקט"]
[]
[null,null,"כמה מתוכם מוכרים עם מש\"ה (מוגבלות שיכלית התפתחותית)"]

{"sheet":"ד. ריפוי בעיסוק","index":4,"n_rows":51,"n_cols":14,"rows_kept":51,"cut":false,"hidden":false,"merged":[[5,1,5,4],[5,10,5,13],[5,6,5,8]]}
[null,{"$f":"'ב. תוכן עניינים'!C17","v":"ריפוי בעיסוק"},null,null,null,null,"שלב הגשת הבקשה:",null,null,null,"שלב הדיווח על ההוצאות:"]
[null,"שם המסגרת :",{"$f":"'ג. שאלון למילוי מגיש הבקשה'!G24","v":0},null,null,null,"עליכם למלא גיליון ג' בטרם מילוי הגיליונות האחרים ",null,null,null,"לאחר אישור הבקשה יוחזר הגיליון עם הפריטים המאושרים"]
[null,"סוג המסגרת :",{"$f":"'ג. שאלון למילוי מגיש הבקשה'!G26","v":"נא לבחור מתוך הרשימה"},null,null,null,"גיליונות ד' עד י\"ב עליכם למלא רק עמודות הצבועות בירוק",null,null,null,"גיליונות ד' עד י\"ב עליכם למלא רק עמודות הצבועות בוורוד "]
[null,"מספר האנשים שעבורם מיועד הפרויקט :",{"$f":"'ג. שאלון למילוי מגיש הבקשה'!G42","v":0},null,null,null,"אין לגעת בתאים האחרים- תאים אלו יהיו נעולים",null,null,null,"אין לגעת בתאים האחרים- תאים אלו יהיו נעולים"]
[]
[null,"תקן  ציוד ",null,null,null,null,"בקשת הגוף ",null,null,null,"דיווח לתשלום לאחר ביצוע"]
[null,"פריטים","כמות תקן","עלות ליחידה כולל מע\"מ","סך עלות כולל מע\"מ",null,"כמות מבוקשת עבור חדר בודד","תקציב מבוקש","הערות הגוף",null,"הפריט שנרכש","מס' חשבונית מס","תאריך חשבונית מס","סכום כולל מע\"מ"]
[null,"ריהוט",null,null,null,null,{"$f":"B8","v":"ריהוט"},null,null,null,{"$f":"G8","v":"ריהוט"}]
[null,"מזרונים טיפוליים",3,150,{"$f":"D9*C9","v":450},null,null,{"$f":"G9*D9","v":0}]
[null,"ארון אחסון",1,2000,2000,null,null,0]
[null,"מדף אחסון לציוד גדול תלוי",1,1000,1000,null,null,0]
[null,"כסא מתכוונן",1,1500,1500,null,null,0]
[null,"כסא מטפל",1,760,760,null,null,0]
[null,"לוח מחיק",1,450,450,null,null,0]
[null,"מראה קבועה ווילון",1,800,800,null,null,0]
[null,"שולחן מתכוונן חשמלי",1,4000,4000,null,null,0]
[null,"סה\"כ ריהוט כולל מע\"מ",null,null,{"$f":"SUM(E9:E16)","v":10960},null,null,{"$f":"SUM(H9:H16)","v":0},{"$f":"B17","v":"סה\"כ ריהוט כולל מע\"מ"},null,{"$f":"B17","v":"סה\"כ ריהוט כולל מע\"מ"},null,null,{"$f":"SUM(N9:N16)","v":0}]
[null,"ציוד",null,null,null,null,{"$f":"B18","v":"ציוד"},null,null,null,{"$f":"G18","v":"ציוד"}]
[null,"נקודת תליה בתקרה, כולל התקנה ",2,500,1000,null,null,{"$f":"G19*D19","v":0}]
[null,"סקוטר למשקל של מבוגרים",2,250,500,null,null,0]
[null,"חבית טיפולית",1,1300,1300,null,null,0]
[null,"סט חמישה ספסלים",1,800,800,null,null,0]
[null,"ערסל בד טיפולי",1,200,200,null,null,0]
[null,"צלחת וסטיבולרית לבוגרים",1,250,250,null,null,0]
[null,"כדורים (סכום גלובלי)",1,500,500,null,null,0]
[null,"גלילים בגדלים שונים (סכום גלובלי)",1,1500,1500,null,null,0]
[null,"וסט נאופרן",1,450,450,null,null,0]
[null,"משחקי גריה שונים (סכום גלובלי)",1,1000,1000,null,null,0]
[null,"עזרים לטיפול קבוצתי (טבעות, \nמטפחות, כדורים, מצנח וכד') (סכום גלובלי)",1,2000,2000,null,null,0]
[null,"משחקי מרחב, בנייה והרכבה  (סכום גלובלי)",1,3000,3000,null,null,0]
[null,"פאזלים ומשחקי תפיסה (סכום גלובלי)",1,2000,2000,null,null,0]
[null,"אביזרי ADL מותאמים (סכום גלובלי)",1,1000,1000,null,null,0]
[null,"ציוד להכנת סדי ידיים ",1,3000,3000,null,null,0]
[null,"סה\"כ ציוד כולל מע\"מ",null,null,{"$f":"SUM(E19:E33)","v":18500},null,null,{"$f":"SUM(H19:H33)","v":0},{"$f":"B34","v":"סה\"כ ציוד כולל מע\"מ"},null,{"$f":"B34","v":"סה\"כ ציוד כולל מע\"מ"},null,null,{"$f":"SUM(N19:N33)","v":0}]
[null,"טכנולוגיה",null,null,null,null,{"$f":"B35","v":"טכנולוגיה"},null,null,null,{"$f":"G35","v":"טכנולוגיה"}]
[null,"מחשב נייח/נייד עם מסך מגע  ",1,3100,3100,null,null,{"$f":"G36*D36","v":0}]
[null,"מדפסת",1,1600,1600,null,null,0]
[null," אייפד (1  ל 5 אנשים)   Ipad 10.2\" 128GB WIFI ",1,2200,2200,null,null,0]
[null,"תוכנות לאייפד",1,5000,5000,null,null,0]
[null,"מגן לאייפד + מדבקת זכוכית",1,450,450,null,null,0]
[null,"Apple tv",1,900,900,null,null,0]
[null,"מסך הקרנה נגלל",1,3800,3800,null,null,0]
[null,"מסך מגע 65\" לתלייה על קיר+ ארון + מחשב להפעלה, ניתן להשתמש גם בלוח חכם ",1,40000,40000,null,null,{"$f":"G43*D43","v":0}]
[null,"מערכת מציאות מדומה",1,40000,40000,null,null,0]
[null,"עכברים ייחודיים ",1,2500,2500,null,null,0]
[null,"מקלדות ייחודיות ",1,1200,1200,null,null,0]
[null,"מתגים ומתאמי מתגים ",1,4500,4500,null,null,0]
[null,"זרועות למתגים ולטאבלט ",1,5000,5000,null,null,0]
[null,"צעצועים מותאמים - סכום גלובלי",1,5000,5000,null,null,0]
[null,"סה\"כ טכנולוגיה כולל מע\"מ",null,null,{"$f":"SUM(E36:E49)","v":115250},null,null,{"$f":"SUM(H36:H49)","v":0},{"$f":"B50","v":"סה\"כ טכנולוגיה כולל מע\"מ"},null,{"$f":"B50","v":"סה\"כ טכנולוגיה כולל מע\"מ"},null,null,{"$f":"SUM(N36:N49)","v":0}]
[null,"סה\"כ ציוד ריפוי בעיסוק כולל מע\"מ",null,null,{"$f":"E17+E34+E50","v":144710},null,null,{"$f":"H17+H34+H50","v":0},{"$f":"B51","v":"סה\"כ ציוד ריפוי בעיסוק כולל מע\"מ"},null,{"$f":"B51","v":"סה\"כ ציוד ריפוי בעיסוק כולל מע\"מ"},null,null,{"$f":"N17+N34+N50","v":0}]

{"sheet":"ה. קלינאות תקשורת","index":5,"n_rows":33,"n_cols":14,"rows_kept":33,"cut":false,"hidden":false,"merged":[[4,1,4,4],[4,6,4,8],[4,10,4,13]]}
[null,{"$f":"'ב. תוכן עניינים'!C18","v":"קלינאות תקשורת"},null,null,null,null,"שלב הגשת הבקשה:",null,null,null,"שלב הדיווח על ההוצאות:"]
[null,"שם המסגרת :",{"$f":"'ג. שאלון למילוי מגיש הבקשה'!G24","v":0},null,null,null,"עליכם למלא גיליון ג' בטרם מילוי הגיליונות האחרים.",null,null,null,"לאחר אישור הבקשה יוחזר הגיליון עם הפריטים המאושרים"]
[null,"סוג המסגרת :",{"$f":"'ג. שאלון למילוי מגיש הבקשה'!G26","v":"נא לבחור מתוך הרשימה"},null,null,null,"גיליונות ד' עד י\"ב עליכם למלא רק עמודות הצבועות בירוק",null,null,null,"גיליונות ד' עד י\"ב עליכם למלא רק עמודות הצבועות בוורוד"]
[null,"מספר האנשים שעבורם מיועד הפרויקט :",{"$f":"'ג. שאלון למילוי מגיש הבקשה'!G42","v":0},null,null,null,"אין לגעת בתאים האחרים- תאים אלו יהיו נעולים",null,null,null,"אין לגעת בתאים האחרים- תאים אלו יהיו נעולים"]
[null,"תקן  ציוד ",null,null,null,null,"בקשת הגוף ",null,null,null,"דיווח לתשלום לאחר ביצוע"]
[null,"פריטים","כמות תקן","עלות ליחידה כולל מע\"מ","סך עלות כולל מע\"מ",null,"כמות מבוקשת עבור חדר בודד","תקציב מבוקש","הערות הגוף",null,"הפריט שנרכש","מס' חשבונית מס","תאריך חשבונית מס","סכום כולל מע\"מ"]
[null,"מיחשוב",null,null,null,null,{"$f":"B7","v":"מיחשוב"},null,null,null,{"$f":"G7","v":"מיחשוב"}]
[null,"מחשב נייח /נייד",1,3100,{"$f":"D8*C8","v":3100},null,null,{"$f":"G8*D8","v":0}]
[null,"מדפסת משולבת עם יישומי סריקה וצילום, פלט צבעוני",1,1600,1600,null,null,{"$f":"G9*D9","v":0}]
[null,"מכשיר למינציה",1,500,500,null,null,{"$f":"G10*D10","v":0}]
[null,"מחשב לוח (אייפד/טאבלט)",1,2200,2200,null,null,{"$f":"G11*D11","v":0}]
[null,"אפליקציות למחשב לוח (אייפד/טאבלט)",1,1200,1200,null,null,{"$f":"G12*D12","v":0}]
[null,"סה\"כ מחשבים כולל מע\"מ",null,null,{"$f":"SUM(E8:E12)","v":8600},null,null,{"$f":"SUM(H8:H12)","v":0},{"$f":"B13","v":"סה\"כ מחשבים כולל מע\"מ"},null,{"$f":"B13","v":"סה\"כ מחשבים כולל מע\"מ"},null,null,{"$f":"SUM(N8:N12)","v":0}]
[null,"תקשורת תומכת וחליפית",null,null,null,null,{"$f":"B14","v":"תקשורת תומכת וחליפית"},null,null,null,{"$f":"G14","v":"תקשורת תומכת וחליפית"}]
[null,"פלטים קוליים (סכום גלובלי)",1,5000,5000,null,null,{"$f":"G15*D15","v":0}]
[null,"מתגים (סכום גלובלי)",1,2000,2000,null,null,0]
[null,"אפליקציות לתקשורת תומכת חליפית  (סכום גלובלי)",1,2000,2000,null,null,0]
[null,"תוכנת גריד (סכום גלובלי)",1,7000,{"$f":"D18*C18","v":7000},null,null,{"$f":"G18*D18","v":0}]
[null,"סה\"כ תקשורת תומכת וחליפית כולל מע\"מ",null,null,{"$f":"SUM(E15:E18)","v":16000},null,null,{"$f":"SUM(H15:H18)","v":0},{"$f":"B19","v":"סה\"כ תקשורת תומכת וחליפית כולל מע\"מ"},null,{"$f":"B19","v":"סה\"כ תקשורת תומכת וחליפית כולל מע\"מ"},null,null,{"$f":"SUM(N15:N18)","v":0}]
[null,"תוכנות ומשחקים",null,null,null,null,{"$f":"B20","v":"תוכנות ומשחקים"},null,null,null,{"$f":"G20","v":"תוכנות ומשחקים"}]
[null,"ציוד טיפולי, ספרים, כרטיסיות ומשחקי שפה ותקשורת",1,3000,3000,null,null,0]
[null,"תוכנות תקשורת לאי-פד כמו sounding board, book creator,choice boards, snap scene ועוד, בהתאם למאפייני האוכלוסיה",1,3000,3000,null,null,0]
[null,"אי פד ",{"$f":"IF(C4<20,2,IF(C4<50,4,5))","v":2},2000,4000,null,null,0]
[null,"סה\"כ תוכנות ומשחקים כולל מע\"מ",null,null,{"$f":"SUM(E21:E23)","v":10000},null,null,{"$f":"SUM(H21:H23)","v":0},{"$f":"B24","v":"סה\"כ תוכנות ומשחקים כולל מע\"מ"},null,{"$f":"B24","v":"סה\"כ תוכנות ומשחקים כולל מע\"מ"},null,null,{"$f":"SUM(N21:N23)","v":0}]
[null,"ריהוט",null,null,null,null,{"$f":"B25","v":"ריהוט"},null,null,null,{"$f":"G25","v":"ריהוט"}]
[null,"ארון אחסון לציוד",1,2000,2000,null,null,{"$f":"G26*D26","v":0}]
[null,"כסאות",2,400,800,null,null,0]
[null,"שולחנות",1,550,550,null,null,0]
[null,"מראה ווילון",1,800,800,null,null,0]
[null,"לוח מחיק",1,450,450,null,null,0]
[null,"שטיח",1,350,350,null,null,0]
[null,"סה\"כ ריהוט כולל מע\"מ",null,null,{"$f":"SUM(E26:E31)","v":4950},null,null,{"$f":"SUM(H26:H31)","v":0},{"$f":"B32","v":"סה\"כ ריהוט כולל מע\"מ"},null,{"$f":"B32","v":"סה\"כ ריהוט כולל מע\"מ"},null,null,{"$f":"SUM(N26:N31)","v":0}]
[null,"סה\"כ ציוד קלינאות תקשורת כולל מע\"מ",null,null,{"$f":"E13+E19+E24+E32","v":39550},null,null,{"$f":"H13+H19+H24+H32","v":0},{"$f":"B33","v":"סה\"כ ציוד קלינאות תקשורת כולל מע\"מ"},null,{"$f":"B33","v":"סה\"כ ציוד קלינאות תקשורת כולל מע\"מ"},null,null,{"$f":"N13+N19+N24+N32","v":0}]

{"sheet":"ו. סנוזלן","index":6,"n_rows":26,"n_cols":14,"rows_kept":26,"cut":false,"hidden":false,"merged":[[4,1,4,4],[4,6,4,8],[4,10,4,13]]}
[null,{"$f":"'ב. תוכן עניינים'!C19","v":"חדר סנוזלן"},null,null,null,null,"שלב הגשת הבקשה:",null,null,null,"שלב הדיווח על ההוצאות:"]
[null,"שם המסגרת",{"$f":"'ג. שאלון למילוי מגיש הבקשה'!G24","v":0},null,null,null,"עליכם למלא גיליון ג' בטרם מילוי הגיליונות האחרים.",null,null,null,"לאחר אישור הבקשה יוחזר הגיליון עם הפריטים המאושרים"]
[null,"סוג המסגרת",{"$f":"'ג. שאלון למילוי מגיש הבקשה'!G26","v":"נא לבחור מתוך הרשימה"},null,null,null,"גיליונות ד' עד י\"ב עליכם למלא רק עמודות הצבועות בירוק",null,null,null,"גיליונות ד' עד י\"ב עליכם למלא רק עמודות הצבועות בכתום",null,null,"צבועות בוורוד "]
[null,"מספר האנשים שעבורם מיועד הפרויקט",{"$f":"'ג. שאלון למילוי מגיש הבקשה'!G42","v":0},null,null,null,"אין לגעת בתאים האחרים- תאים אלו יהיו נעולים",null,null,null,"אין לגעת בתאים האחרים- תאים אלו יהיו נעולים"]
[null,"תקן  ציוד ",null,null,null,null,"בקשת הגוף ",null,null,null,"דיווח לתשלום לאחר ביצוע"]
[null,"פריטים","כמות תקן","עלות ליחידה כולל מע\"מ","סך עלות כולל מע\"מ",null,"כמות מבוקשת עבור חדר בודד","תקציב מבוקש","הערות הגוף",null,"הפריט שנרכש","מס' חשבונית מס","תאריך חשבונית מס","סכום כולל מע\"מ"]
[null,"מנוף תקרה+ התקנה (לסיעודיים)",1,25000,{"$f":"D7*C7","v":25000},null,null,{"$f":"G7*D7","v":0}]
[null,"עמוד בועות",1,8000,{"$f":"D8*C8","v":8000},null,null,{"$f":"G8*D8","v":0}]
[null,"מראות מחוסמות",1,1750,1750,null,null,0]
[null,"בסיס מרופד",1,1200,1200,null,null,0]
[null,"פרוג'קטור",1,5500,5500,null,null,0]
[null,"פופ",1,850,850,null,null,0]
[null,"מערכת מוסיקה",1,1600,1600,null,null,0]
[null,"ריפוד רצפה  וקירות ל 20 מ\"ר",20,400,8000,null,null,0]
[null,"סיבים אופטיים",1,6850,6850,null,null,0]
[null,"כדור מראות+מקרן",1,1200,1200,null,null,{"$f":"G16*D16","v":0}]
[null,"נדנדה",1,950,950,null,null,0]
[null,"מתרגם קול לאור",1,9000,9000,null,null,0]
[null,"מתקן גירוי תגובה",1,5500,5500,null,null,0]
[null,"אביזרי עיסוי",1,2500,2500,null,null,0]
[null,"אביזרי גריה קטנים",1,860,860,null,null,0]
[null,"ארון אחסון לעזרים",2,2000,4000,null,null,0]
[null,"סה\"כ ציוד חדר סנוזלן כולל מע\"מ",null,null,{"$f":"SUM(E7:E22)","v":82760},null,null,{"$f":"SUM(H7:H22)","v":0},{"$f":"B23","v":"סה\"כ ציוד חדר סנוזלן כולל מע\"מ"},null,{"$f":"B23","v":"סה\"כ ציוד חדר סנוזלן כולל מע\"מ"},null,null,{"$f":"SUM(N7:N22)","v":0}]
[]
[null,"הערה:"]
[null,"ציוד לחדר סנוזלן מותנה בהפעלת איש מקצוע שקיבל הכשרה בתחום.  גודל חדר מינימאלי 20 מ\"ר+ 5 מ\"ר מבואה."]

{"sheet":"ז. מתקני חצר ","index":7,"n_rows":32,"n_cols":15,"rows_kept":32,"cut":false,"hidden":false,"merged":[[4,7,4,9],[4,11,4,14]]}
[null,{"$f":"'ב. תוכן עניינים'!C20","v":"מתקני חצר"},null,null,null,null,null,"שלב הגשת הבקשה:",null,null,null,"שלב הדיווח על ההוצאות:"]
[null,"שם המסגרת :",{"$f":"'ג. שאלון למילוי מגיש הבקשה'!G24","v":0},null,null,null,null,"עליכם למלא גיליון ג' בטרם מילוי הגיליונות האחרים.",null,null,null,"לאחר אישור הבקשה יוחזר הגיליון עם הפריטים המאושרים"]
[null,"סוג המסגרת :",{"$f":"'ג. שאלון למילוי מגיש הבקשה'!G26","v":"נא לבחור מתוך הרשימה"},null,null,null,null,"גיליונות ד' עד י\"ב עליכם למלא רק עמודות הצבועות בירוק",null,null,null,"גיליונות ד' עד י\"ב עליכם למלא רק עמודות הצבועות בוורוד ",null,null,"בוורוד"]
[null,"מספר האנשים שעבורם מיועד הפרויקט :",{"$f":"'ג. שאלון למילוי מגיש הבקשה'!G42","v":0},null,null,null,null,"אין לגעת בתאים האחרים- תאים אלו יהיו נעולים",null,null,null,"אין לגעת בתאים האחרים- תאים אלו יהיו נעולים"]
[null,null,null,null,null,null,null,"בקשת הגוף ",null,null,null,"דיווח לתשלום לאחר ביצוע"]
[null,"מתקן","תיאור","כמות תקן למסגרת","מחיר ליחידה","תקציב מומלץ לפי תקן",null,"כמות מבוקשת","תקציב מבוקש לקבוצה","הערות הגוף",null,"הפריט שנרכש","מס' חשבונית מס","תאריך חשבונית מס","סכום כולל מע\"מ"]
[null,"לחיצת חזה משיכה עליונה","מתקן זוגי דחיקת חזה ומשיכה עליונה זוגי שתי\nמנחי פעילות אפשריות מנח יד אופקי ואנכי\nאימון שרירי חזה כלל השרירים\nכולל מדרכי רגל לקיבוע הגפיים",1,15000,{"$f":"D7*E7","v":15000},null,null,{"$f":"E7*H7","v":0}]
[null,"מתקן דחיקת כתפיים למשתמש","מתקן דחיקת כתפיים לאימון שרירי הכתפים\nוהיד הקדמית בלדחיקה מעלה לכיוון הכתף כולל\nידיות לקימה וישיבה והנגשה לאוכלוסיות\nמיוחדות כולל מדרכי רגל לקיבוע הגפיים",1,8500,{"$f":"D8*E8","v":8500},null,null,{"$f":"E8*H8","v":0}]
[null,"מתקן פרפר חזה","מתקן פרפר סגירה לאימון שרירי החזה ,בתוספת זוג ידיות אחיזה של מנחי פעילות של סגירה צרה וסגירה רחבה כולל משענות יד ומדרך רגל\nלקיבוע הגפיים",1,10500,10500,null,null,{"$f":"E9*H9","v":0}]
[null,"מתקן פרפר הפוך","מתקן פרפר פתיחה לאימון שרירי החזה, בתוספת ידיות אחיזה כולל משענות יד ומדרך רגל לקיבוע הגפיים",1,10500,10500,null,null,{"$f":"E10*H10","v":0}]
[null,"מתקן מקבילי כנף לזוג\nמשתמשים","מקבילי כנף בשני גבהים ברוחב אופטימאלי לאימון יד אחורית מונגש לאוכלוסיות גבוהות ונמוכות",1,6000,6000,null,null,0]
[null,"מתקן דחיקת רגליים לזוג משתמשים","מתקן דחיקת ארבע ראשים ושרירי התאומים בישיבה – כולל מנגנון הבטחה ומעצור למניעת היפוך זרוע ומפתח קיצוני",1,11000,11000,null,null,0]
[null,"מתקן סקי","מתקן סקי לאימון אירובי פעילות ידיים רגליים בתנועה קדימה ואחורה כולל מעצור למניעת מפתח קיצוני",1,7000,7000,null,null,0]
[null,"מתקן הליכה באוויר לזוג משתמשים","מתקן הליכה באוויר לזוג לאימון אירובי אימון ופיתוח מיומניות הליכה ,הגמשת המפשעה תנועת רגליים קדימה ואחורה כולל מעצור למניעת מפתח קיצוני, עד 70 מעלות",1,11000,11000,null,null,0]
[null,"מתקן חתירה בכורסא","מתקן אירובי לפלג גוף עליון לאימון הגב והזרועות לאימון אירובי ,תנועת ידיות אחיזה קדימה ואחורה כולל מעצור למניעת מפתח קיצוני, עד 70 מעלות",1,7000,7000,null,null,0]
[null,"ממתקן מאמן אגן שרירי בטן ישבן  וירכיים בתנועת מטוטלת","התקן לארבעה משתמשים כולל תחנות לכיפוף ברכיים ותנועת אגן, חיזוק מותניים בטן תחתונה והצרת היקפי מותן חיזוק ואימון ישבן יריכיים\nכולל מעצור למניעת מפתח קיצוני, עד 70 מעלות",1,9500,9500,null,null,0]
[null,"מתקן אופני ידיים רגליים","מתקן לאימון קואורדינציה ותיאום יד ורגל, ביצוע תנועות סיבוב אופני ידיים לחיזוק רצועות הכתפיים יחד עם ביצוע ודיווש רגליים לחיזוק רגליים, ירך וישבן כולל מנגנון התנגדות אופטימאלית נגיש לכלל האוכלוסיות",1,7000,7000,null,null,0]
[null,"מתקן אימון פולי תחתון בתמיכת חזה","מתקן פעילות ליד קדמית בצורת פעילות של משיכה תחתונה בתמיכת חזה, פעילות בישיבה זקופה 3 מנחי פעילות אפשריות מנח יד אופקי ואנכי אימון שרירי היד הקדמית ושרירי שכמות / גב כולל מדרכי רגל לקיבוע הגפיים",1,9500,9500,null,null,0]
[null,"מתקן אופני ספיננג","מתקן לאימון קואורדינציה ותיאום יד ורגל, ביצוע תנועות סיבוב אופני ידיים לחיזוק רצועות הכתפיים יחד עם ביצוע ודיווש רגליים לחיזוק רגליים, ירך וישבן כולל מנגנון התנגדות אופטימאלית. נגיש לכלל האוכלוסיות",1,6500,6500,null,null,0]
[null,"מתקן דחיקת רגליים לארבע","מתקן דחיקה לארבע אימון ארבע ראשים ושרירי התאומים בישיבה – כולל מנגנון הבטחה ומעצור למניעת היפוך זרוע ומפתח קיצוני",1,15000,15000,null,null,0]
[null,"מתקן מתח –מקבילים וכורסת בטן","מתקן לאימון פונקציונאלי אימון כושר חופשי\nמודולארי מעוגן באמצעות חובקים .\nניתן לקבלו במספר צורות וגבהים בהתאם\nלגרישות לקוח וצורת האימון המבוקשת",1,14500,14500,null,null,0]
[null,"נדנדה קן לציפור","נדנדה קן לציפור",1,11800,11800,null,null,0]
[null,"מתקני מוזיקה","מתקני מוזיקה לחצר",1,5000,5000,null,null,0]
[null,"כדורגל שולחן","משחק כדורגל שולחן",1,4690,4690,null,null,0]
[null,"הוקי אויר","משחק הוקי",1,2950,2950,null,null,0]
[null,"משטח גומי","משטח גומי עלות למ\"ר 1",80,220,17600,null,null,0]
[null,"סה\"כ מתקני חצר (כולל מע\"מ)",null,null,null,{"$f":"SUM(F7:F26)","v":190540},null,null,{"$f":"SUM(I7:I26)","v":0},{"$f":"B27","v":"סה\"כ מתקני חצר (כולל מע\"מ)"},null,{"$f":"J27","v":"סה\"כ מתקני חצר (כולל מע\"מ)"},null,null,{"$f":"SUM(O7:O26)","v":0}]
[]
[null,"הערות:"]
[null,"האישור מותנה בהצגת תכנית העמדת המתקנים"]
[null,"המתקנים מחויבים בתו תקן "]
[null,"הסעיפים הנ\"ל מציגים מתקנים לדוגמה.  "]

{"sheet":"ח. פיזיותרפיה","index":8,"n_rows":80,"n_cols":16384,"rows_kept":80,"cut":false,"hidden":false,"merged":[[4,1,4,4],[4,6,4,8],[4,10,4,13],[79,1,79,3]]}
[null,{"$f":"'ב. תוכן עניינים'!C21","v":"פיזיותרפיה"},null,null,null,null,"שלב הגשת הבקשה:",null,null,null,"שלב הדיווח על ההוצאות:"]
[null,"שם המסגרת :",{"$f":"'ג. שאלון למילוי מגיש הבקשה'!G24","v":0},null,null,null,"עליכם למלא גיליון ג' בטרם מילוי הגיליונות האחרים.",null,null,null,"לאחר אישור הבקשה יוחזר הגיליון עם הפריטים המאושרים"]
[null,"סוג המסגרת :",{"$f":"'ג. שאלון למילוי מגיש הבקשה'!G26","v":"נא לבחור מתוך הרשימה"},null,null,null,"גיליונות ד' עד י\"ב עליכם למלא רק עמודות הצבועות בירוק",null,null,null,"גיליונות ד' עד י\"ב עליכם למלא רק עמודות הצבועות בכתום",null,"וורוד"]
[null,"מספר האנשים שעבורם מיועד הפרויקט : ",{"$f":"'ג. שאלון למילוי מגיש הבקשה'!G42","v":0},null,null,null,"אין לגעת בתאים האחרים- תאים אלו יהיו נעולים",null,null,null,"אין לגעת בתאים האחרים- תאים אלו יהיו נעולים"]
[null,"תקן",null,null,null,null,"בקשת הגוף ",null,null,null,"דיווח לתשלום לאחר ביצוע"]
[null,"פריטים","כמות תקן","עלות ליחידה כולל מע\"מ","סך עלות  כולל מע\"מ",null,"כמות מבוקשת ","תקציב מבוקש ","הערות הגוף",null,"הפריט שנרכש","מס' חשבונית מס","תאריך חשבונית מס","סכום כולל מע\"מ"]
[null,"ציוד כללי לחדר פיזיותרפיה"]
[null," בובט מיטת טיפול",1,6500,{"$f":"D8*C8","v":6500},null,null,{"$f":"G8*D8","v":0}]
[null,"כסא מטפל",1,760,760,null,null,0]
[null,"סולם שבדי ותוספות",1,2500,2500,null,null,0]
[null,"אחות אילמת",1,450,450,null,null,0]
[null,"מקבילים",1,4500,4500,null,null,0]
[null,"ארון איחסון",1,2000,2000,null,null,0]
[null,"מחשוב",1,3100,3100,null,null,0]
[null,"סה\"כ ציוד לחדר פיזיותרפיה כולל מע\"מ",null,null,{"$f":"SUM(E8:E14)","v":19810},null,null,{"$f":"SUM(H8:H14)","v":0},{"$f":"B15","v":"סה\"כ ציוד לחדר פיזיותרפיה כולל מע\"מ"},null,{"$f":"B15","v":"סה\"כ ציוד לחדר פיזיותרפיה כולל מע\"מ"},null,null,{"$f":"SUM(N8:N14)","v":0}]
[null,"הושבת מיוחדת"]
[null,"כיסא אקטיבי מיוחד קטן/בינוני",1,14500,14500,null,null,0]
[null,"כיסא אקטיבי מיוחד גדול",1,17550,17550,null,null,0]
[null,"סה\"כ  הושבה מיוחדת כולל מע\"מ",null,null,{"$f":"SUM(E17:E18)","v":32050},null,null,{"$f":"SUM(H17:H18)","v":0},{"$f":"B19","v":"סה\"כ  הושבה מיוחדת כולל מע\"מ"},null,{"$f":"B19","v":"סה\"כ  הושבה מיוחדת כולל מע\"מ"},null,null,{"$f":"SUM(N17:N18)","v":0}]
[null,"עמידונים "]
[null,"עמידון קידמי כולל תמיכות",1,16000,16000,null,null,0]
[null,"עמידון אחורי כולל תמיכות",1,16000,16000,null,null,0]
[null,"מיטת טיל גדולה",1,15000,15000,null,null,0]
[null,"עמידון גדול כולל תמיכות מרובות ",1,23400,23400,null,null,0]
[null,"ישיבה לעמידה עם תמיכות מרובות",1,45780,45780,null,null,0]
[null,"סה\"כ עלות עמודונים כולל מע\"מ",null,null,{"$f":"SUM(E21:E25)","v":116180},null,null,{"$f":"SUM(H21:H25)","v":0},{"$f":"B26","v":"סה\"כ עלות עמודונים כולל מע\"מ"},null,{"$f":"B26","v":"סה\"כ עלות עמודונים כולל מע\"מ"},null,null,{"$f":"SUM(N21:N25)","v":0},null,null,null,null,null,null,null,null,null,null,null,null,null,null,null,null,null,null,null,null,null,null,null,null,null,null,null,null,null,null,null,null,null,null,null,null,null,null,null,null,null,null,null,null,null,null,null,null,null,null,null,null,null,null,null,null,null,null,null,null,null,null,null,null,null,null,null,null,null,null,null,null,null,null,null,null,null,null,null,null,null,null,null,null,null,null,null,null,null,null,null,null,null,null,null,null,null,null,null,null,null,null,null,null,null,null,null,null,null,null,null,null,null,null,null,null,null,null,null,null,null,null,null,null,null,null,null,null,null,null,null,null,null,null,null,null,null,null,null,null,null,null,null,null,null,null,null,null,null,null,null,null,null,null,null,null,null,null,null,null,null,null,null,null,null,null,null,null,null,null,null,null,null,null,null,null,null,null,null,null,null,null,null,null,null,null,null,null,null,null,null,null,null,null,null,null,null,null,null,null,null,null,null,null,null,null,null,null,null,null,null,null,null,null,null,null,null,null,null,null,null,null,null,null,null,null,null,null,null,null,null,null,null,null,null,null,null,null,null,null,null,null,null,null,null,null,null,null,null,null,null,null,null,null,null,null,null,null,null,null,null,null,null,null,null,null,null,null,null,null,null,null,null,null,null,null,null,null,null,null,null,null,null,null,null,null,null,null,null,null,null,null,null,null,null,null,null,null,null,null,null,null,null,null,null,null,null,null,null,null,null,null,null,null,null,null,null,null,null,null,null,null,null,null,null,null,null,null,null,null,null,null,null,null,null,null,null,null,null,null,null,null,null,null,null,null,null,null,null,null,null,null,null,null,null,null,null,null,null,null,null,null,null,null,null,null,null,null,null,null,null,null,null,null,null,null,null,null,null,null,null,null,null,null,null,null,null,null,null,null,null,null,null,null,null,null,null,null,null,null,null,null,null,null,null,null,null,null,null,null,null,null,null,null,null,null,null,null,null,null,null,null,null,null,null,null,null,null,null,null,null,null,null,null,null,null,null,null,null,null,null,null,null,null,null,null,null,null,null,null,null,null,null,null,null,null,null,null,null,null,null,null,null,null,null,null,null,null,null,null,null,null,null,null,null,null,null,null,null,null,null,null,null,null,null,null,null,null,null,null,null,null,null,null,null,null,null,null,null,null,null,null,null,null,null,null,null,null,null,null,null,null,null,null,null,null,null,null,null,null,null,null,null,null,null,null,null,null,null,null,null,null,null,null,null,null,null,null,null,null,null,null,null,null,null,null,null,null,null,null,null,null,null,null,null,null,null,null,null,null,null,null,null,null,null,null,null,null,null,null,null,null,null,null,null,null,null,null,null,null,null,null,null,null,null,null,null,null,null,null,null,null,null,null,null,null,null,null,null,null,null,null,null,null,null,null,null,null,null,null,null,null,null,null,null,null,null,null,null,null,null,null,null,null,null,null,null,null,null,null,null,null,null,null,null,null,null,null,null,null,null,null,null,null,null,null,null,null,null,null,null,null,null,null,null,null,null,null,null,null,null,null,null,null,null,null,null,null,null,null,null,null,null,null,null,null,null,null,null,null,null,null,null,null,null,null,null,null,null,null,null,null,null,null,null,null,null,null,null,null,null,null,null,null,null,null,null,null,null,null,null,null,null,null,null,null,null,null,null,null,null,null,null,null,null,null,null,null,null,null,null,null,null,null,null,null,null,null,null,null,null,null,null,null,null,null,null,null,null,null,null,null,null,null,null,null,null,null,null,null,null,null,null,null,null,null,null,null,null,null,null,null,null,null,null,null,null,null,null,null,null,null,null,null,null,null,null,null,null,null,null,null,null,null,null,null,null,null,null,null,null,null,null,null,null,null,null,null,null,null,null,null,null,null,null,null,null,null,null,null,null,null,null,null,null,null,null,null,null,null,null,null,null,null,null,null,null,null,null,null,null,null,null,null,null,null,null,null,null,null,null,null,null,null,null,null,null,null,null,null,null,null,null,null,null,null,null,null,null,null,null,null,null,null,null,null,null,null,null,null,null,null,null,null,null,null,null,null,null,null,null,null,null,null,null,null,null,null,null,null,null,null,null,null,null,null,null,null,null,null,null,null,null,null,null,null,null,null,null,null,null,null,null,null,null,null,null,null,null,null,null,null,null,null,null,null,null,null,null,null,null,null,null,null,null,null,null,null,null,null,null,null,null,null,null,null,null,null,null,null,null,null,null,null,null,null,null,null,null,null,null,null,null,null,null,null,null,null,null,null,null,null,null,null,null,null,null,null,null,null,null,null,null,null,null,null,null,null,null,null,null,null,null,null,null,null,null,null,null,null,null,null,null,null,null,null,null,null,null,null,null,null,null,null,null,null,null,null,null,null,null,null,null,null,null,null,null,null,null,null,null,null,null,null,null,null,null,null,null,null,null,null,null,null,null,null,null,null,null,null,null,null,null,null,null,null,null,null,null,null,null,null,null,null,null,null,null,null,null,null,null,null,null,null,null,null,null,null,null,null,null,null,null,null,null,null,null,null,null,null,null,null,null,null,null,null,null,null,null,null,null,null,null,null,null,null,null,null,null,null,null,null,null,null,null,null,null,null,null,null,null,null,null,null,null,null,null,null,null,null,null,null,null,null,null,null,null,null,null,null,null,null,null,null,null,null,null,null,null,null,null,null,null,null,null,null,null,null,null,null,null,null,null,null,null,null,null,null,null,null,null,null,null,null,null,null,null,null,null,null,null,null,null,null,null,null,null,null,null,null,null,null,null,null,null,null,null,null,null,null,null,null,null,null,null,null,null,null,null,null,null,null,null,null,null,null,null,null,null,null,null,null,null,null,null,null,null,null,null,null,null,null,null,null,null,null,null,null,null,null,null,null,null,null,null,null,null,null,null,null,null,null,null,null,null,null,null,null,null,null,null,null,null,null,null,null,null,null,null,null,null,null,null,null,null,null,null,null,null,null,null,null,null,null,null,null,null,null,null,null,null,null,null,null,null,null,null,null,null,null,null,null,null,null,null,null,null,null,null,null,null,null,null,null,null,null,null,null,null,null,null,null,null,null,null,null,null,null,null,null,null,null,null,null,null,null,null,null,null,null,null,null,null,null,null,null,null,null,null,null,null,null,null,null,null,null,null,null,null,null,null,null,null,null,null,null,null,null,null,null,null,null,null,null,null,null,null,null,null,null,null,null,null,null,null,null,null,null,null,null,null,null,null,null,null,null,null,null,null,null,null,null,null,null,null,null,null,null,null,null,null,null,null,null,null,null,null,null,null,null,null,null,null,null,null,null,null,null,null,null,null,null,null,null,null,null,null,null,null,null,null,null,null,null,null,null,null,null,null,null,null,null,null,null,null,null,null,null,null,null,null,null,null,null,null,null,null,null,null,null,null,null,null,null,null,null,null,null,null,null,null,null,null,null,null,null,null,null,null,null,null,null,null,null,null,null,null,null,null,null,null,null,null,null,null,null,null,null,null,null,null,null,null,null,null,null,null,null,null,null,null,null,null,null,null,null,null,null,null,null,null,null,null,null,null,null,null,null,null,null,null,null,null,null,null,null,null,null,null,null,null,null,null,null,null,null,null,null,null,null,null,null,null,null,null,null,null,null,null,null,null,null,null,null,null,null,null,null,null,null,null,null,null,null,null,null,null,null,null,null,null,null,null,null,null,null,null,null,null,null,null,null,null,null,null,null,null,null,null,null,null,null,null,null,null,null,null,null,null,null,null,null,null,null,null,null,null,null,null,null,null,null,null,null,null,null,null,null,null,null,null,null,null,null,null,null,null,null,null,null,null,null,null,null,null,null,null,null,null,null,null,null,null,null,null,null,null,null,null,null,null,null,null,null,null,null,null,null,null,null,null,null,null,null,null,null,null,null,null,null,null,null,null,null,null,null,null,null,null,null,null,null,null,null,null,null,null,null,null,null,null,null,null,null,null,null,null,null,null,null,null,null,null,null,null,null,null,null,null,null,null,null,null,null,null,null,null,null,null,null,null,null,null,null,null,null,null,null,null,null,null,null,null,null,null,null,null,null,null,null,null,null,null,null,null,null,null,null,null,null,null,null,null,null,null,null,null,null,null,null,null,null,null,null,null,null,null,null,null,null,null,null,null,null,null,null,null,null,null,null,null,null,null,null,null,null,null,null,null,null,null,null,null,null,null,null,null,null,null,null,null,null,null,null,null,null,null,null,null,null,null,null,null,null,null,null,null,null,null,null,null,null,null,null,null,null,null,null,null,null,null,null,null,null,null,null,null,null,null,null,null,null,null,null,null,null,null,null,null,null,null,null,null,null,null,null,null,null,null,null,null,null,null,null,null,null,null,null,null,null,null,null,null,null,null,null,null,null,null,null,null,null,null,null,null,null,null,null,null,null,null,null,null,null,null,null,null,null,null,null,null,null,null,null,null,null,null,null,null,null,null,null,null,null,null,null,null,null,null,null,null,null,null,null,null,null,null,null,null,null,null,null,null,null,null,null,null,null,null,null,null,null,null,null,null,null,null,null,null,null,null,null,null,null,null,null,null,null,null,null,null,null,null,null,null,null,null,null,null,null,null,null,null,null,null,null,null,null,null,null,null,null,null,null,null,null,null,null,null,null,null,null,null,null,null,null,null,null,null,null,null,null,null,null,null,null,null,null,null,null,null,null,null,null,null,null,null,null,null,null,null,null,null,null,null,null,null,null,null,null,null,null,null,null,null,null,null,null,null,null,null,null,null,null,null,null,null,null,null,null,null,null,null,null,null,null,null,null,null,null,null,null,null,null,null,null,null,null,null,null,null,null,null,null,null,null,null,null,null,null,null,null,null,null,null,null,null,null,null,null,null,null,null,null,null,null,null,null,null,null,null,null,null,null,null,null,null,null,null,null,null,null,null,null,null,null,null,null,null,null,null,null,null,null,null,null,null,null,null,null,null,null,null,null,null,null,null,null,null,null,null,null,null,null,null,null,null,null,null,null,null,null,null,null,null,null,null,null,null,null,null,null,null,null,null,null,null,null,null,null,null,null,null,null,null,null,null,null,null,null,null,null,null,null,null,null,null,null,null,null,null,null,null,null,null,null,null,null,null,null,null,null,null,null,null,null,null,null,null,null,null,null,null,null,null,null,null,null,null,null,null,null,null,null,null,null,null,null,null,null,null,null,null,null,null,null,null,null,null,null,null,null,null,null,null,null,null,null,null,null,null,null,null,null,null,null,null,null,null,null,null,null,null,null,null,null,null,null,null,null,null,null,null,null,null,null,null,null,null,null,null,null,null,null,null,null,null,null,null,null,null,null,null,null,null,null,null,null,null,null,null,null,null,null,null,null,null,null,null,null,null,null,null,null,null,null,null,null,null,null,null,null,null,null,null,null,null,null,null,null,null,null,null,null,null,null,null,null,null,null,null,null,null,null,null,null,null,null,null,null,null,null,null,null,null,null,null,null,null,null,null,null,null,null,null,null,null,null,null,null,null,null,null,null,null,null,null,null,null,null,null,null,null,null,null,null,null,null,null,null,null,null,null,null,null,null,null,null,null,null,null,null,null,null,null,null,null,null,null,null,null,null,null,null,null,null,null,null,null,null,null,null,null,null,null,null,null,null,null,null,null,null,null,null,null,null,null,null,null,null,null,null,null,null,null,null,null,null,null,null,null,null,null,null,null,null,null,null,null,null,null,null,null,null,null,null,null,null,null,null,null,null,null,null,null,null,null,null,null,null,null,null,null,null,null,null,null,null,null,null,null,null,null,null,null,null,null,null,null,null,null,null,null,null,null,null,null,null,null,null,null,null,null,null,null,null,null,null,null,null,null,null,null,null,null,null,null,null,null,null,null,null,null,null,null,null,null,null,null,null,null,null,null,null,null,null,null,null,null,null,null,null,null,null,null,null,null,null,null,null,null,null,null,null,null,null,null,null,null,null,null,null,null,null,null,null,null,null,null,null,null,null,null,null,null,null,null,null,null,null,null,null,null,null,null,null,null,null,null,null,null,null,null,null,null,null,null,null,null,null,null,null,null,null,null,null,null,null,null,null,null,null,null,null,null,null,null,null,null,null,null,null,null,null,null,null,null,null,null,null,null,null,null,null,null,null,null,null,null,null,null,null,null,null,null,null,null,null,null,null,null,null,null,null,null,null,null,null,null,null,null,null,null,null,null,null,null,null,null,null,null,null,null,null,null,null,null,null,null,null,null,null,null,null,null,null,null,null,null,null,null,null,null,null,null,null,null,null,null,null,null,null,null,null,null,null,null,null,null,null,null,null,null,null,null,null,null,null,null,null,null,null,null,null,null,null,null,null,null,null,null,null,null,null,null,null,null,null,null,null,null,null,null,null,null,null,null,null,null,null,null,null,null,null,null,null,null,null,null,null,null,null,null,null,null,null,null,null,null,null,null,null,null,null,null,null,null,null,null,null,null,null,null,null,null,null,null,null,null,null,null,null,null,null,null,null,null,null,null,null,null,null,null,null,null,null,null,null,null,null,null,null,null,null,null,null,null,null,null,null,null,null,null,null,null,null,null,null,null,null,null,null,null,null,null,null,null,null,null,null,null,null,null,null,null,null,null,null,null,null,null,null,null,null,null,null,null,null,null,null,null,null,null,null,null,null,null,null,null,null,null,null,null,null,null,null,null,null,null,null,null,null,null,null,null,null,null,null,null,null,null,null,null,null,null,null,null,null,null,null,null,null,null,null,null,null,null,null,null,null,null,null,null,null,null,null,null,null,null,null,null,null,null,null,null,null,null,null,null,null,null,null,null,null,null,null,null,null,null,null,null,null,null,null,null,null,null,null,null,null,null,null,null,null,null,null,null,null,null,null,null,null,null,null,null,null,null,null,null,null,null,null,null,null,null,null,null,null,null,null,null,null,null,null,null,null,null,null,null,null,null,null,null,null,null,null,null,null,null,null,null,null,null,null,null,null,null,null,null,null,null,null,null,null,null,null,null,null,null,null,null,null,null,null,null,null,null,null,null,null,null,null,null,null,null,null,null,null,null,null,null,null,null,null,null,null,null,null,null,null,null,null,null,null,null,null,null,null,null,null,null,null,null,null,null,null,null,null,null,null,null,null,null,null,null,null,null,null,null,null,null,null,null,null,null,null,null,null,null,null,null,null,null,null,null,null,null,null,null,null,null,null,null,null,null,null,null,null,null,null,null,null,null,null,null,null,null,null,null,null,null,null,null,null,null,null,null,null,null,null,null,null,null,null,null,null,null,null,null,null,null,null,null,null,null,null,null,null,null,null,null,null,null,null,null,null,null,null,null,null,null,null,null,null,null,null,null,null,null,null,null,null,null,null,null,null,null,null,null,null,null,null,null,null,null,null,null,null,null,null,null,null,null,null,null,null,null,null,null,null,null,null,null,null,null,null,null,null,null,null,null,null,null,null,null,null,null,null,null,null,null,null,null,null,null,null,null,null,null,null,null,null,null,null,null,null,null,null,null,null,null,null,null,null,null,null,null,null,null,null,null,null,null,null,null,null,null,null,null,null,null,null,null,null,null,null,null,null,null,null,null,null,null,null,null,null,null,null,null,null,null,null,null,null,null,null,null,null,null,null,null,null,null,null,null,null,null,null,null,null,null,null,null,null,null,null,null,null,null,null,null,null,null,null,null,null,null,null,null,null,null,null,null,null,null,null,null,null,null,null,null,null,null,null,null,null,null,null,null,null,null,null,null,null,null,null,null,null,null,null,null,null,null,null,null,null,null,null,null,null,null,null,null,null,null,null,null,null,null,null,null,null,null,null,null,null,null,null,null,null,null,null,null,null,null,null,null,null,null,null,null,null,null,null,null,null,null,null,null,null,null,null,null,null,null,null,null,null,null,null,null,null,null,null,null,null,null,null,null,null,null,null,null,null,null,null,null,null,null,null,null,null,null,null,null,null,null,null,null,null,null,null,null,null,null,null,null,null,null,null,null,null,null,null,null,null,null,null,null,null,null,null,null,null,null,null,null,null,null,null,null,null,null,null,null,null,null,null,null,null,null,null,null,null,null,null,null,null,null,null,null,null,null,null,null,null,null,null,null,null,null,null,null,null,null,null,null,null,null,null,null,null,null,null,null,null,null,null,null,null,null,null,null,null,null,null,null,null,null,null,null,null,null,null,null,null,null,null,null,null,null,null,null,null,null,null,null,null,null,null,null,null,null,null,null,null,null,null,null,null,null,null,null,null,null,null,null,null,null,null,null,null,null,null,null,null,null,null,null,null,null,null,null,null,null,null,null,null,null,null,null,null,null,null,null,null,null,null,null,null,null,null,null,null,null,null,null,null,null,null,null,null,null,null,null,null,null,null,null,null,null,null,null,null,null,null,null,null,null,null,null,null,null,null,null,null,null,null,null,null,null,null,null,null,null,null,null,null,null,null,null,null,null,null,null,null,null,null,null,null,null,null,null,null,null,null,null,null,null,null,null,null,null,null,null,null,null,null,null,null,null,null,null,null,null,null,null,null,null,null,null,null,null,null,null,null,null,null,null,null,null,null,null,null,null,null,null,null,null,null,null,null,null,null,null,null,null,null,null,null,null,null,null,null,null,null,null,null,null,null,null,null,null,null,null,null,null,null,null,null,null,null,null,null,null,null,null,null,null,null,null,null,null,null,null,null,null,null,null,null,null,null,null,null,null,null,null,null,null,null,null,null,null,null,null,null,null,null,null,null,null,null,null,null,null,null,null,null,null,null,null,null,null,null,null,null,null,null,null,null,null,null,null,null,null,null,null,null,null,null,null,null,null,null,null,null,null,null,null,null,null,null,null,null,null,null,null,null,null,null,null,null,null,null,null,null,null,null,null,null,null,null,null,null,null,null,null,null,null,null,null,null,null,null,null,null,null,null,null,null,null,null,null,null,null,null,null,null,null,null,null,null,null,null,null,null,null,null,null,null,null,null,null,null,null,null,null,null,null,null,null,null,null,null,null,null,null,null,null,null,null,null,null,null,null,null,null,null,null,null,null,null,null,null,null,null,null,null,null,null,null,null,null,null,null,null,null,null,null,null,null,null,null,null,null,null,null,null,null,null,null,null,null,null,null,null,null,null,null,null,null,null,null,null,null,null,null,null,null,null,null,null,null,null,null,null,null,null,null,null,null,null,null,null,null,null,null,null,null,null,null,null,null,null,null,null,null,null,null,null,null,null,null,null,null,null,null,null,null,null,null,null,null,null,null,null,null,null,null,null,null,null,null,null,null,null,null,null,null,null,null,null,null,null,null,null,null,null,null,null,null,null,null,null,null,null,null,null,null,null,null,null,null,null,null,null,null,null,null,null,null,null,null,null,null,null,null,null,null,null,null,null,null,null,null,null,null,null,null,null,null,null,null,null,null,null,null,null,null,null,null,null,null,null,null,null,null,null,null,null,null,null,null,null,null,null,null,null,null,null,null,null,null,null,null,null,null,null,null,null,null,null,null,null,null,null,null,null,null,null,null,null,null,null,null,null,null,null,null,null,null,null,null,null,null,null,null,null,null,null,null,null,null,null,null,null,null,null,null,null,null,null,null,null,null,null,null,null,null,null,null,null,null,null,null,null,null,null,null,null,null,null,null,null,null,null,null,null,null,null,null,null,null,null,null,null,null,null,null,null,null,null,null,null,null,null,null,null,null,null,null,null,null,null,null,null,null,null,null,null,null,null,null,null,null,null,null,null,null,null,null,null,null,null,null,null,null,null,null,null,null,null,null,null,null,null,null,null,null,null,null,null,null,null,null,null,null,null,null,null,null,null,null,null,null,null,null,null,null,null,null,null,null,null,null,null,null,null,null,null,null,null,null,null,null,null,null,null,null,null,null,null,null,null,null,null,null,null,null,null,null,null,null,null,null,null,null,null,null,null,null,null,null,null,null,null,null,null,null,null,null,null,null,null,null,null,null,null,null,null,null,null,null,null,null,null,null,null,null,null,null,null,null,null,null,null,null,null,null,null,null,null,null,null,null,null,null,null,null,null,null,null,null,null,null,null,null,null,null,null,null,null,null,null,null,null,null,null,null,null,null,null,null,null,null,null,null,null,null,null,null,null,null,null,null,null,null,null,null,null,null,null,null,null,null,null,null,null,null,null,null,null,null,null,null,null,null,null,null,null,null,null,null,null,null,null,null,null,null,null,null,null,null,null,null,null,null,null,null,null,null,null,null,null,null,null,null,null,null,null,null,null,null,null,null,null,null,null,null,null,null,null,null,null,null,null,null,null,null,null,null,null,null,null,null,null,null,null,null,null,null,null,null,null,null,null,null,null,null,null,null,null,null,null,null,null,null,null,null,null,null,null,null,null,null,null,null,null,null,null,null,null,null,null,null,null,null,null,null,null,null,null,null,null,null,null,null,null,null,null,null,null,null,null,null,null,null,null,null,null,null,null,null,null,null,null,null,null,null,null,null,null,null,null,null,null,null,null,null,null,null,null,null,null,null,null,null,null,null,null,null,null,null,null,null,null,null,null,null,null,null,null,null,null,null,null,null,null,null,null,null,null,null,null,null,null,null,null,null,null,null,null,null,null,null,null,null,null,null,null,null,null,null,null,null,null,null,null,null,null,null,null,null,null,null,null,null,null,null,null,null,null,null,null,null,null,null,null,null,null,null,null,null,null,null,null,null,null,null,null,null,null,null,null,null,null,null,null,null,null,null,null,null,null,null,null,null,null,null,null,null,null,null,null,null,null,null,null,null,null,null,null,null,null,null,null,null,null,null,null,null,null,null,null,null,null,null,null,null,null,null,null,null,null,null,null,null,null,null,null,null,null,null,null,null,null,null,null,null,null,null,null,null,null,null,null,null,null,null,null,null,null,null,null,null,null,null,null,null,null,null,null,null,null,null,null,null,null,null,null,null,null,null,null,null,null,null,null,null,null,null,null,null,null,null,null,null,null,null,null,null,null,null,null,null,null,null,null,null,null,null,null,null,null,null,null,null,null,null,null,null,null,null,null,null,null,null,null,null,null,null,null,null,null,null,null,null,null,null,null,null,null,null,null,null,null,null,null,null,null,null,null,null,null,null,null,null,null,null,null,null,null,null,null,null,null,null,null,null,null,null,null,null,null,null,null,null,null,null,null,null,null,null,null,null,null,null,null,null,null,null,null,null,null,null,null,null,null,null,null,null,null,null,null,null,null,null,null,null,null,null,null,null,null,null,null,null,null,null,null,null,null,null,null,null,null,null,null,null,null,null,null,null,null,null,null,null,null,null,null,null,null,null,null,null,null,null,null,null,null,null,null,null,null,null,null,null,null,null,null,null,null,null,null,null,null,null,null,null,null,null,null,null,null,null,null,null,null,null,null,null,null,null,null,null,null,null,null,null,null,null,null,null,null,null,null,null,null,null,null,null,null,null,null,null,null,null,null,null,null,null,null,null,null,null,null,null,null,null,null,null,null,null,null,null,null,null,null,null,null,null,null,null,null,null,null,null,null,null,null,null,null,null,null,null,null,null,null,null,null,null,null,null,null,null,null,null,null,null,null,null,null,null,null,null,null,null,null,null,null,null,null,null,null,null,null,null,null,null,null,null,null,null,null,null,null,null,null,null,null,null,null,null,null,null,null,null,null,null,null,null,null,null,null,null,null,null,null,null,null,null,null,null,null,null,null,null,null,null,null,null,null,null,null,null,null,null,null,null,null,null,null,null,null,null,null,null,null,null,null,null,null,null,null,null,null,null,null,null,null,null,null,null,null,null,null,null,null,null,null,null,null,null,null,null,null,null,null,null,null,null,null,null,null,null,null,null,null,null,null,null,null,null,null,null,null,null,null,null,null,null,null,null,null,null,null,null,null,null,null,null,null,null,null,null,null,null,null,null,null,null,null,null,null,null,null,null,null,null,null,null,null,null,null,null,null,null,null,null,null,null,null,null,null,null,null,null,null,null,null,null,null,null,null,null,null,null,null,null,null,null,null,null,null,null,null,null,null,null,null,null,null,null,null,null,null,null,null,null,null,null,null,null,null,null,null,null,null,null,null,null,null,null,null,null,null,null,null,null,null,null,null,null,null,null,null,null,null,null,null,null,null,null,null,null,null,null,null,null,null,null,null,null,null,null,null,null,null,null,null,null,null,null,null,null,null,null,null,null,null,null,null,null,null,null,null,null,null,null,null,null,null,null,null,null,null,null,null,null,null,null,null,null,null,null,null,null,null,null,null,null,null,null,null,null,null,null,null,null,null,null,null,null,null,null,null,null,null,null,null,null,null,null,null,null,null,null,null,null,null,null,null,null,null,null,null,null,null,null,null,null,null,null,null,null,null,null,null,null,null,null,null,null,null,null,null,null,null,null,null,null,null,null,null,null,null,null,null,null,null,null,null,null,null,null,null,null,null,null,null,null,null,null,null,null,null,null,null,null,null,null,null,null,null,null,null,null,null,null,null,null,null,null,null,null,null,null,null,null,null,null,null,null,null,null,null,null,null,null,null,null,null,null,null,null,null,null,null,null,null,null,null,null,null,null,null,null,null,null,null,null,null,null,null,null,null,null,null,null,null,null,null,null,null,null,null,null,null,null,null,null,null,null,null,null,null,null,null,null,null,null,null,null,null,null,null,null,null,null,null,null,null,null,null,null,null,null,null,null,null,null,null,null,null,null,null,null,null,null,null,null,null,null,null,null,null,null,null,null,null,null,null,null,null,null,null,null,null,null,null,null,null,null,null,null,null,null,null,null,null,null,null,null,null,null,null,null,null,null,null,null,null,null,null,null,null,null,null,null,null,null,null,null,null,null,null,null,null,null,null,null,null,null,null,null,null,null,null,null,null,null,null,null,null,null,null,null,null,null,null,null,null,null,null,null,null,null,null,null,null,null,null,null,null,null,null,null,null,null,null,null,null,null,null,null,null,null,null,null,null,null,null,null,null,null,null,null,null,null,null,null,null,null,null,null,null,null,null,null,null,null,null,null,null,null,null,null,null,null,null,null,null,null,null,null,null,null,null,null,null,null,null,null,null,null,null,null,null,null,null,null,null,null,null,null,null,null,null,null,null,null,null,null,null,null,null,null,null,null,null,null,null,null,null,null,null,null,null,null,null,null,null,null,null,null,null,null,null,null,null,null,null,null,null,null,null,null,null,null,null,null,null,null,null,null,null,null,null,null,null,null,null,null,null,null,null,null,null,null,null,null,null,null,null,null,null,null,null,null,null,null,null,null,null,null,null,null,null,null,null,null,null,null,null,null,null,null,null,null,null,null,null,null,null,null,null,null,null,null,null,null,null,null,null,null,null,null,null,null,null,null,null,null,null,null,null,null,null,null,null,null,null,null,null,null,null,null,null,null,null,null,null,null,null,null,null,null,null,null,null,null,null,null,null,null,null,null,null,null,null,null,null,null,null,null,null,null,null,null,null,null,null,null,null,null,null,null,null,null,null,null,null,null,null,null,null,null,null,null,null,null,null,null,null,null,null,null,null,null,null,null,null,null,null,null,null,null,null,null,null,null,null,null,null,null,null,null,null,null,null,null,null,null,null,null,null,null,null,null,null,null,null,null,null,null,null,null,null,null,null,null,null,null,null,null,null,null,null,null,null,null,null,null,null,null,null,null,null,null,null,null,null,null,null,null,null,null,null,null,null,null,null,null,null,null,null,null,null,null,null,null,null,null,null,null,null,null,null,null,null,null,null,null,null,null,null,null,null,null,null,null,null,null,null,null,null,null,null,null,null,null,null,null,null,null,null,null,null,null,null,null,null,null,null,null,null,null,null,null,null,null,null,null,null,null,null,null,null,null,null,null,null,null,null,null,null,null,null,null,null,null,null,null,null,null,null,null,null,null,null,null,null,null,null,null,null,null,null,null,null,null,null,null,null,null,null,null,null,null,null,null,null,null,null,null,null,null,null,null,null,null,null,null,null,null,null,null,null,null,null,null,null,null,null,null,null,null,null,null,null,null,null,null,null,null,null,null,null,null,null,null,null,null,null,null,null,null,null,null,null,null,null,null,null,null,null,null,null,null,null,null,null,null,null,null,null,null,null,null,null,null,null,null,null,null,null,null,null,null,null,null,null,null,null,null,null,null,null,null,null,null,null,null,null,null,null,null,null,null,null,null,null,null,null,null,null,null,null,null,null,null,null,null,null,null,null,null,null,null,null,null,null,null,null,null,null,null,null,null,null,null,null,null,null,null,null,null,null,null,null,null,null,null,null,null,null,null,null,null,null,null,null,null,null,null,null,null,null,null,null,null,null,null,null,null,null,null,null,null,null,null,null,null,null,null,null,null,null,null,null,null,null,null,null,null,null,null,null,null,null,null,null,null,null,null,null,null,null,null,null,null,null,null,null,null,null,null,null,null,null,null,null,null,null,null,null,null,null,null,null,null,null,null,null,null,null,null,null,null,null,null,null,null,null,null,null,null,null,null,null,null,null,null,null,null,null,null,null,null,null,null,null,null,null,null,null,null,null,null,null,null,null,null,null,null,null,null,null,null,null,null,null,null,null,null,null,null,null,null,null,null,null,null,null,null,null,null,null,null,null,null,null,null,null,null,null,null,null,null,null,null,null,null,null,null,null,null,null,null,null,null,null,null,null,null,null,null,null,null,null,null,null,null,null,null,null,null,null,null,null,null,null,null,null,null,null,null,null,null,null,null,null,null,null,null,null,null,null,null,null,null,null,null,null,null,null,null,null,null,null,null,null,null,null,null,null,null,null,null,null,null,null,null,null,null,null,null,null,null,null,null,null,null,null,null,null,null,null,null,null,null,null,null,null,null,null,null,null,null,null,null,null,null,null,null,null,null,null,null,null,null,null,null,null,null,null,null,null,null,null,null,null,null,null,null,null,null,null,null,null,null,null,null,null,null,null,null,null,null,null,null,null,null,null,null,null,null,null,null,null,null,null,null,null,null,null,null,null,null,null,null,null,null,null,null,null,null,null,null,null,null,null,null,null,null,null,null,null,null,null,null,null,null,null,null,null,null,null,null,null,null,null,null,null,null,null,null,null,null,null,null,null,null,null,null,null,null,null,null,null,null,null,null,null,null,null,null,null,null,null,null,null,null,null,null,null,null,null,null,null,null,null,null,null,null,null,null,null,null,null,null,null,null,null,null,null,null,null,null,null,null,null,null,null,null,null,null,null,null,null,null,null,null,null,null,null,null,null,null,null,null,null,null,null,null,null,null,null,null,null,null,null,null,null,null,null,null,null,null,null,null,null,null,null,null,null,null,null,null,null,null,null,null,null,null,null,null,null,null,null,null,null,null,null,null,null,null,null,null,null,null,null,null,null,null,null,null,null,null,null,null,null,null,null,null,null,null,null,null,null,null,null,null,null,null,null,null,null,null,null,null,null,null,null,null,null,null,null,null,null,null,null,null,null,null,null,null,null,null,null,null,null,null,null,null,null,null,null,null,null,null,null,null,null,null,null,null,null,null,null,null,null,null,null,null,null,null,null,null,null,null,null,null,null,null,null,null,null,null,null,null,null,null,null,null,null,null,null,null,null,null,null,null,null,null,null,null,null,null,null,null,null,null,null,null,null,null,null,null,null,null,null,null,null,null,null,null,null,null,null,null,null,null,null,null,null,null,null,null,null,null,null,null,null,null,null,null,null,null,null,null,null,null,null,null,null,null,null,null,null,null,null,null,null,null,null,null,null,null,null,null,null,null,null,null,null,null,null,null,null,null,null,null,null,null,null,null,null,null,null,null,null,null,null,null,null,null,null,null,null,null,null,null,null,null,null,null,null,null,null,null,null,null,null,null,null,null,null,null,null,null,null,null,null,null,null,null,null,null,null,null,null,null,null,null,null,null,null,null,null,null,null,null,null,null,null,null,null,null,null,null,null,null,null,null,null,null,null,null,null,null,null,null,null,null,null,null,null,null,null,null,null,null,null,null,null,null,null,null,null,null,null,null,null,null,null,null,null,null,null,null,null,null,null,null,null,null,null,null,null,null,null,null,null,null,null,null,null,null,null,null,null,null,null,null,null,null,null,null,null,null,null,null,null,null,null,null,null,null,null,null,null,null,null,null,null,null,null,null,null,null,null,null,null,null,null,null,null,null,null,null,null,null,null,null,null,null,null,null,null,null,null,null,null,null,null,null,null,null,null,null,null,null,null,null,null,null,null,null,null,null,null,null,null,null,null,null,null,null,null,null,null,null,null,null,null,null,null,null,null,null,null,null,null,null,null,null,null,null,null,null,null,null,null,null,null,null,null,null,null,null,null,null,null,null,null,null,null,null,null,null,null,null,null,null,null,null,null,null,null,null,null,null,null,null,null,null,null,null,null,null,null,null,null,null,null,null,null,null,null,null,null,null,null,null,null,null,null,null,null,null,null,null,null,null,null,null,null,null,null,null,null,null,null,null,null,null,null,null,null,null,null,null,null,null,null,null,null,null,null,null,null,null,null,null,null,null,null,null,null,null,null,null,null,null,null,null,null,null,null,null,null,null,null,null,null,null,null,null,null,null,null,null,null,null,null,null,null,null,null,null,null,null,null,null,null,null,null,null,null,null,null,null,null,null,null,null,null,null,null,null,null,null,null,null,null,null,null,null,null,null,null,null,null,null,null,null,null,null,null,null,null,null,null,null,null,null,null,null,null,null,null,null,null,null,null,null,null,null,null,null,null,null,null,null,null,null,null,null,null,null,null,null,null,null,null,null,null,null,null,null,null,null,null,null,null,null,null,null,null,null,null,null,null,null,null,null,null,null,null,null,null,null,null,null,null,null,null,null,null,null,null,null,null,null,null,null,null,null,null,null,null,null,null,null,null,null,null,null,null,null,null,null,null,null,null,null,null,null,null,null,null,null,null,null,null,null,null,null,null,null,null,null,null,null,null,null,null,null,null,null,null,null,null,null,null,null,null,null,null,null,null,null,null,null,null,null,null,null,null,null,null,null,null,null,null,null,null,null,null,null,null,null,null,null,null,null,null,null,null,null,null,null,null,null,null,null,null,null,null,null,null,null,null,null,null,null,null,null,null,null,null,null,null,null,null,null,null,null,null,null,null,null,null,null,null,null,null,null,null,null,null,null,null,null,null,null,null,null,null,null,null,null,null,null,null,null,null,null,null,null,null,null,null,null,null,null,null,null,null,null,null,null,null,null,null,null,null,null,null,null,null,null,null,null,null,null,null,null,null,null,null,null,null,null,null,null,null,null,null,null,null,null,null,null,null,null,null,null,null,null,null,null,null,null,null,null,null,null,null,null,null,null,null,null,null,null,null,null,null,null,null,null,null,null,null,null,null,null,null,null,null,null,null,null,null,null,null,null,null,null,null,null,null,null,null,null,null,null,null,null,null,null,null,null,null,null,null,null,null,null,null,null,null,null,null,null,null,null,null,null,null,null,null,null,null,null,null,null,null,null,null,null,null,null,null,null,null,null,null,null,null,null,null,null,null,null,null,null,null,null,null,null,null,null,null,null,null,null,null,null,null,null,null,null,null,null,null,null,null,null,null,null,null,null,null,null,null,null,null,null,null,null,null,null,null,null,null,null,null,null,null,null,null,null,null,null,null,null,null,null,null,null,null,null,null,null,null,null,null,null,null,null,null,null,null,null,null,null,null,null,null,null,null,null,null,null,null,null,null,null,null,null,null,null,null,null,null,null,null,null,null,null,null,null,null,null,null,null,null,null,null,null,null,null,null,null,null,null,null,null,null,null,null,null,null,null,null,null,null,null,null,null,null,null,null,null,null,null,null,null,null,null,null,null,null,null,null,null,null,null,null,null,null,null,null,null,null,null,null,null,null,null,null,null,null,null,null,null,null,null,null,null,null,null,null,null,null,null,null,null,null,null,null,null,null,null,null,null,null,null,null,null,null,null,null,null,null,null,null,null,null,null,null,null,null,null,null,null,null,null,null,null,null,null,null,null,null,null,null,null,null,null,null,null,null,null,null,null,null,null,null,null,null,null,null,null,null,null,null,null,null,null,null,null,null,null,null,null,null,null,null,null,null,null,null,null,null,null,null,null,null,null,null,null,null,null,null,null,null,null,null,null,null,null,null,null,null,null,null,null,null,null,null,null,null,null,null,null,null,null,null,null,null,null,null,null,null,null,null,null,null,null,null,null,null,null,null,null,null,null,null,null,null,null,null,null,null,null,null,null,null,null,null,null,null,null,null,null,null,null,null,null,null,null,null,null,null,null,null,null,null,null,null,null,null,null,null,null,null,null,null,null,null,null,null,null,null,null,null,null,null,null,null,null,null,null,null,null,null,null,null,null,null,null,null,null,null,null,null,null,null,null,null,null,null,null,null,null,null,null,null,null,null,null,null,null,null,null,null,null,null,null,null,null,null,null,null,null,null,null,null,null,null,null,null,null,null,null,null,null,null,null,null,null,null,null,null,null,null,null,null,null,null,null,null,null,null,null,null,null,null,null,null,null,null,null,null,null,null,null,null,null,null,null,null,null,null,null,null,null,null,null,null,null,null,null,null,null,null,null,null,null,null,null,null,null,null,null,null,null,null,null,null,null,null,null,null,null,null,null,null,null,null,null,null,null,null,null,null,null,null,null,null,null,null,null,null,null,null,null,null,null,null,null,null,null,null,null,null,null,null,null,null,null,null,null,null,null,null,null,null,null,null,null,null,null,null,null,null,null,null,null,null,null,null,null,null,null,null,null,null,null,null,null,null,null,null,null,null,null,null,null,null,null,null,null,null,null,null,null,null,null,null,null,null,null,null,null,null,null,null,null,null,null,null,null,null,null,null,null,null,null,null,null,null,null,null,null,null,null,null,null,null,null,null,null,null,null,null,null,null,null,null,null,null,null,null,null,null,null,null,null,null,null,null,null,null,null,null,null,null,null,null,null,null,null,null,null,null,null,null,null,null,null,null,null,null,null,null,null,null,null,null,null,null,null,null,null,null,null,null,null,null,null,null,null,null,null,null,null,null,null,null,null,null,null,null,null,null,null,null,null,null,null,null,null,null,null,null,null,null,null,null,null,null,null,null,null,null,null,null,null,null,null,null,null,null,null,null,null,null,null,null,null,null,null,null,null,null,null,null,null,null,null,null,null,null,null,null,null,null,null,null,null,null,null,null,null,null,null,null,null,null,null,null,null,null,null,null,null,null,null,null,null,null,null,null,null,null,null,null,null,null,null,null,null,null,null,null,null,null,null,null,null,null,null,null,null,null,null,null,null,null,null,null,null,null,null,null,null,null,null,null,null,null,null,null,null,null,null,null,null,null,null,null,null,null,null,null,null,null,null,null,null,null,null,null,null,null,null,null,null,null,null,null,null,null,null,null,null,null,null,null,null,null,null,null,null,null,null,null,null,null,null,null,null,null,null,null,null,null,null,null,null,null,null,null,null,null,null,null,null,null,null,null,null,null,null,null,null,null,null,null,null,null,null,null,null,null,null,null,null,null,null,null,null,null,null,null,null,null,null,null,null,null,null,null,null,null,null,null,null,null,null,null,null,null,null,null,null,null,null,null,null,null,null,null,null,null,null,null,null,null,null,null,null,null,null,null,null,null,null,null,null,null,null,null,null,null,null,null,null,null,null,null,null,null,null,null,null,null,null,null,null,null,null,null,null,null,null,null,null,null,null,null,null,null,null,null,null,null,null,null,null,null,null,null,null,null,null,null,null,null,null,null,null,null,null,null,null,null,null,null,null,null,null,null,null,null,null,null,null,null,null,null,null,null,null,null,null,null,null,null,null,null,null,null,null,null,null,null,null,null,null,null,null,null,null,null,null,null,null,null,null,null,null,null,null,null,null,null,null,null,null,null,null,null,null,null,null,null,null,null,null,null,null,null,null,null,null,null,null,null,null,null,null,null,null,null,null,null,null,null,null,null,null,null,null,null,null,null,null,null,null,null,null,null,null,null,null,null,null,null,null,null,null,null,null,null,null,null,null,null,null,null,null,null,null,null,null,null,null,null,null,null,null,null,null,null,null,null,null,null,null,null,null,null,null,null,null,null,null,null,null,null,null,null,null,null,null,null,null,null,null,null,null,null,null,null,null,null,null,null,null,null,null,null,null,null,null,null,null,null,null,null,null,null,null,null,null,null,null,null,null,null,null,null,null,null,null,null,null,null,null,null,null,null,null,null,null,null,null,null,null,null,null,null,null,null,null,null,null,null,null,null,null,null,null,null,null,null,null,null,null,null,null,null,null,null,null,null,null,null,null,null,null,null,null,null,null,null,null,null,null,null,null,null,null,null,null,null,null,null,null,null,null,null,null,null,null,null,null,null,null,null,null,null,null,null,null,null,null,null,null,null,null,null,null,null,null,null,null,null,null,null,null,null,null,null,null,null,null,null,null,null,null,null,null,null,null,null,null,null,null,null,null,null,null,null,null,null,null,null,null,null,null,null,null,null,null,null,null,null,null,null,null,null,null,null,null,null,null,null,null,null,null,null,null,null,null,null,null,null,null,null,null,null,null,null,null,null,null,null,null,null,null,null,null,null,null,null,null,null,null,null,null,null,null,null,null,null,null,null,null,null,null,null,null,null,null,null,null,null,null,null,null,null,null,null,null,null,null,null,null,null,null,null,null,null,null,null,null,null,null,null,null,null,null,null,null,null,null,null,null,null,null,null,null,null,null,null,null,null,null,null,null,null,null,null,null,null,null,null,null,null,null,null,null,null,null,null,null,null,null,null,null,null,null,null,null,null,null,null,null,null,null,null,null,null,null,null,null,null,null,null,null,null,null,null,null,null,null,null,null,null,null,null,null,null,null,null,null,null,null,null,null,null,null,null,null,null,null,null,null,null,null,null,null,null,null,null,null,null,null,null,null,null,null,null,null,null,null,null,null,null,null,null,null,null,null,null,null,null,null,null,null,null,null,null,null,null,null,null,null,null,null,null,null,null,null,null,null,null,null,null,null,null,null,null,null,null,null,null,null,null,null,null,null,null,null,null,null,null,null,null,null,null,null,null,null,null,null,null,null,null,null,null,null,null,null,null,null,null,null,null,null,null,null,null,null,null,null,null,null,null,null,null,null,null,null,null,null,null,null,null,null,null,null,null,null,null,null,null,null,null,null,null,null,null,null,null,null,null,null,null,null,null,null,null,null,null,null,null,null,null,null,null,null,null,null,null,null,null,null,null,null,null,null,null,null,null,null,null,null,null,null,null,null,null,null,null,null,null,null,null,null,null,null,null,null,null,null,null,null,null,null,null,null,null,null,null,null,null,null,null,null,null,null,null,null,null,null,null,null,null,null,null,null,null,null,null,null,null,null,null,null,null,null,null,null,null,null,null,null,null,null,null,null,null,null,null,null,null,null,null,null,null,null,null,null,null,null,null,null,null,null,null,null,null,null,null,null,null,null,null,null,null,null,null,null,null,null,null,null,null,null,null,null,null,null,null,null,null,null,null,null,null,null,null,null,null,null,null,null,null,null,null,null,null,null,null,null,null,null,null,null,null,null,null,null,null,null,null,null,null,null,null,null,null,null,null,null,null,null,null,null,null,null,null,null,null,null,null,null,null,null,null,null,null,null,null,null,null,null,null,null,null,null,null,null,null,null,null,null,null,null,null,null,null,null,null,null,null,null,null,null,null,null,null,null,null,null,null,null,null,null,null,null,null,null,null,null,null,null,null,null,null,null,null,null,null,null,null,null,null,null,null,null,null,null,null,null,null,null,null,null,null,null,null,null,null,null,null,null,null,null,null,null,null,null,null,null,null,null,null,null,null,null,null,null,null,null,null,null,null,null,null,null,null,null,null,null,null,null,null,null,null,null,null,null,null,null,null,null,null,null,null,null,null,null,null,null,null,null,null,null,null,null,null,null,null,null,null,null,null,null,null,null,null,null,null,null,null,null,null,null,null,null,null,null,null,null,null,null,null,null,null,null,null,null,null,null,null,null,null,null,null,null,null,null,null,null,null,null,null,null,null,null,null,null,null,null,null,null,null,null,null,null,null,null,null,null,null,null,null,null,null,null,null,null,null,null,null,null,null,null,null,null,null,null,null,null,null,null,null,null,null,null,null,null,null,null,null,null,null,null,null,null,null,null,null,null,null,null,null,null,null,null,null,null,null,null,null,null,null,null,null,null,null,null,null,null,null,null,null,null,null,null,null,null,null,null,null,null,null,null,null,null,null,null,null,null,null,null,null,null,null,null,null,null,null,null,null,null,null,null,null,null,null,null,null,null,null,null,null,null,null,null,null,null,null,null,null,null,null,null,null,null,null,null,null,null,null,null,null,null,null,null,null,null,null,null,null,null,null,null,null,null,null,null,null,null,null,null,null,null,null,null,null,null,null,null,null,null,null,null,null,null,null,null,null,null,null,null,null,null,null,null,null,null,null,null,null,null,null,null,null,null,null,null,null,null,null,null,null,null,null,null,null,null,null,null,null,null,null,null,null,null,null,null,null,null,null,null,null,null,null,null,null,null,null,null,null,null,null,null,null,null,null,null,null,null,null,null,null,null,null,null,null,null,null,null,null,null,null,null,null,null,null,null,null,null,null,null,null,null,null,null,null,null,null,null,null,null,null,null,null,null,null,null,null,null,null,null,null,null,null,null,null,null,null,null,null,null,null,null,null,null,null,null,null,null,null,null,null,null,null,null,null,null,null,null,null,null,null,null,null,null,null,null,null,null,null,null,null,null,null,null,null,null,null,null,null,null,null,null,null,null,null,null,null,null,null,null,null,null,null,null,null,null,null,null,null,null,null,null,null,null,null,null,null,null,null,null,null,null,null,null,null,null,null,null,null,null,null,null,null,null,null,null,null,null,null,null,null,null,null,null,null,null,null,null,null,null,null,null,null,null,null,null,null,null,null,null,null,null,null,null,null,null,null,null,null,null,null,null,null,null,null,null,null,null,null,null,null,null,null,null,null,null,null,null,null,null,null,null,null,null,null,null,null,null,null,null,null,null,null,null,null,null,null,null,null,null,null,null,null,null,null,null,null,null,null,null,null,null,null,null,null,null,null,null,null,null,null,null,null,null,null,null,null,null,null,null,null,null,null,null,null,null,null,null,null,null,null,null,null,null,null,null,null,null,null,null,null,null,null,null,null,null,null,null,null,null,null,null,null,null,null,null,null,null,null,null,null,null,null,null,null,null,null,null,null,null,null,null,null,null,null,null,null,null,null,null,null,null,null,null,null,null,null,null,null,null,null,null,null,null,null,null,null,null,null,null,null,null,null,null,null,null,null,null,null,null,null,null,null,null,null,null,null,null,null,null,null,null,null,null,null,null,null,null,null,null,null,null,null,null,null,null,null,null,null,null,null,null,null,null,null,null,null,null,null,null,null,null,null,null,null,null,null,null,null,null,null,null,null,null,null,null,null,null,null,null,null,null,null,null,null,null,null,null,null,null,null,null,null,null,null,null,null,null,null,null,null,null,null,null,null,null,null,null,null,null,null,null,null,null,null,null,null,null,null,null,null,null,null,null,null,null,null,null,null,null,null,null,null,null,null,null,null,null,null,null,null,null,null,null,null,null,null,null,null,null,null,null,null,null,null,null,null,null,null,null,null,null,null,null,null,null,null,null,null,null,null,null,null,null,null,null,null,null,null,null,null,null,null,null,null,null,null,null,null,null,null,null,null,null,null,null,null,null,null,null,null,null,null,null,null,null,null,null,null,null,null,null,null,null,null,null,null,null,null,null,null,null,null,null,null,null,null,null,null,null,null,null,null,null,null,null,null,null,null,null,null,null,null,null,null,null,null,null,null,null,null,null,null,null,null,null,null,null,null,null,null,null,null,null,null,null,null,null,null,null,null,null,null,null,null,null,null,null,null,null,null,null,null,null,null,null,null,null,null,null,null,null,null,null,null,null,null,null,null,null,null,null,null,null,null,null,null,null,null,null,null,null,null,null,null,null,null,null,null,null,null,null,null,null,null,null,null,null,null,null,null,null,null,null,null,null,null,null,null,null,null,null,null,null,null,null,null,null,null,null,null,null,null,null,null,null,null,null,null,null,null,null,null,null,null,null,null,null,null,null,null,null,null,null,null,null,null,null,null,null,null,null,null,null,null,null,null,null,null,null,null,null,null,null,null,null,null,null,null,null,null,null,null,null,null,null,null,null,null,null,null,null,null,null,null,null,null,null,null,null,null,null,null,null,null,null,null,null,null,null,null,null,null,null,null,null,null,null,null,null,null,null,null,null,null,null,null,null,null,null,null,null,null,null,null,null,null,null,null,null,null,null,null,null,null,null,null,null,null,null,null,null,null,null,null,null,null,null,null,null,null,null,null,null,null,null,null,null,null,null,null,null,null,null,null,null,null,null,null,null,null,null,null,null,null,null,null,null,null,null,null,null,null,null,null,null,null,null,null,null,null,null,null,null,null,null,null,null,null,null,null,null,null,null,null,null,null,null,null,null,null,null,null,null,null,null,null,null,null,null,null,null,null,null,null,null,null,null,null,null,null,null,null,null,null,null,null,null,null,null,null,null,null,null,null,null,null,null,null,null,null,null,null,null,null,null,null,null,null,null,null,null,null,null,null,null,null,null,null,null,null,null,null,null,null,null,null,null,null,null,null,null,null,null,null,null,null,null,null,null,null,null,null,null,null,null,null,null,null,null,null,null,null,null,null,null,null,null,null,null,null,null,null,null,null,null,null,null,null,null,null,null,null,null,null,null,null,null,null,null,null,null,null,null,null,null,null,null,null,null,null,null,null,null,null,null,null,null,null,null,null,null,null,null,null,null,null,null,null,null,null,null,null,null,null,null,null,null,null,null,null,null,null,null,null,null,null,null,null,null,null,null,null,null,null,null,null,null,null,null,null,null,null,null,null,null,null,null,null,null,null,null,null,null,null,null,null,null,null,null,null,null,null,null,null,null,null,null,null,null,null,null,null,null,null,null,null,null,null,null,null,null,null,null,null,null,null,null,null,null,null,null,null,null,null,null,null,null,null,null,null,null,null,null,null,null,null,null,null,null,null,null,null,null,null,null,null,null,null,null,null,null,null,null,null,null,null,null,null,null,null,null,null,null,null,null,null,null,null,null,null,null,null,null,null,null,null,null,null,null,null,null,null,null,null,null,null,null,null,null,null,null,null,null,null,null,null,null,null,null,null,null,null,null,null,null,null,null,null,null,null,null,null,null,null,null,null,null,null,null,null,null,null,null,null,null,null,null,null,null,null,null,null,null,null,null,null,null,null,null,null,null,null,null,null,null,null,null,null,null,null,null,null,null,null,null,null,null,null,null,null,null,null,null,null,null,null,null,null,null,null,null,null,null,null,null,null,null,null,null,null,null,null,null,null,null,null,null,null,null,null,null,null,null,null,null,null,null,null,null,null,null,null,null,null,null,null,null,null,null,null,null,null,null,null,null,null,null,null,null,null,null,null,null,null,null,null,null,null,null,null,null,null,null,null,null,null,null,null,null,null,null,null,null,null,null,null,null,null,null,null,null,null,null,null,null,null,null,null,null,null,null,null,null,null,null,null,null,null,null,null,null,null,null,null,null,null,null,null,null,null,null,null,null,null,null,null,null,null,null,null,null,null,null,null,null,null,null,null,null,null,null,null,null,null,null,null,null,null,null,null,null,null,null,null,null,null,null,null,null,null,null,null,null,null,null,null,null,null,null,null,null,null,null,null,null,null,null,null,null,null,null,null,null,null,null,null,null,null,null,null,null,null,null,null,null,null,null,null,null,null,null,null,null,null,null,null,null,null,null,null,null,null,null,null,null,null,null,null,null,null,null,null,null,null,null,null,null,null,null,null,null,null,null,null,null,null,null,null,null,null,null,null,null,null,null,null,null,null,null,null,null,null,null,null,null,null,null,null,null,null,null,null,null,null,null,null,null,null,null,null,null,null,null,null,null,null,null,null,null,null,null,null,null,null,null,null,null,null,null,null,null,null,null,null,null,null,null,null,null,null,null,null,null,null,null,null,null,null,null,null,null,null,null,null,null,null,null,null,null,null,null,null,null,null,null,null,null,null,null,null,null,null,null,null,null,null,null,null,null,null,null,null,null,null,null,null,null,null,null,null,null,null,null,null,null,null,null,null,null,null,null,null,null,null,null,null,null,null,null,null,null,null,null,null,null,null,null,null,null,null,null,null,null,null,null,null,null,null,null,null,null,null,null,null,null,null,null,null,null,null,null,null,null,null,null,null,null,null,null,null,null,null,null,null,null,null,null,null,null,null,null,null,null,null,null,null,null,null,null,null,null,null,null,null,null,null,null,null,null,null,null,null,null,null,null,null,null,null,null,null,null,null,null,null,null,null,null,null,null,null,null,null,null,null,null,null,null,null,null,null,null,null,null,null,null,null,null,null,null,null,null,null,null,null,null,null,null,null,null,null,null,null,null,null,null,null,null,null,null,null,null,null,null,null,null,null,null,null,null,null,null,null,null,null,null,null,null,null,null,null,null,null,null,null,null,null,null,null,null,null,null,null,null,null,null,null,null,null,null,null,null,null,null,null,null,null,null,null,null,null,null,null,null,null,null,null,null,null,null,null,null,null,null,null,null,null,null,null,null,null,null,null,null,null,null,null,null,null,null,null,null,null,null,null,null,null,null,null,null,null,null,null,null,null,null,null,null,null,null,null,null,null,null,null,null,null,null,null,null,null,null,null,null,null,null,null,null,null,null,null,null,null,null,null,null,null,null,null,null,null,null,null,null,null,null,null,null,null,null,null,null,null,null,null,null,null,null,null,null,null,null,null,null,null,null,null,null,null,null,null,null,null,null,null,null,null,null,null,null,null,null,null,null,null,null,null,null,null,null,null,null,null,null,null,null,null,null,null,null,null,null,null,null,null,null,null,null,null,null,null,null,null,null,null,null,null,null,null,null,null,null,null,null,null,null,null,null,null,null,null,null,null,null,null,null,null,null,null,null,null,null,null,null,null,null,null,null,null,null,null,null,null,null,null,null,null,null,null,null,null,null,null,null,null,null,null,null,null,null,null,null,null,null,null,null,null,null,null,null,null,null,null,null,null,null,null,null,null,null,null,null,null,null,null,null,null,null,null,null,null,null,null,null,null,null,null,null,null,null,null,null,null,null,null,null,null,null,null,null,null,null,null,null,null,null,null,null,null,null,null,null,null,null,null,null,null,null,null,null,null,null,null,null,null,null,null,null,null,null,null,null,null,null,null,null,null,null,null,null,null,null,null,null,null,null,null,null,null,null,null,null,null,null,null,null,null,null,null,null,null,null,null,null,null,null,null,null,null,null,null,null,null,null,null,null,null,null,null,null,null,null,null,null,null,null,null,null,null,null,null,null,null,null,null,null,null,null,null,null,null,null,null,null,null,null,null,null,null,null,null,null,null,null,null,null,null,null,null,null,null,null,null,null,null,null,null,null,null,null,null,null,null,null,null,null,null,null,null,null,null,null,null,null,null,null,null,null,null,null,null,null,null,null,null,null,null,null,null,null,null,null,null,null,null,null,null,null,null,null,null,null,null,null,null,null,null,null,null,null,null,null,null,null,null,null,null,null,null,null,null,null,null,null,null,null,null,null,null,null,null,null,null,null,null,null,null,null,null,null,null,null,null,null,null,null,null,null,null,null,null,null,null,null,null,null,null,null,null,null,null,null,null,null,null,null,null,null,null,null,null,null,null,null,null,null,null,null,null,null,null,null,null,null,null,null,null,null,null,null,null,null,null,null,null,null,null,null,null,null,null,null,null,null,null,null,null,null,null,null,null,null,null,null,null,null,null,null,null,null,null,null,null,null,null,null,null,null,null,null,null,null,null,null,null,null,null,null,null,null,null,null,null,null,null,null,null,null,null,null,null,null,null,null,null,null,null,null,null,null,null,null,null,null,null,null,null,null,null,null,null,null,null,null,null,null,null,null,null,null,null,null,null,null,null,null,null,null,null,null,null,null,null,null,null,null,null,null,null,null,null,null,null,null,null,null,null,null,null,null,null,null,null,null,null,null,null,null,null,null,null,null,null,null,null,null,null,null,null,null,null,null,null,null,null,null,null,null,null,null,null,null,null,null,null,null,null,null,null,null,null,null,null,null,null,null,null,null,null,null,null,null,null,null,null,null,null,null,null,null,null,null,null,null,null,null,null,null,null,null,null,null,null,null,null,null,null,null,null,null,null,null,null,null,null,null,null,null,null,null,null,null,null,null,null,null,null,null,null,null,null,null,null,null,null,null,null,null,null,null,null,null,null,null,null,null,null,null,null,null,null,null,null,null,null,null,null,null,null,null,null,null,null,null,null,null,null,null,null,null,null,null,null,null,null,null,null,null,null,null,null,null,null,null,null,null,null,null,null,null,null,null,null,null,null,null,null,null,null,null,null,null,null,null,null,null,null,null,null,null,null,null,null,null,null,null,null,null,null,null,null,null,null,null,null,null,null,null,null,null,null,null,null,null,null,null,null,null,null,null,null,null,null,null,null,null,null,null,null,null,null,null,null,null,null,null,null,null,null,null,null,null,null,null,null,null,null,null,null,null,null,null,null,null,null,null,null,null,null,null,null,null,null,null,null,null,null,null,null,null,null,null,null,null,null,null,null,null,null,null,null,null,null,null,null,null,null,null,null,null,null,null,null,null,null,null,null,null,null,null,null,null,null,null,null,null,null,null,null,null,null,null,null,null,null,null,null,null,null,null,null,null,null,null,null,null,null,null,null,null,null,null,null,null,null,null,null,null,null,null,null,null,null,null,null,null,null,null,null,null,null,null,null,null,null,null,null,null,null,null,null,null,null,null,null,null,null,null,null,null,null,null,null,null,null,null,null,null,null,null,null,null,null,null,null,null,null,null,null,null,null,null,null,null,null,null,null,null,null,null,null,null,null,null,null,null,null,null,null,null,null,null,null,null,null,null,null,null,null,null,null,null,null,null,null,null,null,null,null,null,null,null,null,null,null,null,null,null,null,null,null,null,null,null,null,null,null,null,null,null,null,null,null,null,null,null,null,null,null,null,null,null,null,null,null,null,null,null,null,null,null,null,null,null,null,null,null,null,null,null,null,null,null,null,null,null,null,null,null,null,null,null,null,null,null,null,null,null,null,null,null,null,null,null,null,null,null,null,null,null,null,null,null,null,null,null,null,null,null,null,null,null,null,null,null,null,null,null,null,null,null,null,null,null,null,null,null,null,null,null,null,null,null,null,null,null,null,null,null,null,null,null,null,null,null,null,null,null,null,null,null,null,null,null,null,null,null,null,null,null,null,null,null,null,null,null,null,null,null,null,null,null,null,null,null,null,null,null,null,null,null,null,null,null,null,null,null,null,null,null,null,null,null,null,null,null,null,null,null,null,null,null,null,null,null,null,null,null,null,null,null,null,null,null,null,null,null,null,null,null,null,null,null,null,null,null,null,null,null,null,null,null,null,null,null,null,null,null,null,null,null,null,null,null,null,null,null,null,null,null,null,null,null,null,null,null,null,null,null,null,null,null,null,null,null,null,null,null,null,null,null,null,null,null,null,null,null,null,null,null,null,null,null,null,null,null,null,null,null,null,null,null,null,null,null,null,null,null,null,null,null,null,null,null,null,null,null,null,null,null,null,null,null,null,null,null,null,null,null,null,null,null,null,null,null,null,null,null,null,null,null,null,null,null,null,null,null,null,null,null,null,null,null,null,null,null,null,null,null,null,null,null,null,null,null,null,null,null,null,null,null,null,null,null,null,null,null,null,null,null,null,null,null,null,null,null,null,null,null,null,null,null,null,null,null,null,null,null,null,null,null,null,null,null,null,null,null,null,null,null,null,null,null,null,null,null,null,null,null,null,null,null,null,null,null,null,null,null,null,null,null,null,null,null,null,null,null,null,null,null,null,null,null,null,null,null,null,null,null,null,null,null,null,null,null,null,null,null,null,null,null,null,null,null,null,null,null,null,null,null,null,null,null,null,null,null,null,null,null,null,null,null,null,null,null,null,null,null,null,null,null,null,null,null,null,null,null,null,null,null,null,null,null,null,null,null,null,null,null,null,null,null,null,null,null,null,null,null,null,null,null,null,null,null,null,null,null,null,null,null,null,null,null,null,null,null,null,null,null,null,null,null,null,null,null,null,null,null,null,null,null,null,null,null,null,null,null,null,null,null,null,null,null,null,null,null,null,null,null,null,null,null,null,null,null,null,null,null,null,null,null,null,null,null,null,null,null,null,null,null,null,null,null,null,null,null,null,null,null,null,null,null,null,null,null,null,null,null,null,null,null,null,null,null,null,null,null,null,null,null,null,null,null,null,null,null,null,null,null,null,null,null,null,null,null,null,null,null,null,null,null,null,null,null,null,null,null,null,null,null,null,null,null,null,null,null,null,null,null,null,null,null,null,null,null,null,null,null,null,null,null,null,null,null,null,null,null,null,null,null,null,null,null,null,null,null,null,null,null,null,null,null,null,null,null,null,null,null,null,null,null,null,null,null,null,null,null,null,null,null,null,null,null,null,null,null,null,null,null,null,null,null,null,null,null,null,null,null,null,null,null,null,null,null,null,null,null,null,null,null,null,null,null,null,null,null,null,null,null,null,null,null,null,null,null,null,null,null,null,null,null,null,null,null,null,null,null,null,null,null,null,null,null,null,null,null,null,null,null,null,null,null,null,null,null,null,null,null,null,null,null,null,null,null,null,null,null,null,null,null,null,null,null,null,null,null,null,null,null,null,null,null,null,null,null,null,null,null,null,null,null,null,null,null,null,null,null,null,null,null,null,null,null,null,null,null,null,null,null,null,null,null,null,null,null,null,null,null,null,null,null,null,null,null,null,null,null,null,null,null,null,null,null,null,null,null,null,null,null,null,null,null,null,null,null,null,null,null,null,null,null,null,null,null,null,null,null,null,null,null,null,null,null,null,null,null,null,null,null,null,null,null,null,null,null,null,null,null,null,null,null,null,null,null,null,null,null,null,null,null,null,null,null,null,null,null,null,null,null,null,null,null,null,null,null,null,null,null,null,null,null,null,null,null,null,null,null,null,null,null,null,null,null,null,null,null,null,null,null,null,null,null,null,null,null,null,null,null,null,null,null,null,null,null,null,null,null,null,null,null,null,null,null,null,null,null,null,null,null,null,null,null,null,null,null,null,null,null,null,null,null,null,null,null,null,null,null,null,null,null,null,null,null,null,null,null,null,null,null,null,null,null,null,null,null,null,null,null,null,null,null,null,null,null,null,null,null,null,null,null,null,null,null,null,null,null,null,null,null,null,null,null,null,null,null,null,null,null,null,null,null,null,null,null,null,null,null,null,null,null,null,null,null,null,null,null,null,null,null,null,null,null,null,null,null,null,null,null,null,null,null,null,null,null,null,null,null,null,null,null,null,null,null,null,null,null,null,null,null,null,null,null,null,null,null,null,null,null,null,null,null,null,null,null,null,null,null,null,null,null,null,null,null,null,null,null,null,null,null,null,null,null,null,null,null,null,null,null,null,null,null,null,null,null,null,null,null,null,null,null,null,null,null,null,null,null,null,null,null,null,null,null,null,null,null,null,null,null,null,null,null,null,null,null,null,null,null,null,null,null,null,null,null,null,null,null,null,null,null,null,null,null,null,null,null,null,null,null,null,null,null,null,null,null,null,null,null,null,null,null,null,null,null,null,null,null,null,null,null,null,null,null,null,null,null,null,null,null,null,null,null,null,null,null,null,null,null,null,null,null,null,null,null,null,null,null,null,null,null,null,null,null,null,null,null,null,null,null,null,null,null,null,null,null,null,null,null,null,null,null,null,null,null,null,null,null,null,null,null,null,null,null,null,null,null,null,null,null,null,null,null,null,null,null,null,null,null,null,null,null,null,null,null,null,null,null,null,null,null,null,null,null,null,null,null,null,null,null,null,null,null,null,null,null,null,null,null,null,null,null,null,null,null,null,null,null,null,null,null,null,null,null,null,null,null,null,null,null,null,null,null,null,null,null,null,null,null,null,null,null,null,null,null,null,null,null,null,null,null,null,null,null,null,null,null,null,null,null,null,null,null,null,null,null,null,null,null,null,null,null,null,null,null,null,null,null,null,null,null,null,null,null,null,null,null,null,null,null,null,null,null,null,null,null,null,null,null,null,null,null,null,null,null,null,null,null,null,null,null,null,null,null,null,null,null,null,null,null,null,null,null,null,null,null,null,null,null,null,null,null,null,null,null,null,null,null,null,null,null,null,null,null,null,null,null,null,null,null,null,null,null,null,null,null,null,null,null,null,null,null,null,null,null,null,null,null,null,null,null,null,null,null,null,null,null,null,null,null,null,null,null,null,null,null,null,null,null,null,null,null,null,null,null,null,null,null,null,null,null,null,null,null,null,null,null,null,null,null,null,null,null,null,null,null,null,null,null,null,null,null,null,null,null,null,null,null,null,null,null,null,null,null,null,null,null,null,null,null,null,null,null,null,null,null,null,null,null,null,null,null,null,null,null,null,null,null,null,null,null,null,null,null,null,null,null,null,null,null,null,null,null,null,null,null,null,null,null,null,null,null,null,null,null,null,null,null,null,null,null,null,null,null,null,null,null,null,null,null,null,null,null,null,null,null,null,null,null,null,null,null,null,null,null,null,null,null,null,null,null,null,null,null,null,null,null,null,null,null,null,null,null,null,null,null,null,null,null,null,null,null,null,null,null,null,null,null,null,null,null,null,null,null,null,null,null,null,null,null,null,null,null,null,null,null,null,null,null,null,null,null,null,null,null,null,null,null,null,null,null,null,null,null,null,null,null,null,null,null,null,null,null,null,null,null,null,null,null,null,null,null,null,null,null,null,null,null,null,null,null,null,null,null,null,null,null,null,null,null,null,null,null,null,null,null,null,null,null,null,null,null,null,null,null,null,null,null,null,null,null,null,null,null,null,null,null,null,null,null,null,null,null,null,null,null,null,null,null,null,null,null,null,null,null,null,null,null,null,null,null,null,null,null,null,null,null,null,null,null,null,null,null,null,null,null,null,null,null,null,null,null,null,null,null,null,null,null,null,null,null,null,null,null,null,null,null,null,null,null,null,null,null,null,null,null,null,null,null,null,null,null,null,null,null,null,null,null,null,null,null,null,null,null,null,null,null,null,null,null,null,null,null,null,null,null,null,null,null,null,null,null,null,null,null,null,null,null,null,null,null,null,null,null,null,null,null,null,null,null,null,null,null,null,null,null,null,null,null,null,null,null,null,null,null,null,null,null,null,null,null,null,null,null,null,null,null,null,null,null,null,null,null,null,null,null,null,null,null,null,null,null,null,null,null,null,null,null,null,null,null,null,null,null,null,null,null,null,null,null,null,null,null,null,null,null,null,null,null,null,null,null,null,null,null,null,null,null,null,null,null,null,null,null,null,null,null,null,null,null,null,null,null,null,null,null,null,null,null,null,null,null,null,null,null,null,null,null,null,null,null,null,null,null,null,null,null,null,null,null,null,null,null,null,null,null,null,null,null,null,null,null,null,null,null,null,null,null,null,null,null,null,null,null,null,null,null,null,null,null,null,null,null,null,null,null,null,null,null,null,null,null,null,null,null,null,null,null,null,null,null,null,null,null,null,null,null,null,null,null,null,null,null,null,null,null,null,null,null,null,null,null,null,null,null,null,null,null,null,null,null,null,null,null,null,null,null,null,null,null,null,null,null,null,null,null,null,null,null,null,null,null,null,null,null,null,null,null,null,null,null,null,null,null,null,null,null,null,null,null,null,null,null,null,null,null,null,null,null,null,null,null,null,null,null,null,null,null,null,null,null,null,null,null,null,null,null,null,null,null,null,null,null,null,null,null,null,null,null,null,null,null,null,null,null,null,null,null,null,null,null,null,null,null,null,null,null,null,null,null,null,null,null,null,null,null,null,null,null,null,null,null,null,null,null,null,null,null,null,null,null,null,null,null,null,null,null,null,null,null,null,null,null,null,null,null,null,null,null,null,null,null,null,null,null,null,null,null,null,null,null,null,null,null,null,null,null,null,null,null,null,null,null,null,null,null,null,null,null,null,null,null,null,null,null,null,null,null,null,null,null,null,null,null,null,null,null,null,null,null,null,null,null,null,null,null,null,null,null,null,null,null,null,null,null,null,null,null,null,null,null,null,null,null,null,null,null,null,null,null,null,null,null,null,null,null,null,null,null,null,null,null,null,null,null,null,null,null,null,null,null,null,null,null,null,null,null,null,null,null,null,null,null,null,null,null,null,null,null,null,null,null,null,null,null,null,null,null,null,null,null,null,null,null,null,null,null,null,null,null,null,null,null,null,null,null,null,null,null,null,null,null,null,null,null,null,null,null,null,null,null,null,null,null,null,null,null,null,null,null,null,null,null,null,null,null,null,null,null,null,null,null,null,null,null,null,null,null,null,null,null,null,null,null,null,null,null,null,null,null,null,null,null,null,null,null,null,null,null,null,null,null,null,null,null,null,null,null,null,null,null,null,null,null,null,null,null,null,null,null,null,null,null,null,null,null,null,null,null,null,null,null,null,null,null,null,null,null,null,null,null,null,null,null,null,null,null,null,null,null,null,null,null,null,null,null,null,null,null,null,null,null,null,null,null,null,null,null,null,null,null,null,null,null,null,null,null,null,null,null,null,null,null,null,null,null,null,null,null,null,null,null,null,null,null,null,null,null,null,null,null,null,null,null,null,null,null,null,null,null,null,null,null,null,null,null,null,null,null,null,null,null,null,null,null,null,null,null,null,null,null,null,null,null,null,null,null,null,null,null,null,null,null,null,null,null,null,null,null,null,null,null,null,null,null,null,null,null,null,null,null,null,null,null,null,null,null,null,null,null,null,null,null,null,null,null,null,null,null,null,null,null,null,null,null,null,null,null,null,null,null,null,null,null,null,null,null,null,null,null,null,null,null,null,null,null,null,null,null,null,null,null,null,null,null,null,null,null,null,null,null,null,null,null,null,null,null,null,null,null,null,null,null,null,null,null,null,null,null,null,null,null,null,null,null,null,null,null,null,null,null,null,null,null,null,null,null,null,null,null,null,null,null,null,null,null,null,null,null,null,null,null,null,null,null,null,null,null,null,null,null,null,null,null,null,null,null,null,null,null,null,null,null,null,null,null,null,null,null,null,null,null,null,null,null,null,null,null,null,null,null,null,null,null,null,null,null,null,null,null,null,null,null,null,null,null,null,null,null,null,null,null,null,null,null,null,null,null,null,null,null,null,null,null,null,null,null,null,null,null,null,null,null,null,null,null,null,null,null,null,null,null,null,null,null,null,null,null,null,null,null,null,null,null,null,null,null,null,null,null,null,null,null,null,null,null,null,null,null,null,null,null,null,null,null,null,null,null,null,null,null,null,null,null,null,null,null,null,null,null,null,null,null,null,null,null,null,null,null,null,null,null,null,null,null,null,null,null,null,null,null,null,null,null,null,null,null,null,null,null,null,null,null,null,null,null,null,null,null,null,null,null,null,null,null,null,null,null,null,null,null,null,null,null,null,null,null,null,null,null,null,null,null,null,null,null,null,null,null,null,null,null,null,null,null,null,null,null,null,null,null,null,null,null,null,null,null,null,null,null,null,null,null,null,null,null,null,null,null,null,null,null,null,null,null,null,null,null,null,null,null,null,null,null,null,null,null,null,null,null,null,null,null,null,null,null,null,null,null,null,null,null,null,null,null,null,null,null,null,null,null,null,null,null,null,null,null,null,null,null,null,null,null,null,null,null,null,null,null,null,null,null,null,null,null,null,null,null,null,null,null,null,null,null,null,null,null,null,null,null,null,null,null,null,null,null,null,null,null,null,null,null,null,null,null,null,null,null,null,null,null,null,null,null,null,null,null,null,null,null,null,null,null,null,null,null,null,null,null,null,null,null,null,null,null,null,null,null,null,null,null,null,null,null,null,null,null,null,null,null,null,null,null,null,null,null,null,null,null,null,null,null,null,null,null,null,null,null,null,null,null,null,null,null,null,null,null,null,null,null,null,null,null,null,null,null,null,null,null,null,null,null,null,null,null,null,null,null,null,null,null,null,null,null,null,null,null,null,null,null,null,null,null,null,null,null,null,null,null,null,null,null,null,null,null,null,null,null,null,null,null,null,null,null,null,null,null,null,null,null,null,null,null,null,null,null,null,null,null,null,null,null,null,null,null,null,null,null,null,null,null,null,null,null,null,null,null,null,null,null,null,null,null,null,null,null,null,null,null,null,null,null,null,null,null,null,null,null,null,null,null,null,null,null,null,null,null,null,null,null,null,null,null,null,null,null,null,null,null,null,null,null,null,null,null,null,null,null,null,null,null,null,null,null,null,null,null,null,null,null,null,null,null,null,null,null,null,null,null,null,null,null,null,null,null,null,null,null,null,null,null,null,null,null,null,null,null,null,null,null,null,null,null,null,null,null,null,null,null,null,null,null,null,null,null,null,null,null,null,null,null,null,null,null,null,null,null,null,null,null,null,null,null,null,null,null,null,null,null,null,null,null,null,null,null,null,null,null,null,null,null,null,null,null,null,null,null,null,null,null,null,null,null,null,null,null,null,null,null,null,null,null,null,null,null,null,null,null,null,null,null,null,null,null,null,null,null,null,null,null,null,null,null,null,null,null,null,null,null,null,null,null,null,null,null,null,null,null,null,null,null,null,null,null,null,null,null,null,null,null,null,null,null,null,null,null,null,null,null,null,null,null,null,null,null,null,null,null,null,null,null,null,null,null,null,null,null,null,null,null,null,null,null,null,null,null,null,null,null,null,null,null,null,null,null,null,null,null,null,null,null,null,null,null,null,null,null,null,null,null,null,null,null,null,null,null,null,null,null,null,null,null,null,null,null,null,null,null,null,null,null,null,null,null,null,null,null,null,null,null,null,null,null,null,null,null,null,null,null,null,null,null,null,null,null,null,null,null,null,null,null,null,null,null,null,null,null,null,null,null,null,null,null,null,null,null,null,null,null,null,null,null,null,null,null,null,null,null,null,null,null,null,null,null,null,null,null,null,null,null,null,null,null,null,null,null,null,null,null,null,null,null,null,null,null,null,null,null,null,null,null,null,null,null,null,null,null,null,null,null,null,null,null,null,null,null,null,null,null,null,null,null,null,null,null,null,null,null,null,null,null,null,null,null,null,null,null,null,null,null,null,null,null,null,null,null,null,null,null,null,null,null,null,null,null,null,null,null,null,null,null,null,null,null,null,null,null,null,null,null,null,null,null,null,null,null,null,null,null,null,null,null,null,null,null,null,{"$f":"SUM(H26:XFC26)","v":0}]
[null,"הליכונים "]
[null,"הליכון קידמי פשוט",1,200,200,null,null,0]
[null,"הליכון אחורי ק",1,1400,1400,null,null,0]
[null,"הליכון אחורי ב",1,1850,1850,null,null,0]
[null,"הליכון אחורי ג",1,2000,2000,null,null,0]
[null,"הליכון אמות הדראולי",1,3800,3800,null,null,0]
[null,"הליכון אמות רגיל",1,800,800,null,null,0]
[null,"רולטור בסיסי",1,450,450,null,null,0]
[null,"רולטור מיוחד תמיכות",1,1790,1790,null,null,0]
[null,"הליכון פייסר",1,17550,17550,null,null,0]
[null,"הליכון גרילו",1,12450,12450,null,null,0]
[null,"הליכון אוכף",1,10500,10500,null,null,0]
[null,"סה\"כ עלות הליכונים כולל מע\"מ",null,null,{"$f":"SUM(E28:E38)","v":52790},null,null,{"$f":"SUM(H28:H38)","v":0},{"$f":"B39","v":"סה\"כ עלות הליכונים כולל מע\"מ"},null,{"$f":"B39","v":"סה\"כ עלות הליכונים כולל מע\"מ"},null,null,{"$f":"SUM(N28:N38)","v":0}]
[null,"מנופים וערסלים"]
[null,"מנוף תקרה+ התקנה",1,25000,25000,null,null,0]
[null,"מנוף רצפה",1,13900,13900,null,null,0]
[null,"מנופי העמדה",1,14000,14000,null,null,0]
[null,"ערסלים",1,1800,1800,null,null,0]
[null,"תוספת לערסלים מיוחדים",1,5500,5500,null,null,0]
[null,"סה\"כ עלות מנופים וערסלים כולל מע\"מ",null,null,{"$f":"SUM(E41:E45)","v":60200},null,null,{"$f":"SUM(H41:H45)","v":0},{"$f":"B46","v":"סה\"כ עלות מנופים וערסלים כולל מע\"מ"},null,{"$f":"B46","v":"סה\"כ עלות מנופים וערסלים כולל מע\"מ"},null,null,{"$f":"SUM(N41:N45)","v":0},null,null,null,null,null,null,null,null,null,null,null,null,null,null,null,null,null,null,null,null,null,null,null,null,null,null,null,null,null,null,null,null,null,null,null,null,null,null,null,null,null,null,null,null,null,null,null,null,null,null,null,null,null,null,null,null,null,null,null,null,null,null,null,null,null,null,null,null,null,null,null,null,null,null,null,null,null,null,null,null,null,null,null,null,null,null,null,null,null,null,null,null,null,null,null,null,null,null,null,null,null,null,null,null,null,null,null,null,null,null,null,null,null,null,null,null,null,null,null,null,null,null,null,null,null,null,null,null,null,null,null,null,null,null,null,null,null,null,null,null,null,null,null,null,null,null,null,null,null,null,null,null,null,null,null,null,null,null,null,null,null,null,null,null,null,null,null,null,null,null,null,null,null,null,null,null,null,null,null,null,null,null,null,null,null,null,null,null,null,null,null,null,null,null,null,null,null,null,null,null,null,null,null,null,null,null,null,null,null,null,null,null,null,null,null,null,null,null,null,null,null,null,null,null,null,null,null,null,null,null,null,null,null,null,null,null,null,null,null,null,null,null,null,null,null,null,null,null,null,null,null,null,null,null,null,null,null,null,null,null,null,null,null,null,null,null,null,null,null,null,null,null,null,null,null,null,null,null,null,null,null,null,null,null,null,null,null,null,null,null,null,null,null,null,null,null,null,null,null,null,null,null,null,null,null,null,null,null,null,null,null,null,null,null,null,null,null,null,null,null,null,null,null,null,null,null,null,null,null,null,null,null,null,null,null,null,null,null,null,null,null,null,null,null,null,null,null,null,null,null,null,null,null,null,null,null,null,null,null,null,null,null,null,null,null,null,null,null,null,null,null,null,null,null,null,null,null,null,null,null,null,null,null,null,null,null,null,null,null,null,null,null,null,null,null,null,null,null,null,null,null,null,null,null,null,null,null,null,null,null,null,null,null,null,null,null,null,null,null,null,null,null,null,null,null,null,null,null,null,null,null,null,null,null,null,null,null,null,null,null,null,null,null,null,null,null,null,null,null,null,null,null,null,null,null,null,null,null,null,null,null,null,null,null,null,null,null,null,null,null,null,null,null,null,null,null,null,null,null,null,null,null,null,null,null,null,null,null,null,null,null,null,null,null,null,null,null,null,null,null,null,null,null,null,null,null,null,null,null,null,null,null,null,null,null,null,null,null,null,null,null,null,null,null,null,null,null,null,null,null,null,null,null,null,null,null,null,null,null,null,null,null,null,null,null,null,null,null,null,null,null,null,null,null,null,null,null,null,null,null,null,null,null,null,null,null,null,null,null,null,null,null,null,null,null,null,null,null,null,null,null,null,null,null,null,null,null,null,null,null,null,null,null,null,null,null,null,null,null,null,null,null,null,null,null,null,null,null,null,null,null,null,null,null,null,null,null,null,null,null,null,null,null,null,null,null,null,null,null,null,null,null,null,null,null,null,null,null,null,null,null,null,null,null,null,null,null,null,null,null,null,null,null,null,null,null,null,null,null,null,null,null,null,null,null,null,null,null,null,null,null,null,null,null,null,null,null,null,null,null,null,null,null,null,null,null,null,null,null,null,null,null,null,null,null,null,null,null,null,null,null,null,null,null,null,null,null,null,null,null,null,null,null,null,null,null,null,null,null,null,null,null,null,null,null,null,null,null,null,null,null,null,null,null,null,null,null,null,null,null,null,null,null,null,null,null,null,null,null,null,null,null,null,null,null,null,null,null,null,null,null,null,null,null,null,null,null,null,null,null,null,null,null,null,null,null,null,null,null,null,null,null,null,null,null,null,null,null,null,null,null,null,null,null,null,null,null,null,null,null,null,null,null,null,null,null,null,null,null,null,null,null,null,null,null,null,null,null,null,null,null,null,null,null,null,null,null,null,null,null,null,null,null,null,null,null,null,null,null,null,null,null,null,null,null,null,null,null,null,null,null,null,null,null,null,null,null,null,null,null,null,null,null,null,null,null,null,null,null,null,null,null,null,null,null,null,null,null,null,null,null,null,null,null,null,null,null,null,null,null,null,null,null,null,null,null,null,null,null,null,null,null,null,null,null,null,null,null,null,null,null,null,null,null,null,null,null,null,null,null,null,null,null,null,null,null,null,null,null,null,null,null,null,null,null,null,null,null,null,null,null,null,null,null,null,null,null,null,null,null,null,null,null,null,null,null,null,null,null,null,null,null,null,null,null,null,null,null,null,null,null,null,null,null,null,null,null,null,null,null,null,null,null,null,null,null,null,null,null,null,null,null,null,null,null,null,null,null,null,null,null,null,null,null,null,null,null,null,null,null,null,null,null,null,null,null,null,null,null,null,null,null,null,null,null,null,null,null,null,null,null,null,null,null,null,null,null,null,null,null,null,null,null,null,null,null,null,null,null,null,null,null,null,null,null,null,null,null,null,null,null,null,null,null,null,null,null,null,null,null,null,null,null,null,null,null,null,null,null,null,null,null,null,null,null,null,null,null,null,null,null,null,null,null,null,null,null,null,null,null,null,null,null,null,null,null,null,null,null,null,null,null,null,null,null,null,null,null,null,null,null,null,null,null,null,null,null,null,null,null,null,null,null,null,null,null,null,null,null,null,null,null,null,null,null,null,null,null,null,null,null,null,null,null,null,null,null,null,null,null,null,null,null,null,null,null,null,null,null,null,null,null,null,null,null,null,null,null,null,null,null,null,null,null,null,null,null,null,null,null,null,null,null,null,null,null,null,null,null,null,null,null,null,null,null,null,null,null,null,null,null,null,null,null,null,null,null,null,null,null,null,null,null,null,null,null,null,null,null,null,null,null,null,null,null,null,null,null,null,null,null,null,null,null,null,null,null,null,null,null,null,null,null,null,null,null,null,null,null,null,null,null,null,null,null,null,null,null,null,null,null,null,null,null,null,null,null,null,null,null,null,null,null,null,null,null,null,null,null,null,null,null,null,null,null,null,null,null,null,null,null,null,null,null,null,null,null,null,null,null,null,null,null,null,null,null,null,null,null,null,null,null,null,null,null,null,null,null,null,null,null,null,null,null,null,null,null,null,null,null,null,null,null,null,null,null,null,null,null,null,null,null,null,null,null,null,null,null,null,null,null,null,null,null,null,null,null,null,null,null,null,null,null,null,null,null,null,null,null,null,null,null,null,null,null,null,null,null,null,null,null,null,null,null,null,null,null,null,null,null,null,null,null,null,null,null,null,null,null,null,null,null,null,null,null,null,null,null,null,null,null,null,null,null,null,null,null,null,null,null,null,null,null,null,null,null,null,null,null,null,null,null,null,null,null,null,null,null,null,null,null,null,null,null,null,null,null,null,null,null,null,null,null,null,null,null,null,null,null,null,null,null,null,null,null,null,null,null,null,null,null,null,null,null,null,null,null,null,null,null,null,null,null,null,null,null,null,null,null,null,null,null,null,null,null,null,null,null,null,null,null,null,null,null,null,null,null,null,null,null,null,null,null,null,null,null,null,null,null,null,null,null,null,null,null,null,null,null,null,null,null,null,null,null,null,null,null,null,null,null,null,null,null,null,null,null,null,null,null,null,null,null,null,null,null,null,null,null,null,null,null,null,null,null,null,null,null,null,null,null,null,null,null,null,null,null,null,null,null,null,null,null,null,null,null,null,null,null,null,null,null,null,null,null,null,null,null,null,null,null,null,null,null,null,null,null,null,null,null,null,null,null,null,null,null,null,null,null,null,null,null,null,null,null,null,null,null,null,null,null,null,null,null,null,null,null,null,null,null,null,null,null,null,null,null,null,null,null,null,null,null,null,null,null,null,null,null,null,null,null,null,null,null,null,null,null,null,null,null,null,null,null,null,null,null,null,null,null,null,null,null,null,null,null,null,null,null,null,null,null,null,null,null,null,null,null,null,null,null,null,null,null,null,null,null,null,null,null,null,null,null,null,null,null,null,null,null,null,null,null,null,null,null,null,null,null,null,null,null,null,null,null,null,null,null,null,null,null,null,null,null,null,null,null,null,null,null,null,null,null,null,null,null,null,null,null,null,null,null,null,null,null,null,null,null,null,null,null,null,null,null,null,null,null,null,null,null,null,null,null,null,null,null,null,null,null,null,null,null,null,null,null,null,null,null,null,null,null,null,null,null,null,null,null,null,null,null,null,null,null,null,null,null,null,null,null,null,null,null,null,null,null,null,null,null,null,null,null,null,null,null,null,null,null,null,null,null,null,null,null,null,null,null,null,null,null,null,null,null,null,null,null,null,null,null,null,null,null,null,null,null,null,null,null,null,null,null,null,null,null,null,null,null,null,null,null,null,null,null,null,null,null,null,null,null,null,null,null,null,null,null,null,null,null,null,null,null,null,null,null,null,null,null,null,null,null,null,null,null,null,null,null,null,null,null,null,null,null,null,null,null,null,null,null,null,null,null,null,null,null,null,null,null,null,null,null,null,null,null,null,null,null,null,null,null,null,null,null,null,null,null,null,null,null,null,null,null,null,null,null,null,null,null,null,null,null,null,null,null,null,null,null,null,null,null,null,null,null,null,null,null,null,null,null,null,null,null,null,null,null,null,null,null,null,null,null,null,null,null,null,null,null,null,null,null,null,null,null,null,null,null,null,null,null,null,null,null,null,null,null,null,null,null,null,null,null,null,null,null,null,null,null,null,null,null,null,null,null,null,null,null,null,null,null,null,null,null,null,null,null,null,null,null,null,null,null,null,null,null,null,null,null,null,null,null,null,null,null,null,null,null,null,null,null,null,null,null,null,null,null,null,null,null,null,null,null,null,null,null,null,null,null,null,null,null,null,null,null,null,null,null,null,null,null,null,null,null,null,null,null,null,null,null,null,null,null,null,null,null,null,null,null,null,null,null,null,null,null,null,null,null,null,null,null,null,null,null,null,null,null,null,null,null,null,null,null,null,null,null,null,null,null,null,null,null,null,null,null,null,null,null,null,null,null,null,null,null,null,null,null,null,null,null,null,null,null,null,null,null,null,null,null,null,null,null,null,null,null,null,null,null,null,null,null,null,null,null,null,null,null,null,null,null,null,null,null,null,null,null,null,null,null,null,null,null,null,null,null,null,null,null,null,null,null,null,null,null,null,null,null,null,null,null,null,null,null,null,null,null,null,null,null,null,null,null,null,null,null,null,null,null,null,null,null,null,null,null,null,null,null,null,null,null,null,null,null,null,null,null,null,null,null,null,null,null,null,null,null,null,null,null,null,null,null,null,null,null,null,null,null,null,null,null,null,null,null,null,null,null,null,null,null,null,null,null,null,null,null,null,null,null,null,null,null,null,null,null,null,null,null,null,null,null,null,null,null,null,null,null,null,null,null,null,null,null,null,null,null,null,null,null,null,null,null,null,null,null,null,null,null,null,null,null,null,null,null,null,null,null,null,null,null,null,null,null,null,null,null,null,null,null,null,null,null,null,null,null,null,null,null,null,null,null,null,null,null,null,null,null,null,null,null,null,null,null,null,null,null,null,null,null,null,null,null,null,null,null,null,null,null,null,null,null,null,null,null,null,null,null,null,null,null,null,null,null,null,null,null,null,null,null,null,null,null,null,null,null,null,null,null,null,null,null,null,null,null,null,null,null,null,null,null,null,null,null,null,null,null,null,null,null,null,null,null,null,null,null,null,null,null,null,null,null,null,null,null,null,null,null,null,null,null,null,null,null,null,null,null,null,null,null,null,null,null,null,null,null,null,null,null,null,null,null,null,null,null,null,null,null,null,null,null,null,null,null,null,null,null,null,null,null,null,null,null,null,null,null,null,null,null,null,null,null,null,null,null,null,null,null,null,null,null,null,null,null,null,null,null,null,null,null,null,null,null,null,null,null,null,null,null,null,null,null,null,null,null,null,null,null,null,null,null,null,null,null,null,null,null,null,null,null,null,null,null,null,null,null,null,null,null,null,null,null,null,null,null,null,null,null,null,null,null,null,null,null,null,null,null,null,null,null,null,null,null,null,null,null,null,null,null,null,null,null,null,null,null,null,null,null,null,null,null,null,null,null,null,null,null,null,null,null,null,null,null,null,null,null,null,null,null,null,null,null,null,null,null,null,null,null,null,null,null,null,null,null,null,null,null,null,null,null,null,null,null,null,null,null,null,null,null,null,null,null,null,null,null,null,null,null,null,null,null,null,null,null,null,null,null,null,null,null,null,null,null,null,null,null,null,null,null,null,null,null,null,null,null,null,null,null,null,null,null,null,null,null,null,null,null,null,null,null,null,null,null,null,null,null,null,null,null,null,null,null,null,null,null,null,null,null,null,null,null,null,null,null,null,null,null,null,null,null,null,null,null,null,null,null,null,null,null,null,null,null,null,null,null,null,null,null,null,null,null,null,null,null,null,null,null,null,null,null,null,null,null,null,null,null,null,null,null,null,null,null,null,null,null,null,null,null,null,null,null,null,null,null,null,null,null,null,null,null,null,null,null,null,null,null,null,null,null,null,null,null,null,null,null,null,null,null,null,null,null,null,null,null,null,null,null,null,null,null,null,null,null,null,null,null,null,null,null,null,null,null,null,null,null,null,null,null,null,null,null,null,null,null,null,null,null,null,null,null,null,null,null,null,null,null,null,null,null,null,null,null,null,null,null,null,null,null,null,null,null,null,null,null,null,null,null,null,null,null,null,null,null,null,null,null,null,null,null,null,null,null,null,null,null,null,null,null,null,null,null,null,null,null,null,null,null,null,null,null,null,null,null,null,null,null,null,null,null,null,null,null,null,null,null,null,null,null,null,null,null,null,null,null,null,null,null,null,null,null,null,null,null,null,null,null,null,null,null,null,null,null,null,null,null,null,null,null,null,null,null,null,null,null,null,null,null,null,null,null,null,null,null,null,null,null,null,null,null,null,null,null,null,null,null,null,null,null,null,null,null,null,null,null,null,null,null,null,null,null,null,null,null,null,null,null,null,null,null,null,null,null,null,null,null,null,null,null,null,null,null,null,null,null,null,null,null,null,null,null,null,null,null,null,null,null,null,null,null,null,null,null,null,null,null,null,null,null,null,null,null,null,null,null,null,null,null,null,null,null,null,null,null,null,null,null,null,null,null,null,null,null,null,null,null,null,null,null,null,null,null,null,null,null,null,null,null,null,null,null,null,null,null,null,null,null,null,null,null,null,null,null,null,null,null,null,null,null,null,null,null,null,null,null,null,null,null,null,null,null,null,null,null,null,null,null,null,null,null,null,null,null,null,null,null,null,null,null,null,null,null,null,null,null,null,null,null,null,null,null,null,null,null,null,null,null,null,null,null,null,null,null,null,null,null,null,null,null,null,null,null,null,null,null,null,null,null,null,null,null,null,null,null,null,null,null,null,null,null,null,null,null,null,null,null,null,null,null,null,null,null,null,null,null,null,null,null,null,null,null,null,null,null,null,null,null,null,null,null,null,null,null,null,null,null,null,null,null,null,null,null,null,null,null,null,null,null,null,null,null,null,null,null,null,null,null,null,null,null,null,null,null,null,null,null,null,null,null,null,null,null,null,null,null,null,null,null,null,null,null,null,null,null,null,null,null,null,null,null,null,null,null,null,null,null,null,null,null,null,null,null,null,null,null,null,null,null,null,null,null,null,null,null,null,null,null,null,null,null,null,null,null,null,null,null,null,null,null,null,null,null,null,null,null,null,null,null,null,null,null,null,null,null,null,null,null,null,null,null,null,null,null,null,null,null,null,null,null,null,null,null,null,null,null,null,null,null,null,null,null,null,null,null,null,null,null,null,null,null,null,null,null,null,null,null,null,null,null,null,null,null,null,null,null,null,null,null,null,null,null,null,null,null,null,null,null,null,null,null,null,null,null,null,null,null,null,null,null,null,null,null,null,null,null,null,null,null,null,null,null,null,null,null,null,null,null,null,null,null,null,null,null,null,null,null,null,null,null,null,null,null,null,null,null,null,null,null,null,null,null,null,null,null,null,null,null,null,null,null,null,null,null,null,null,null,null,null,null,null,null,null,null,null,null,null,null,null,null,null,null,null,null,null,null,null,null,null,null,null,null,null,null,null,null,null,null,null,null,null,null,null,null,null,null,null,null,null,null,null,null,null,null,null,null,null,null,null,null,null,null,null,null,null,null,null,null,null,null,null,null,null,null,null,null,null,null,null,null,null,null,null,null,null,null,null,null,null,null,null,null,null,null,null,null,null,null,null,null,null,null,null,null,null,null,null,null,null,null,null,null,null,null,null,null,null,null,null,null,null,null,null,null,null,null,null,null,null,null,null,null,null,null,null,null,null,null,null,null,null,null,null,null,null,null,null,null,null,null,null,null,null,null,null,null,null,null,null,null,null,null,null,null,null,null,null,null,null,null,null,null,null,null,null,null,null,null,null,null,null,null,null,null,null,null,null,null,null,null,null,null,null,null,null,null,null,null,null,null,null,null,null,null,null,null,null,null,null,null,null,null,null,null,null,null,null,null,null,null,null,null,null,null,null,null,null,null,null,null,null,null,null,null,null,null,null,null,null,null,null,null,null,null,null,null,null,null,null,null,null,null,null,null,null,null,null,null,null,null,null,null,null,null,null,null,null,null,null,null,null,null,null,null,null,null,null,null,null,null,null,null,null,null,null,null,null,null,null,null,null,null,null,null,null,null,null,null,null,null,null,null,null,null,null,null,null,null,null,null,null,null,null,null,null,null,null,null,null,null,null,null,null,null,null,null,null,null,null,null,null,null,null,null,null,null,null,null,null,null,null,null,null,null,null,null,null,null,null,null,null,null,null,null,null,null,null,null,null,null,null,null,null,null,null,null,null,null,null,null,null,null,null,null,null,null,null,null,null,null,null,null,null,null,null,null,null,null,null,null,null,null,null,null,null,null,null,null,null,null,null,null,null,null,null,null,null,null,null,null,null,null,null,null,null,null,null,null,null,null,null,null,null,null,null,null,null,null,null,null,null,null,null,null,null,null,null,null,null,null,null,null,null,null,null,null,null,null,null,null,null,null,null,null,null,null,null,null,null,null,null,null,null,null,null,null,null,null,null,null,null,null,null,null,null,null,null,null,null,null,null,null,null,null,null,null,null,null,null,null,null,null,null,null,null,null,null,null,null,null,null,null,null,null,null,null,null,null,null,null,null,null,null,null,null,null,null,null,null,null,null,null,null,null,null,null,null,null,null,null,null,null,null,null,null,null,null,null,null,null,null,null,null,null,null,null,null,null,null,null,null,null,null,null,null,null,null,null,null,null,null,null,null,null,null,null,null,null,null,null,null,null,null,null,null,null,null,null,null,null,null,null,null,null,null,null,null,null,null,null,null,null,null,null,null,null,null,null,null,null,null,null,null,null,null,null,null,null,null,null,null,null,null,null,null,null,null,null,null,null,null,null,null,null,null,null,null,null,null,null,null,null,null,null,null,null,null,null,null,null,null,null,null,null,null,null,null,null,null,null,null,null,null,null,null,null,null,null,null,null,null,null,null,null,null,null,null,null,null,null,null,null,null,null,null,null,null,null,null,null,null,null,null,null,null,null,null,null,null,null,null,null,null,null,null,null,null,null,null,null,null,null,null,null,null,null,null,null,null,null,null,null,null,null,null,null,null,null,null,null,null,null,null,null,null,null,null,null,null,null,null,null,null,null,null,null,null,null,null,null,null,null,null,null,null,null,null,null,null,null,null,null,null,null,null,null,null,null,null,null,null,null,null,null,null,null,null,null,null,null,null,null,null,null,null,null,null,null,null,null,null,null,null,null,null,null,null,null,null,null,null,null,null,null,null,null,null,null,null,null,null,null,null,null,null,null,null,null,null,null,null,null,null,null,null,null,null,null,null,null,null,null,null,null,null,null,null,null,null,null,null,null,null,null,null,null,null,null,null,null,null,null,null,null,null,null,null,null,null,null,null,null,null,null,null,null,null,null,null,null,null,null,null,null,null,null,null,null,null,null,null,null,null,null,null,null,null,null,null,null,null,null,null,null,null,null,null,null,null,null,null,null,null,null,null,null,null,null,null,null,null,null,null,null,null,null,null,null,null,null,null,null,null,null,null,null,null,null,null,null,null,null,null,null,null,null,null,null,null,null,null,null,null,null,null,null,null,null,null,null,null,null,null,null,null,null,null,null,null,null,null,null,null,null,null,null,null,null,null,null,null,null,null,null,null,null,null,null,null,null,null,null,null,null,null,null,null,null,null,null,null,null,null,null,null,null,null,null,null,null,null,null,null,null,null,null,null,null,null,null,null,null,null,null,null,null,null,null,null,null,null,null,null,null,null,null,null,null,null,null,null,null,null,null,null,null,null,null,null,null,null,null,null,null,null,null,null,null,null,null,null,null,null,null,null,null,null,null,null,null,null,null,null,null,null,null,null,null,null,null,null,null,null,null,null,null,null,null,null,null,null,null,null,null,null,null,null,null,null,null,null,null,null,null,null,null,null,null,null,null,null,null,null,null,null,null,null,null,null,null,null,null,null,null,null,null,null,null,null,null,null,null,null,null,null,null,null,null,null,null,null,null,null,null,null,null,null,null,null,null,null,null,null,null,null,null,null,null,null,null,null,null,null,null,null,null,null,null,null,null,null,null,null,null,null,null,null,null,null,null,null,null,null,null,null,null,null,null,null,null,null,null,null,null,null,null,null,null,null,null,null,null,null,null,null,null,null,null,null,null,null,null,null,null,null,null,null,null,null,null,null,null,null,null,null,null,null,null,null,null,null,null,null,null,null,null,null,null,null,null,null,null,null,null,null,null,null,null,null,null,null,null,null,null,null,null,null,null,null,null,null,null,null,null,null,null,null,null,null,null,null,null,null,null,null,null,null,null,null,null,null,null,null,null,null,null,null,null,null,null,null,null,null,null,null,null,null,null,null,null,null,null,null,null,null,null,null,null,null,null,null,null,null,null,null,null,null,null,null,null,null,null,null,null,null,null,null,null,null,null,null,null,null,null,null,null,null,null,null,null,null,null,null,null,null,null,null,null,null,null,null,null,null,null,null,null,null,null,null,null,null,null,null,null,null,null,null,null,null,null,null,null,null,null,null,null,null,null,null,null,null,null,null,null,null,null,null,null,null,null,null,null,null,null,null,null,null,null,null,null,null,null,null,null,null,null,null,null,null,null,null,null,null,null,null,null,null,null,null,null,null,null,null,null,null,null,null,null,null,null,null,null,null,null,null,null,null,null,null,null,null,null,null,null,null,null,null,null,null,null,null,null,null,null,null,null,null,null,null,null,null,null,null,null,null,null,null,null,null,null,null,null,null,null,null,null,null,null,null,null,null,null,null,null,null,null,null,null,null,null,null,null,null,null,null,null,null,null,null,null,null,null,null,null,null,null,null,null,null,null,null,null,null,null,null,null,null,null,null,null,null,null,null,null,null,null,null,null,null,null,null,null,null,null,null,null,null,null,null,null,null,null,null,null,null,null,null,null,null,null,null,null,null,null,null,null,null,null,null,null,null,null,null,null,null,null,null,null,null,null,null,null,null,null,null,null,null,null,null,null,null,null,null,null,null,null,null,null,null,null,null,null,null,null,null,null,null,null,null,null,null,null,null,null,null,null,null,null,null,null,null,null,null,null,null,null,null,null,null,null,null,null,null,null,null,null,null,null,null,null,null,null,null,null,null,null,null,null,null,null,null,null,null,null,null,null,null,null,null,null,null,null,null,null,null,null,null,null,null,null,null,null,null,null,null,null,null,null,null,null,null,null,null,null,null,null,null,null,null,null,null,null,null,null,null,null,null,null,null,null,null,null,null,null,null,null,null,null,null,null,null,null,null,null,null,null,null,null,null,null,null,null,null,null,null,null,null,null,null,null,null,null,null,null,null,null,null,null,null,null,null,null,null,null,null,null,null,null,null,null,null,null,null,null,null,null,null,null,null,null,null,null,null,null,null,null,null,null,null,null,null,null,null,null,null,null,null,null,null,null,null,null,null,null,null,null,null,null,null,null,null,null,null,null,null,null,null,null,null,null,null,null,null,null,null,null,null,null,null,null,null,null,null,null,null,null,null,null,null,null,null,null,null,null,null,null,null,null,null,null,null,null,null,null,null,null,null,null,null,null,null,null,null,null,null,null,null,null,null,null,null,null,null,null,null,null,null,null,null,null,null,null,null,null,null,null,null,null,null,null,null,null,null,null,null,null,null,null,null,null,null,null,null,null,null,null,null,null,null,null,null,null,null,null,null,null,null,null,null,null,null,null,null,null,null,null,null,null,null,null,null,null,null,null,null,null,null,null,null,null,null,null,null,null,null,null,null,null,null,null,null,null,null,null,null,null,null,null,null,null,null,null,null,null,null,null,null,null,null,null,null,null,null,null,null,null,null,null,null,null,null,null,null,null,null,null,null,null,null,null,null,null,null,null,null,null,null,null,null,null,null,null,null,null,null,null,null,null,null,null,null,null,null,null,null,null,null,null,null,null,null,null,null,null,null,null,null,null,null,null,null,null,null,null,null,null,null,null,null,null,null,null,null,null,null,null,null,null,null,null,null,null,null,null,null,null,null,null,null,null,null,null,null,null,null,null,null,null,null,null,null,null,null,null,null,null,null,null,null,null,null,null,null,null,null,null,null,null,null,null,null,null,null,null,null,null,null,null,null,null,null,null,null,null,null,null,null,null,null,null,null,null,null,null,null,null,null,null,null,null,null,null,null,null,null,null,null,null,null,null,null,null,null,null,null,null,null,null,null,null,null,null,null,null,null,null,null,null,null,null,null,null,null,null,null,null,null,null,null,null,null,null,null,null,null,null,null,null,null,null,null,null,null,null,null,null,null,null,null,null,null,null,null,null,null,null,null,null,null,null,null,null,null,null,null,null,null,null,null,null,null,null,null,null,null,null,null,null,null,null,null,null,null,null,null,null,null,null,null,null,null,null,null,null,null,null,null,null,null,null,null,null,null,null,null,null,null,null,null,null,null,null,null,null,null,null,null,null,null,null,null,null,null,null,null,null,null,null,null,null,null,null,null,null,null,null,null,null,null,null,null,null,null,null,null,null,null,null,null,null,null,null,null,null,null,null,null,null,null,null,null,null,null,null,null,null,null,null,null,null,null,null,null,null,null,null,null,null,null,null,null,null,null,null,null,null,null,null,null,null,null,null,null,null,null,null,null,null,null,null,null,null,null,null,null,null,null,null,null,null,null,null,null,null,null,null,null,null,null,null,null,null,null,null,null,null,null,null,null,null,null,null,null,null,null,null,null,null,null,null,null,null,null,null,null,null,null,null,null,null,null,null,null,null,null,null,null,null,null,null,null,null,null,null,null,null,null,null,null,null,null,null,null,null,null,null,null,null,null,null,null,null,null,null,null,null,null,null,null,null,null,null,null,null,null,null,null,null,null,null,null,null,null,null,null,null,null,null,null,null,null,null,null,null,null,null,null,null,null,null,null,null,null,null,null,null,null,null,null,null,null,null,null,null,null,null,null,null,null,null,null,null,null,null,null,null,null,null,null,null,null,null,null,null,null,null,null,null,null,null,null,null,null,null,null,null,null,null,null,null,null,null,null,null,null,null,null,null,null,null,null,null,null,null,null,null,null,null,null,null,null,null,null,null,null,null,null,null,null,null,null,null,null,null,null,null,null,null,null,null,null,null,null,null,null,null,null,null,null,null,null,null,null,null,null,null,null,null,null,null,null,null,null,null,null,null,null,null,null,null,null,null,null,null,null,null,null,null,null,null,null,null,null,null,null,null,null,null,null,null,null,null,null,null,null,null,null,null,null,null,null,null,null,null,null,null,null,null,null,null,null,null,null,null,null,null,null,null,null,null,null,null,null,null,null,null,null,null,null,null,null,null,null,null,null,null,null,null,null,null,null,null,null,null,null,null,null,null,null,null,null,null,null,null,null,null,null,null,null,null,null,null,null,null,null,null,null,null,null,null,null,null,null,null,null,null,null,null,null,null,null,null,null,null,null,null,null,null,null,null,null,null,null,null,null,null,null,null,null,null,null,null,null,null,null,null,null,null,null,null,null,null,null,null,null,null,null,null,null,null,null,null,null,null,null,null,null,null,null,null,null,null,null,null,null,null,null,null,null,null,null,null,null,null,null,null,null,null,null,null,null,null,null,null,null,null,null,null,null,null,null,null,null,null,null,null,null,null,null,null,null,null,null,null,null,null,null,null,null,null,null,null,null,null,null,null,null,null,null,null,null,null,null,null,null,null,null,null,null,null,null,null,null,null,null,null,null,null,null,null,null,null,null,null,null,null,null,null,null,null,null,null,null,null,null,null,null,null,null,null,null,null,null,null,null,null,null,null,null,null,null,null,null,null,null,null,null,null,null,null,null,null,null,null,null,null,null,null,null,null,null,null,null,null,null,null,null,null,null,null,null,null,null,null,null,null,null,null,null,null,null,null,null,null,null,null,null,null,null,null,null,null,null,null,null,null,null,null,null,null,null,null,null,null,null,null,null,null,null,null,null,null,null,null,null,null,null,null,null,null,null,null,null,null,null,null,null,null,null,null,null,null,null,null,null,null,null,null,null,null,null,null,null,null,null,null,null,null,null,null,null,null,null,null,null,null,null,null,null,null,null,null,null,null,null,null,null,null,null,null,null,null,null,null,null,null,null,null,null,null,null,null,null,null,null,null,null,null,null,null,null,null,null,null,null,null,null,null,null,null,null,null,null,null,null,null,null,null,null,null,null,null,null,null,null,null,null,null,null,null,null,null,null,null,null,null,null,null,null,null,null,null,null,null,null,null,null,null,null,null,null,null,null,null,null,null,null,null,null,null,null,null,null,null,null,null,null,null,null,null,null,null,null,null,null,null,null,null,null,null,null,null,null,null,null,null,null,null,null,null,null,null,null,null,null,null,null,null,null,null,null,null,null,null,null,null,null,null,null,null,null,null,null,null,null,null,null,null,null,null,null,null,null,null,null,null,null,null,null,null,null,null,null,null,null,null,null,null,null,null,null,null,null,null,null,null,null,null,null,null,null,null,null,null,null,null,null,null,null,null,null,null,null,null,null,null,null,null,null,null,null,null,null,null,null,null,null,null,null,null,null,null,null,null,null,null,null,null,null,null,null,null,null,null,null,null,null,null,null,null,null,null,null,null,null,null,null,null,null,null,null,null,null,null,null,null,null,null,null,null,null,null,null,null,null,null,null,null,null,null,null,null,null,null,null,null,null,null,null,null,null,null,null,null,null,null,null,null,null,null,null,null,null,null,null,null,null,null,null,null,null,null,null,null,null,null,null,null,null,null,null,null,null,null,null,null,null,null,null,null,null,null,null,null,null,null,null,null,null,null,null,null,null,null,null,null,null,null,null,null,null,null,null,null,null,null,null,null,null,null,null,null,null,null,null,null,null,null,null,null,null,null,null,null,null,null,null,null,null,null,null,null,null,null,null,null,null,null,null,null,null,null,null,null,null,null,null,null,null,null,null,null,null,null,null,null,null,null,null,null,null,null,null,null,null,null,null,null,null,null,null,null,null,null,null,null,null,null,null,null,null,null,null,null,null,null,null,null,null,null,null,null,null,null,null,null,null,null,null,null,null,null,null,null,null,null,null,null,null,null,null,null,null,null,null,null,null,null,null,null,null,null,null,null,null,null,null,null,null,null,null,null,null,null,null,null,null,null,null,null,null,null,null,null,null,null,null,null,null,null,null,null,null,null,null,null,null,null,null,null,null,null,null,null,null,null,null,null,null,null,null,null,null,null,null,null,null,null,null,null,null,null,null,null,null,null,null,null,null,null,null,null,null,null,null,null,null,null,null,null,null,null,null,null,null,null,null,null,null,null,null,null,null,null,null,null,null,null,null,null,null,null,null,null,null,null,null,null,null,null,null,null,null,null,null,null,null,null,null,null,null,null,null,null,null,null,null,null,null,null,null,null,null,null,null,null,null,null,null,null,null,null,null,null,null,null,null,null,null,null,null,null,null,null,null,null,null,null,null,null,null,null,null,null,null,null,null,null,null,null,null,null,null,null,null,null,null,null,null,null,null,null,null,null,null,null,null,null,null,null,null,null,null,null,null,null,null,null,null,null,null,null,null,null,null,null,null,null,null,null,null,null,null,null,null,null,null,null,null,null,null,null,null,null,null,null,null,null,null,null,null,null,null,null,null,null,null,null,null,null,null,null,null,null,null,null,null,null,null,null,null,null,null,null,null,null,null,null,null,null,null,null,null,null,null,null,null,null,null,null,null,null,null,null,null,null,null,null,null,null,null,null,null,null,null,null,null,null,null,null,null,null,null,null,null,null,null,null,null,null,null,null,null,null,null,null,null,null,null,null,null,null,null,null,null,null,null,null,null,null,null,null,null,null,null,null,null,null,null,null,null,null,null,null,null,null,null,null,null,null,null,null,null,null,null,null,null,null,null,null,null,null,null,null,null,null,null,null,null,null,null,null,null,null,null,null,null,null,null,null,null,null,null,null,null,null,null,null,null,null,null,null,null,null,null,null,null,null,null,null,null,null,null,null,null,null,null,null,null,null,null,null,null,null,null,null,null,null,null,null,null,null,null,null,null,null,null,null,null,null,null,null,null,null,null,null,null,null,null,null,null,null,null,null,null,null,null,null,null,null,null,null,null,null,null,null,null,null,null,null,null,null,null,null,null,null,null,null,null,null,null,null,null,null,null,null,null,null,null,null,null,null,null,null,null,null,null,null,null,null,null,null,null,null,null,null,null,null,null,null,null,null,null,null,null,null,null,null,null,null,null,null,null,null,null,null,null,null,null,null,null,null,null,null,null,null,null,null,null,null,null,null,null,null,null,null,null,null,null,null,null,null,null,null,null,null,null,null,null,null,null,null,null,null,null,null,null,null,null,null,null,null,null,null,null,null,null,null,null,null,null,null,null,null,null,null,null,null,null,null,null,null,null,null,null,null,null,null,null,null,null,null,null,null,null,null,null,null,null,null,null,null,null,null,null,null,null,null,null,null,null,null,null,null,null,null,null,null,null,null,null,null,null,null,null,null,null,null,null,null,null,null,null,null,null,null,null,null,null,null,null,null,null,null,null,null,null,null,null,null,null,null,null,null,null,null,null,null,null,null,null,null,null,null,null,null,null,null,null,null,null,null,null,null,null,null,null,null,null,null,null,null,null,null,null,null,null,null,null,null,null,null,null,null,null,null,null,null,null,null,null,null,null,null,null,null,null,null,null,null,null,null,null,null,null,null,null,null,null,null,null,null,null,null,null,null,null,null,null,null,null,null,null,null,null,null,null,null,null,null,null,null,null,null,null,null,null,null,null,null,null,null,null,null,null,null,null,null,null,null,null,null,null,null,null,null,null,null,null,null,null,null,null,null,null,null,null,null,null,null,null,null,null,null,null,null,null,null,null,null,null,null,null,null,null,null,null,null,null,null,null,null,null,null,null,null,null,null,null,null,null,null,null,null,null,null,null,null,null,null,null,null,null,null,null,null,null,null,null,null,null,null,null,null,null,null,null,null,null,null,null,null,null,null,null,null,null,null,null,null,null,null,null,null,null,null,null,null,null,null,null,null,null,null,null,null,null,null,null,null,null,null,null,null,null,null,null,null,null,null,null,null,null,null,null,null,null,null,null,null,null,null,null,null,null,null,null,null,null,null,null,null,null,null,null,null,null,null,null,null,null,null,null,null,null,null,null,null,null,null,null,null,null,null,null,null,null,null,null,null,null,null,null,null,null,null,null,null,null,null,null,null,null,null,null,null,null,null,null,null,null,null,null,null,null,null,null,null,null,null,null,null,null,null,null,null,null,null,null,null,null,null,null,null,null,null,null,null,null,null,null,null,null,null,null,null,null,null,null,null,null,null,null,null,null,null,null,null,null,null,null,null,null,null,null,null,null,null,null,null,null,null,null,null,null,null,null,null,null,null,null,null,null,null,null,null,null,null,null,null,null,null,null,null,null,null,null,null,null,null,null,null,null,null,null,null,null,null,null,null,null,null,null,null,null,null,null,null,null,null,null,null,null,null,null,null,null,null,null,null,null,null,null,null,null,null,null,null,null,null,null,null,null,null,null,null,null,null,null,null,null,null,null,null,null,null,null,null,null,null,null,null,null,null,null,null,null,null,null,null,null,null,null,null,null,null,null,null,null,null,null,null,null,null,null,null,null,null,null,null,null,null,null,null,null,null,null,null,null,null,null,null,null,null,null,null,null,null,null,null,null,null,null,null,null,null,null,null,null,null,null,null,null,null,null,null,null,null,null,null,null,null,null,null,null,null,null,null,null,null,null,null,null,null,null,null,null,null,null,null,null,null,null,null,null,null,null,null,null,null,null,null,null,null,null,null,null,null,null,null,null,null,null,null,null,null,null,null,null,null,null,null,null,null,null,null,null,null,null,null,null,null,null,null,null,null,null,null,null,null,null,null,null,null,null,null,null,null,null,null,null,null,null,null,null,null,null,null,null,null,null,null,null,null,null,null,null,null,null,null,null,null,null,null,null,null,null,null,null,null,null,null,null,null,null,null,null,null,null,null,null,null,null,null,null,null,null,null,null,null,null,null,null,null,null,null,null,null,null,null,null,null,null,null,null,null,null,null,null,null,null,null,null,null,null,null,null,null,null,null,null,null,null,null,null,null,null,null,null,null,null,null,null,null,null,null,null,null,null,null,null,null,null,null,null,null,null,null,null,null,null,null,null,null,null,null,null,null,null,null,null,null,null,null,null,null,null,null,null,null,null,null,null,null,null,null,null,null,null,null,null,null,null,null,null,null,null,null,null,null,null,null,null,null,null,null,null,null,null,null,null,null,null,null,null,null,null,null,null,null,null,null,null,null,null,null,null,null,null,null,null,null,null,null,null,null,null,null,null,null,null,null,null,null,null,null,null,null,null,null,null,null,null,null,null,null,null,null,null,null,null,null,null,null,null,null,null,null,null,null,null,null,null,null,null,null,null,null,null,null,null,null,null,null,null,null,null,null,null,null,null,null,null,null,null,null,null,null,null,null,null,null,null,null,null,null,null,null,null,null,null,null,null,null,null,null,null,null,null,null,null,null,null,null,null,null,null,null,null,null,null,null,null,null,null,null,null,null,null,null,null,null,null,null,null,null,null,null,null,null,null,null,null,null,null,null,null,null,null,null,null,null,null,null,null,null,null,null,null,null,null,null,null,null,null,null,null,null,null,null,null,null,null,null,null,null,null,null,null,null,null,null,null,null,null,null,null,null,null,null,null,null,null,null,null,null,null,null,null,null,null,null,null,null,null,null,null,null,null,null,null,null,null,null,null,null,null,null,null,null,null,null,null,null,null,null,null,null,null,null,null,null,null,null,null,null,null,null,null,null,null,null,null,null,null,null,null,null,null,null,null,null,null,null,null,null,null,null,null,null,null,null,null,null,null,null,null,null,null,null,null,null,null,null,null,null,null,null,null,null,null,null,null,null,null,null,null,null,null,null,null,null,null,null,null,null,null,null,null,null,null,null,null,null,null,null,null,null,null,null,null,null,null,null,null,null,null,null,null,null,null,null,null,null,null,null,null,null,null,null,null,null,null,null,null,null,null,null,null,null,null,null,null,null,null,null,null,null,null,null,null,null,null,null,null,null,null,null,null,null,null,null,null,null,null,null,null,null,null,null,null,null,null,null,null,null,null,null,null,null,null,null,null,null,null,null,null,null,null,null,null,null,null,null,null,null,null,null,null,null,null,null,null,null,null,null,null,null,null,null,null,null,null,null,null,null,null,null,null,null,null,null,null,null,null,null,null,null,null,null,null,null,null,null,null,null,null,null,null,null,null,null,null,null,null,null,null,null,null,null,null,null,null,null,null,null,null,null,null,null,null,null,null,null,null,null,null,null,null,null,null,null,null,null,null,null,null,null,null,null,null,null,null,null,null,null,null,null,null,null,null,null,null,null,null,null,null,null,null,null,null,null,null,null,null,null,null,null,null,null,null,null,null,null,null,null,null,null,null,null,null,null,null,null,null,null,null,null,null,null,null,null,null,null,null,null,null,null,null,null,null,null,null,null,null,null,null,null,null,null,null,null,null,null,null,null,null,null,null,null,null,null,null,null,null,null,null,null,null,null,null,null,null,null,null,null,null,null,null,null,null,null,null,null,null,null,null,null,null,null,null,null,null,null,null,null,null,null,null,null,null,null,null,null,null,null,null,null,null,null,null,null,null,null,null,null,null,null,null,null,null,null,null,null,null,null,null,null,null,null,null,null,null,null,null,null,null,null,null,null,null,null,null,null,null,null,null,null,null,null,null,null,null,null,null,null,null,null,null,null,null,null,null,null,null,null,null,null,null,null,null,null,null,null,null,null,null,null,null,null,null,null,null,null,null,null,null,null,null,null,null,null,null,null,null,null,null,null,null,null,null,null,null,null,null,null,null,null,null,null,null,null,null,null,null,null,null,null,null,null,null,null,null,null,null,null,null,null,null,null,null,null,null,null,null,null,null,null,null,null,null,null,null,null,null,null,null,null,null,null,null,null,null,null,null,null,null,null,null,null,null,null,null,null,null,null,null,null,null,null,null,null,null,null,null,null,null,null,null,null,null,null,null,null,null,null,null,null,null,null,null,null,null,null,null,null,null,null,null,null,null,null,null,null,null,null,null,null,null,null,null,null,null,null,null,null,null,null,null,null,null,null,null,null,null,null,null,null,null,null,null,null,null,null,null,null,null,null,null,null,null,null,null,null,null,null,null,null,null,null,null,null,null,null,null,null,null,null,null,null,null,null,null,null,null,null,null,null,null,null,null,null,null,null,null,null,null,null,null,null,null,null,null,null,null,null,null,null,null,null,null,null,null,null,null,null,null,null,null,null,null,null,null,null,null,null,null,null,null,null,null,null,null,null,null,null,null,null,null,null,null,null,null,null,null,null,null,null,null,null,null,null,null,null,null,null,null,null,null,null,null,null,null,null,null,null,null,null,null,null,null,null,null,null,null,null,null,null,null,null,null,null,null,null,null,null,null,null,null,null,null,null,null,null,null,null,null,null,null,null,null,null,null,null,null,null,null,null,null,null,null,null,null,null,null,null,null,null,null,null,null,null,null,null,null,null,null,null,null,null,null,null,null,null,null,null,null,null,null,null,null,null,null,null,null,null,null,null,null,null,null,null,null,null,null,null,null,null,null,null,null,null,null,null,null,null,null,null,null,null,null,null,null,null,null,null,null,null,null,null,null,null,null,null,null,null,null,null,null,null,null,null,null,null,null,null,null,null,null,null,null,null,null,null,null,null,null,null,null,null,null,null,null,null,null,null,null,null,null,null,null,null,null,null,null,null,null,null,null,null,null,null,null,null,null,null,null,null,null,null,null,null,null,null,null,null,null,null,null,null,null,null,null,null,null,null,null,null,null,null,null,null,null,null,null,null,null,null,null,null,null,null,null,null,null,null,null,null,null,null,null,null,null,null,null,null,null,null,null,null,null,null,null,null,null,null,null,null,null,null,null,null,null,null,null,null,null,null,null,null,null,null,null,null,null,null,null,null,null,null,null,null,null,null,null,null,null,null,null,null,null,null,null,null,null,null,null,null,null,null,null,null,null,null,null,null,null,null,null,null,null,null,null,null,null,null,null,null,null,null,null,null,null,null,null,null,null,null,null,null,null,null,null,null,null,null,null,null,null,null,null,null,null,null,null,null,null,null,null,null,null,null,null,null,null,null,null,null,null,null,null,null,null,null,null,null,null,null,null,null,null,null,null,null,null,null,null,null,null,null,null,null,null,null,null,null,null,null,null,null,null,null,null,null,null,null,null,null,null,null,null,null,null,null,null,null,null,null,null,null,null,null,null,null,null,null,null,null,null,null,null,null,null,null,null,null,null,null,null,null,null,null,null,null,null,null,null,null,null,null,null,null,null,null,null,null,null,null,null,null,null,null,null,null,null,null,null,null,null,null,null,null,null,null,null,null,null,null,null,null,null,null,null,null,null,null,null,null,null,null,null,null,null,null,null,null,null,null,null,null,null,null,null,null,null,null,null,null,null,null,null,null,null,null,null,null,null,null,null,null,null,null,null,null,null,null,null,null,null,null,null,null,null,null,null,null,null,null,null,null,null,null,null,null,null,null,null,null,null,null,null,null,null,null,null,null,null,null,null,null,null,null,null,null,null,null,null,null,null,null,null,null,null,null,null,null,null,null,null,null,null,null,null,null,null,null,null,null,null,null,null,null,null,null,null,null,null,null,null,null,null,null,null,null,null,null,null,null,null,null,null,null,null,null,null,null,null,null,null,null,null,null,null,null,null,null,null,null,null,null,null,null,null,null,null,null,null,null,null,null,null,null,null,null,null,null,null,null,null,null,null,null,null,null,null,null,null,null,null,null,null,null,null,null,null,null,null,null,null,null,null,null,null,null,null,null,null,null,null,null,null,null,null,null,null,null,null,null,null,null,null,null,null,null,null,null,null,null,null,null,null,null,null,null,null,null,null,null,null,null,null,null,null,null,null,null,null,null,null,null,null,null,null,null,null,null,null,null,null,null,null,null,null,null,null,null,null,null,null,null,null,null,null,null,null,null,null,null,null,null,null,null,null,null,null,null,null,null,null,null,null,null,null,null,null,null,null,null,null,null,null,null,null,null,null,null,null,null,null,null,null,null,null,null,null,null,null,null,null,null,null,null,null,null,null,null,null,null,null,null,null,null,null,null,null,null,null,null,null,null,null,null,null,null,null,null,null,null,null,null,null,null,null,null,null,null,null,null,null,null,null,null,null,null,null,null,null,null,null,null,null,null,null,null,null,null,null,null,null,null,null,null,null,null,null,null,null,null,null,null,null,null,null,null,null,null,null,null,null,null,null,null,null,null,null,null,null,null,null,null,null,null,null,null,null,null,null,null,null,null,null,null,null,null,null,null,null,null,null,null,null,null,null,null,null,null,null,null,null,null,null,null,null,null,null,null,null,null,null,null,null,null,null,null,null,null,null,null,null,null,null,null,null,null,null,null,null,null,null,null,null,null,null,null,null,null,null,null,null,null,null,null,null,null,null,null,null,null,null,null,null,null,null,null,null,null,null,null,null,null,null,null,null,null,null,null,null,null,null,null,null,null,null,null,null,null,null,null,null,null,null,null,null,null,null,null,null,null,null,null,null,null,null,null,null,null,null,null,null,null,null,null,null,null,null,null,null,null,null,null,null,null,null,null,null,null,null,null,null,null,null,null,null,null,null,null,null,null,null,null,null,null,null,null,null,null,null,null,null,null,null,null,null,null,null,null,null,null,null,null,null,null,null,null,null,null,null,null,null,null,null,null,null,null,null,null,null,null,null,null,null,null,null,null,null,null,null,null,null,null,null,null,null,null,null,null,null,null,null,null,null,null,null,null,null,null,null,null,null,null,null,null,null,null,null,null,null,null,null,null,null,null,null,null,null,null,null,null,null,null,null,null,null,null,null,null,null,null,null,null,null,null,null,null,null,null,null,null,null,null,null,null,null,null,null,null,null,null,null,null,null,null,null,null,null,null,null,null,null,null,null,null,null,null,null,null,null,null,null,null,null,null,null,null,null,null,null,null,null,null,null,null,null,null,null,null,null,null,null,null,null,null,null,null,null,null,null,null,null,null,null,null,null,null,null,null,null,null,null,null,null,null,null,null,null,null,null,null,null,null,null,null,null,null,null,null,null,null,null,null,null,null,null,null,null,null,null,null,null,null,null,null,null,null,null,null,null,null,null,null,null,null,null,null,null,null,null,null,null,null,null,null,null,null,null,null,null,null,null,null,null,null,null,null,null,null,null,null,null,null,null,null,null,null,null,null,null,null,null,null,null,null,null,null,null,null,null,null,null,null,null,null,null,null,null,null,null,null,null,null,null,null,null,null,null,null,null,null,null,null,null,null,null,null,null,null,null,null,null,null,null,null,null,null,null,null,null,null,null,null,null,null,null,null,null,null,null,null,null,null,null,null,null,null,null,null,null,null,null,null,null,null,null,null,null,null,null,null,null,null,null,null,null,null,null,null,null,null,null,null,null,null,null,null,null,null,null,null,null,null,null,null,null,null,null,null,null,null,null,null,null,null,null,null,null,null,null,null,null,null,null,null,null,null,null,null,null,null,null,null,null,null,null,null,null,null,null,null,null,null,null,null,null,null,null,null,null,null,null,null,null,null,null,null,null,null,null,null,null,null,null,null,null,null,null,null,null,null,null,null,null,null,null,null,null,null,null,null,null,null,null,null,null,null,null,null,null,null,null,null,null,null,null,null,null,null,null,null,null,null,null,null,null,null,null,null,null,null,null,null,null,null,null,null,null,null,null,null,null,null,null,null,null,null,null,null,null,null,null,null,null,null,null,null,null,null,null,null,null,null,null,null,null,null,null,null,null,null,null,null,null,null,null,null,null,null,null,null,null,null,null,null,null,null,null,null,null,null,null,null,null,null,null,null,null,null,null,null,null,null,null,null,null,null,null,null,null,null,null,null,null,null,null,null,null,null,null,null,null,null,null,null,null,null,null,null,null,null,null,null,null,null,null,null,null,null,null,null,null,null,null,null,null,null,null,null,null,null,null,null,null,null,null,null,null,null,null,null,null,null,null,null,null,null,null,null,null,null,null,null,null,null,null,null,null,null,null,null,null,null,null,null,null,null,null,null,null,null,null,null,null,null,null,null,null,null,null,null,null,null,null,null,null,null,null,null,null,null,null,null,null,null,null,null,null,null,null,null,null,null,null,null,null,null,null,null,null,null,null,null,null,null,null,null,null,null,null,null,null,null,null,null,null,null,null,null,null,null,null,null,null,null,null,null,null,null,null,null,null,null,null,null,null,null,null,null,null,null,null,null,null,null,null,null,null,null,null,null,null,null,null,null,null,null,null,null,null,null,null,null,null,null,null,null,null,null,null,null,null,null,null,null,null,null,null,null,null,null,null,null,null,null,null,null,null,null,null,null,null,null,null,null,null,null,null,null,null,null,null,null,null,null,null,null,null,null,null,null,null,null,null,null,null,null,null,null,null,null,null,null,null,null,null,null,null,null,null,null,null,null,null,null,null,null,null,null,null,null,null,null,null,null,null,null,null,null,null,null,null,null,null,null,null,null,null,null,null,null,null,null,null,null,null,null,null,null,null,null,null,null,null,null,null,null,null,null,null,null,null,null,null,null,null,null,null,null,null,null,null,null,null,null,null,null,null,null,null,null,null,null,null,null,null,null,null,null,null,null,null,null,null,null,null,null,null,null,null,null,null,null,null,null,null,null,null,null,null,null,null,null,null,null,null,null,null,null,null,null,null,null,null,null,null,null,null,null,null,null,null,null,null,null,null,null,null,null,null,null,null,null,null,null,null,null,null,null,null,null,null,null,null,null,null,null,null,null,null,null,null,null,null,null,null,null,null,null,null,null,null,null,null,null,null,null,null,null,null,null,null,null,null,null,null,null,null,null,null,null,null,null,null,null,null,null,null,null,null,null,null,null,null,null,null,null,null,null,null,null,null,null,null,null,null,null,null,null,null,null,null,null,null,null,null,null,null,null,null,null,null,null,null,null,null,null,null,null,null,null,null,null,null,null,null,null,null,null,null,null,null,null,null,null,null,null,null,null,null,null,null,null,null,null,null,null,null,null,null,null,null,null,null,null,null,null,null,null,null,null,null,null,null,null,null,null,null,null,null,null,null,null,null,null,null,null,null,null,null,null,null,null,null,null,null,null,null,null,null,null,null,null,null,null,null,null,null,null,null,null,null,null,null,null,null,null,null,null,null,null,null,null,null,null,null,null,null,null,null,null,null,null,null,null,null,null,null,null,null,null,null,null,null,null,null,null,null,null,null,null,null,null,null,null,null,null,null,null,null,null,null,null,null,null,null,null,null,null,null,null,null,null,null,null,null,null,null,null,null,null,null,null,null,null,null,null,null,null,null,null,null,null,null,null,null,null,null,null,null,null,null,null,null,null,null,null,null,null,null,null,null,null,null,null,null,null,null,null,null,null,null,null,null,null,null,null,null,null,null,null,null,null,null,null,null,null,null,null,null,null,null,null,null,null,null,null,null,null,null,null,null,null,null,null,null,null,null,null,null,null,null,null,null,null,null,null,null,null,null,null,null,null,null,null,null,null,null,null,null,null,null,null,null,null,null,null,null,null,null,null,null,null,null,null,null,null,null,null,null,null,null,null,null,null,null,null,null,null,null,null,null,null,null,null,null,null,null,null,null,null,null,null,null,null,null,null,null,null,null,null,null,null,null,null,null,null,null,null,null,null,null,null,null,null,null,null,null,null,null,null,null,null,null,null,null,null,null,null,null,null,null,null,null,null,null,null,null,null,null,null,null,null,null,null,null,null,null,null,null,null,null,null,null,null,null,null,null,null,null,null,null,null,null,null,null,null,null,null,null,null,null,null,null,null,null,null,null,null,null,null,null,null,null,null,null,null,null,null,null,null,null,null,null,null,null,null,null,null,null,null,null,null,null,null,null,null,null,null,null,null,null,null,null,null,null,null,null,null,null,null,null,null,null,null,null,null,null,null,null,null,null,null,null,null,null,null,null,null,null,null,null,null,null,null,null,null,null,null,null,null,null,null,null,null,null,null,null,null,null,null,null,null,null,null,null,null,null,null,null,null,null,null,null,null,null,null,null,null,null,null,null,null,null,null,null,null,null,null,null,null,null,null,null,null,null,null,null,null,null,null,null,null,null,null,null,null,null,null,null,null,null,null,null,null,null,null,null,null,null,null,null,null,null,null,null,null,null,null,null,null,null,null,null,null,null,null,null,null,null,null,null,null,null,null,null,null,null,null,null,null,null,null,null,null,null,null,null,null,null,null,null,null,null,null,null,null,null,null,null,null,null,null,null,null,null,null,null,null,null,null,null,null,null,null,null,null,null,null,null,null,null,null,null,null,null,null,null,null,null,null,null,null,null,null,null,null,null,null,null,null,null,null,null,null,null,null,null,null,null,null,null,null,null,null,null,null,null,null,null,null,null,null,null,null,null,null,null,null,null,null,null,null,null,null,null,null,null,null,null,null,null,null,null,null,null,null,null,null,null,null,null,null,null,null,null,null,null,null,null,null,null,null,null,null,null,null,null,null,null,null,null,null,null,null,null,null,null,null,null,null,null,null,null,null,null,null,null,null,null,null,null,null,null,null,null,null,null,null,null,null,null,null,null,null,null,null,null,null,null,null,null,null,null,null,null,null,null,null,null,null,null,null,null,null,null,null,null,null,null,null,null,null,null,null,null,null,null,null,null,null,null,null,null,null,null,null,null,null,null,null,null,null,null,null,null,null,null,null,null,null,null,null,null,null,null,null,null,null,null,null,null,null,null,null,null,null,null,null,null,null,null,null,null,null,null,null,null,null,null,null,null,null,null,null,null,null,null,null,null,null,null,null,null,null,null,null,null,null,null,null,null,null,null,null,null,null,null,null,null,null,null,null,null,null,null,null,null,null,null,null,null,null,null,null,null,null,null,null,null,null,null,null,null,null,null,null,null,null,null,null,null,null,null,null,null,null,null,null,null,null,null,null,null,null,null,null,null,null,null,null,null,null,null,null,null,null,null,null,null,null,null,null,null,null,null,null,null,null,null,null,null,null,null,null,null,null,null,null,null,null,null,null,null,null,null,null,null,null,null,null,null,null,null,null,null,null,null,null,null,null,null,null,null,null,null,null,null,null,null,null,null,null,null,null,null,null,null,null,null,null,null,null,null,null,null,null,null,null,null,null,null,null,null,null,null,null,null,null,null,null,null,null,null,null,null,null,null,null,null,null,null,null,null,null,null,null,null,null,null,null,null,null,null,null,null,null,null,null,null,null,null,null,null,null,null,null,null,null,null,null,null,null,null,null,null,null,null,null,null,null,null,null,null,null,null,null,null,null,null,null,null,null,null,null,null,null,null,null,null,null,null,null,null,null,null,null,null,null,null,null,null,null,null,null,null,null,null,null,null,null,null,null,null,null,null,null,null,null,null,null,null,null,null,null,null,null,null,null,null,null,null,null,null,null,null,null,null,null,null,null,null,null,null,null,null,null,null,null,null,null,null,null,null,null,null,null,null,null,null,null,null,null,null,null,null,null,null,null,null,null,null,null,null,null,null,null,null,null,null,null,null,null,null,null,null,null,null,null,null,null,null,null,null,null,null,null,null,null,null,null,null,null,null,null,null,null,null,null,null,null,null,null,null,null,null,null,null,null,null,null,null,null,null,null,null,null,null,null,null,null,null,null,null,null,null,null,null,null,null,null,null,null,null,null,null,null,null,null,null,null,null,null,null,null,null,null,null,null,null,null,null,null,null,null,null,null,null,null,null,null,null,null,null,null,null,null,null,null,null,null,null,null,null,null,null,null,null,null,null,null,null,null,null,null,null,null,null,null,null,null,null,null,null,null,null,null,null,null,null,null,null,null,null,null,null,null,null,null,null,null,null,null,null,null,null,null,null,null,null,null,null,null,null,null,null,null,null,null,null,null,null,null,null,null,null,null,null,null,null,null,null,null,null,null,null,null,null,null,null,null,null,null,null,null,null,null,null,null,null,null,null,null,null,null,null,null,null,null,null,null,null,null,null,null,null,null,null,null,null,null,null,null,null,null,null,null,null,null,null,null,null,null,null,null,null,null,null,null,null,null,null,null,null,null,null,null,null,null,null,null,null,null,null,null,null,null,null,null,null,null,null,null,null,null,null,null,null,null,null,null,null,null,null,null,null,null,null,null,null,null,null,null,null,null,null,null,null,null,null,null,null,null,null,null,null,null,null,null,null,null,null,null,null,null,null,null,null,null,null,null,null,null,null,null,null,null,null,null,null,null,null,null,null,null,null,null,null,null,null,null,null,null,null,null,null,null,null,null,null,null,null,null,null,null,null,null,null,null,null,null,null,null,null,null,null,null,null,null,null,null,null,null,null,null,null,null,null,null,null,null,null,null,null,null,null,null,null,null,null,null,null,null,null,null,null,null,null,null,null,null,null,null,null,null,null,null,null,null,null,null,null,null,null,null,null,null,null,null,null,null,null,null,null,null,null,null,null,null,null,null,null,null,null,null,null,null,null,null,null,null,null,null,null,null,null,null,null,null,null,null,null,null,null,null,null,null,null,null,null,null,null,null,null,null,null,null,null,null,null,null,null,null,null,null,null,null,null,null,null,null,null,null,null,null,null,null,null,null,null,null,null,null,null,null,null,null,null,null,null,null,null,null,null,null,null,null,null,null,null,null,null,null,null,null,null,null,null,null,null,null,null,null,null,null,null,null,null,null,null,null,null,null,null,null,null,null,null,null,null,null,null,null,null,null,null,null,null,null,null,null,null,null,null,null,null,null,null,null,null,null,null,null,null,null,null,null,null,null,null,null,null,null,null,null,null,null,null,null,null,null,null,null,null,null,null,null,null,null,null,null,null,null,null,null,null,null,null,null,null,null,null,null,null,null,null,null,null,null,null,null,null,null,null,null,null,null,null,null,null,null,null,null,null,null,null,null,null,null,null,null,null,null,null,null,null,null,null,null,null,null,null,null,null,null,null,null,null,null,null,null,null,null,null,null,null,null,null,null,null,null,null,null,null,null,null,null,null,null,null,null,null,null,null,null,null,null,null,null,null,null,null,null,null,null,null,null,null,null,null,null,null,null,null,null,null,null,null,null,null,null,null,null,null,null,null,null,null,null,null,null,null,null,null,null,null,null,null,null,null,null,null,null,null,null,null,null,null,null,null,null,null,null,null,null,null,null,null,null,null,null,null,null,null,null,null,null,null,null,null,null,null,null,null,null,null,null,null,null,null,null,null,null,null,null,null,null,null,null,null,null,null,null,null,null,null,null,null,null,null,null,null,null,null,null,null,null,null,null,null,null,null,null,null,null,null,null,null,null,null,null,null,null,null,null,null,null,null,null,null,null,null,null,null,null,null,null,null,null,null,null,null,null,null,null,null,null,null,null,null,null,null,null,null,null,null,null,null,null,null,null,null,null,null,null,null,null,null,null,null,null,null,null,null,null,null,null,null,null,null,null,null,null,null,null,null,null,null,null,null,null,null,null,null,null,null,null,null,null,null,null,null,null,null,null,null,null,null,null,null,null,null,null,null,null,null,null,null,null,null,null,null,null,null,null,null,null,null,null,null,null,null,null,null,null,null,null,null,null,null,null,null,null,null,null,null,null,null,null,null,null,null,null,null,null,null,null,null,null,null,null,null,null,null,null,null,null,null,null,null,null,null,null,null,null,null,null,null,null,null,null,null,null,null,null,null,null,null,null,null,null,null,null,null,null,null,null,null,null,null,null,null,null,null,null,null,null,null,null,null,null,null,null,null,null,null,null,null,null,null,null,null,null,null,null,null,null,null,null,null,null,null,null,null,null,null,null,null,null,null,null,null,null,null,null,null,null,null,null,null,null,null,null,null,null,null,null,null,null,null,null,null,null,null,null,null,null,null,null,null,null,null,null,null,null,null,null,null,null,null,null,null,null,null,null,null,null,null,null,null,null,null,null,null,null,null,null,null,null,null,null,null,null,null,null,null,null,null,null,null,null,null,null,null,null,null,null,null,null,null,null,null,null,null,null,null,null,null,null,null,null,null,null,null,null,null,null,null,null,null,null,null,null,null,null,null,null,null,null,null,null,null,null,null,null,null,null,null,null,null,null,null,null,null,null,null,null,null,null,null,null,null,null,null,null,null,null,null,null,null,null,null,null,null,null,null,null,null,null,null,null,null,null,null,null,null,null,null,null,null,null,null,null,null,null,null,null,null,null,null,null,null,null,null,null,null,null,null,null,null,null,null,null,null,null,null,null,null,null,null,null,null,null,null,null,null,null,null,null,null,null,null,null,null,null,null,null,null,null,null,null,null,null,null,null,null,null,null,null,null,null,null,null,null,null,null,null,null,null,null,null,null,null,null,null,null,null,null,null,null,null,null,null,null,null,null,null,null,null,null,null,null,null,null,null,null,null,null,null,null,null,null,null,null,null,null,null,null,null,null,null,null,null,null,null,null,null,null,null,null,null,null,null,null,null,null,null,null,null,null,null,null,null,null,null,null,null,null,null,null,null,null,null,null,null,null,null,null,null,null,null,null,null,null,null,null,null,null,null,null,null,null,null,null,null,null,null,null,null,null,null,null,null,null,null,null,null,null,null,null,null,null,null,null,null,null,null,null,null,null,null,null,null,null,null,null,null,null,null,null,null,null,null,null,null,null,null,null,null,null,null,null,null,null,null,null,null,null,null,null,null,null,null,null,null,null,null,null,null,null,null,null,null,null,null,null,null,null,null,null,null,null,null,null,null,null,null,null,null,null,null,null,null,null,null,null,null,null,null,null,null,null,null,null,null,null,null,null,null,null,null,null,null,null,null,null,null,null,null,null,null,null,null,null,null,null,null,null,null,null,null,null,null,null,null,null,null,null,null,null,null,null,null,null,null,null,null,null,null,null,null,null,null,null,null,null,null,null,null,null,null,null,null,null,null,null,null,null,null,null,null,null,null,null,null,null,null,null,null,null,null,null,null,null,null,null,null,null,null,null,null,null,null,null,null,null,null,null,null,null,null,null,null,null,null,null,null,null,null,null,null,null,null,null,null,null,null,null,null,null,null,null,null,null,null,null,null,null,null,null,null,null,null,null,null,null,null,null,null,null,null,null,null,null,null,null,null,null,null,null,null,null,null,null,null,null,null,null,null,null,null,null,null,null,null,null,null,null,null,null,null,null,null,null,null,null,null,null,null,null,null,null,null,null,null,null,null,null,null,null,null,null,null,null,null,null,null,null,null,null,null,null,null,null,null,null,null,null,null,null,null,null,null,null,null,null,null,null,null,null,null,null,null,null,null,null,null,null,null,null,null,null,null,null,null,null,null,null,null,null,null,null,null,null,null,null,null,null,null,null,null,null,null,null,null,null,null,null,null,null,null,null,null,null,null,null,null,null,null,null,null,null,null,null,null,null,null,null,null,null,null,null,null,null,null,null,null,null,null,null,null,null,null,null,null,null,null,null,null,null,null,null,null,null,null,null,null,null,null,null,null,null,null,null,null,null,null,null,null,null,null,null,null,null,null,null,null,null,null,null,null,null,null,null,null,null,null,null,null,null,null,null,null,null,null,null,null,null,null,null,null,null,null,null,null,null,null,null,null,null,null,null,null,null,null,null,null,null,null,null,null,null,null,null,null,null,null,null,null,null,null,null,null,null,null,null,null,null,null,null,null,null,null,null,null,null,null,null,null,null,null,null,null,null,null,null,null,null,null,null,null,null,null,null,null,null,null,null,null,null,null,null,null,null,null,null,null,null,null,null,null,null,null,null,null,null,null,null,null,null,null,null,null,null,null,null,null,null,null,null,null,null,null,null,null,null,null,null,null,null,null,null,null,null,null,null,null,null,null,null,null,null,null,null,null,null,null,null,null,null,null,null,null,null,null,null,null,null,null,null,null,null,null,null,null,null,null,null,null,null,null,null,null,null,null,null,null,null,null,null,null,null,null,null,null,null,null,null,null,null,null,null,null,null,null,null,null,null,null,null,null,null,null,null,null,null,null,null,null,null,null,null,null,null,null,null,null,null,null,null,null,null,null,null,null,null,null,null,null,null,null,null,null,null,null,null,null,null,null,null,null,null,null,null,null,null,null,null,null,null,null,null,null,null,null,null,null,null,null,null,null,null,null,null,null,null,null,null,null,null,null,null,null,null,null,null,null,null,null,null,null,null,null,null,null,null,null,null,null,null,null,null,null,null,null,null,null,null,null,null,null,null,null,null,null,null,null,null,null,null,null,null,null,null,null,null,null,null,null,null,null,null,null,null,null,null,null,null,null,null,null,null,null,null,null,null,null,null,null,null,null,null,null,null,null,null,null,null,null,null,null,null,null,null,null,null,null,null,null,null,null,null,null,null,null,null,null,null,null,null,null,null,null,null,null,null,null,null,null,null,null,null,null,null,null,null,null,null,null,null,null,null,null,null,null,null,null,null,null,null,null,null,null,null,null,null,null,null,null,null,null,null,null,null,null,null,null,null,null,null,null,null,null,null,null,null,null,null,null,null,null,null,null,null,null,null,null,null,null,null,null,null,null,null,null,null,null,null,null,null,null,null,null,null,null,null,null,null,null,null,null,null,null,null,null,null,null,null,null,null,null,null,null,null,null,null,null,null,null,null,null,null,null,null,null,null,null,null,null,null,null,null,null,null,null,null,null,null,null,null,null,null,null,null,null,null,null,null,null,null,null,null,null,null,null,null,null,null,null,null,null,null,null,null,null,null,null,null,null,null,null,null,null,null,null,null,null,null,null,null,null,null,null,null,null,null,null,null,null,null,null,null,null,null,null,null,null,null,null,null,null,null,null,null,null,null,null,null,null,null,null,null,null,null,null,null,null,null,null,null,null,null,null,null,null,null,null,null,null,null,null,null,null,null,null,null,null,null,null,null,null,null,null,null,null,null,null,null,null,null,null,null,null,null,null,null,null,null,null,null,null,null,null,null,null,null,null,null,null,null,null,null,null,null,null,null,null,null,null,null,null,null,null,null,null,null,null,null,null,null,null,null,null,null,null,null,null,null,null,null,null,null,null,null,null,null,null,null,null,null,null,null,null,null,null,null,null,null,null,null,null,null,null,null,null,null,null,null,null,null,null,null,null,null,null,null,null,null,null,null,null,null,null,null,null,null,null,null,null,null,null,null,null,null,null,null,null,null,null,null,null,null,null,null,null,null,null,null,null,null,null,null,null,null,null,null,null,null,null,null,null,null,null,null,null,null,null,null,null,null,null,null,null,null,null,null,null,null,null,null,null,null,null,null,null,null,null,null,null,null,null,null,null,null,null,null,null,null,null,null,null,null,null,null,null,null,null,null,null,null,null,null,null,null,null,null,null,null,null,null,null,null,null,null,null,null,null,null,null,null,null,null,null,null,null,null,null,null,null,null,null,null,null,null,null,null,null,null,null,null,null,null,null,null,null,null,null,null,null,null,null,null,null,null,null,null,null,null,null,null,null,null,null,null,null,null,null,null,null,null,null,null,null,null,null,null,null,null,null,null,null,null,null,null,null,null,null,null,null,null,null,null,null,null,null,null,null,null,null,null,null,null,null,null,null,null,null,null,null,null,null,null,null,null,null,null,null,null,null,null,null,null,null,null,null,null,null,null,null,null,null,null,null,null,null,null,null,null,null,null,null,null,null,null,null,null,null,null,null,null,null,null,null,null,null,null,null,null,null,null,null,null,null,null,null,null,null,null,null,null,null,null,null,null,null,null,null,null,null,null,null,null,null,null,null,null,null,null,null,null,null,null,null,null,null,null,null,null,null,null,null,null,null,null,null,null,null,null,null,null,null,null,null,null,null,null,null,null,null,null,null,null,null,null,null,null,null,null,null,null,null,null,null,null,null,null,null,null,null,null,null,null,null,null,null,null,null,null,null,null,null,null,null,null,null,null,null,null,null,null,null,null,null,null,null,null,null,null,null,null,null,null,null,null,null,null,null,null,null,null,null,null,null,null,null,null,null,null,null,null,null,null,null,null,null,null,null,null,null,null,null,null,null,null,null,null,null,null,null,null,null,null,null,null,null,null,null,null,null,null,null,null,null,null,null,null,null,null,null,null,null,null,null,null,null,null,null,null,null,null,null,null,null,null,null,null,null,null,null,null,null,null,null,null,null,null,null,null,null,null,null,null,null,null,null,null,null,null,null,null,null,null,null,null,null,null,null,null,null,null,null,null,null,null,null,null,null,null,null,null,null,null,null,null,null,null,null,null,null,null,null,null,null,null,null,null,null,null,null,null,null,null,null,null,null,null,null,null,null,null,null,null,null,null,null,null,null,null,null,null,null,null,null,null,null,null,null,null,null,null,null,null,null,null,null,null,null,null,null,null,null,null,null,null,null,null,null,null,null,null,null,null,null,null,null,null,null,null,null,null,null,null,null,null,null,null,null,null,null,null,null,null,null,null,null,null,null,null,null,null,null,null,null,null,null,null,null,null,null,null,null,null,null,null,null,null,null,null,null,null,null,null,null,null,null,null,null,null,null,null,null,null,null,null,null,null,null,null,null,null,null,null,null,null,null,null,null,null,null,null,null,null,null,null,null,null,null,null,null,null,null,null,null,null,null,null,null,null,null,null,null,null,null,null,null,null,null,null,null,null,null,null,null,null,null,null,null,null,null,null,null,null,null,null,null,null,null,null,null,null,null,null,null,null,null,null,null,null,null,null,null,null,null,null,null,null,null,null,null,null,null,null,null,null,null,null,null,null,null,null,null,null,null,null,null,null,null,null,null,null,null,null,null,null,null,null,null,null,null,null,null,null,null,null,null,null,null,null,null,null,null,null,null,null,null,null,null,null,null,null,null,null,null,null,null,null,null,null,null,null,null,null,null,null,null,null,null,null,null,null,null,null,null,null,null,null,null,null,null,null,null,null,null,null,null,null,null,null,null,null,null,null,null,null,null,null,null,null,null,null,null,null,null,null,null,null,null,null,null,null,null,null,null,null,null,null,null,null,null,null,null,null,null,null,null,null,null,null,null,null,null,null,null,null,null,null,null,null,null,null,null,null,null,null,null,null,null,null,null,null,null,null,null,null,null,null,null,null,null,null,null,null,null,null,null,null,null,null,null,null,null,null,null,null,null,null,null,null,null,null,null,null,null,null,null,null,null,null,null,null,null,null,null,null,null,null,null,null,null,null,null,null,null,null,null,null,null,null,null,null,null,null,null,null,null,null,null,null,null,null,null,null,null,null,null,null,null,null,null,null,null,null,null,null,null,null,null,null,null,null,null,null,null,null,null,null,null,null,null,null,null,null,null,null,null,null,null,null,null,null,null,null,null,null,null,null,null,null,null,null,null,null,null,null,null,null,null,null,null,null,null,null,null,null,null,null,null,null,null,null,null,null,null,null,null,null,null,null,null,null,null,null,null,null,null,null,null,null,null,null,null,null,null,null,null,null,null,null,null,null,null,null,null,null,null,null,null,null,null,null,null,null,null,null,null,null,null,null,null,null,null,null,null,null,null,null,null,null,null,null,null,null,null,null,null,null,null,null,null,null,null,null,null,null,null,null,null,null,null,null,null,null,null,null,null,null,null,null,null,null,null,null,null,null,null,null,null,null,null,null,null,null,null,null,null,null,null,null,null,null,null,null,null,null,null,null,null,null,null,null,null,null,null,null,null,null,null,null,null,null,null,null,null,null,null,null,null,null,null,null,null,null,null,null,null,null,null,null,null,null,null,null,null,null,null,null,null,null,null,null,null,null,null,null,null,null,null,null,null,null,null,null,null,null,null,null,null,null,null,null,null,null,null,null,null,null,null,null,null,null,null,null,null,null,null,null,null,null,null,null,null,null,null,null,null,null,null,null,null,null,null,null,null,null,null,null,null,null,null,null,null,null,null,null,null,null,null,null,null,null,null,null,null,null,null,null,null,null,null,null,null,null,null,null,null,null,null,null,null,null,null,null,null,null,null,null,null,null,null,null,null,null,null,null,null,null,null,null,null,null,null,null,null,null,null,null,null,null,null,null,null,null,null,null,null,null,null,null,null,null,null,null,null,null,null,null,null,null,null,null,null,null,null,null,null,null,null,null,null,null,null,null,null,null,null,null,null,null,null,null,null,null,null,null,null,null,null,null,null,null,null,null,null,null,null,null,null,null,null,null,null,null,null,null,null,null,null,null,null,null,null,null,null,null,null,null,null,null,null,null,null,null,null,null,null,null,null,null,null,null,null,null,null,null,null,null,null,null,null,null,null,null,null,null,null,null,null,null,null,null,null,null,null,null,null,null,null,null,null,null,null,null,null,null,null,null,null,null,null,null,null,null,null,null,null,null,null,null,null,null,null,null,null,null,null,null,null,null,null,null,null,null,null,null,null,null,null,null,null,null,null,null,null,null,null,null,null,null,null,null,null,null,null,null,null,null,null,null,null,null,null,null,null,null,null,null,null,null,null,null,null,null,null,null,null,null,null,null,null,null,null,null,null,null,null,null,null,null,null,null,null,null,null,null,null,null,null,null,null,null,null,null,null,null,null,null,null,null,null,null,null,null,null,null,null,null,null,null,null,null,null,null,null,null,null,null,null,null,null,null,null,null,null,null,null,null,null,null,null,null,null,null,null,null,null,null,null,null,null,null,null,null,null,null,null,null,null,null,null,null,null,null,null,{"$f":"SUM(A46:XFC46)","v":60200}]
[null,"מוטוריקה גסה"]
[null,"נדנדות",1,4570,4570,null,null,0]
[null,"גלילים",1,2860,2860,null,null,0]
[null,"כדורים שונים",1,1480,1480,null,null,0]
[null,"עזרים לפיתוח שיווי משקל ",3,500,1500,null,null,0]
[null,"מזרונים",1,1500,1500,null,null,0]
[null,"אביזרי טיפוס",1,3000,3000,null,null,0]
[null,"ערכות הפעלה",1,2300,2300,null,null,0]
[null,"אביזרים לפעילות קבוצתית",1,4000,4000,null,null,0]
[null,"משחקי גירוי תגובה",1,3000,3000,null,null,0]
[null,"התקנות והתאמות",1,1500,1500,null,null,0]
[null,"עזרי הפעלה ועוררות ",1,1200,1200,null,null,{"$f":"G58*D58","v":0}]
[null,"עזרי פעילות תנועתית",1,3500,{"$f":"D59*C59","v":3500},null,null,0]
[null,"כח וסיבולת",1,1500,1500,null,null,0]
[null," ארון אחסון לאביזרים הקטנים",1,2000,2000,null,null,0]
[null,"מדף אחסון לכדורים וגלילים",1,1700,1700,null,null,0]
[null,"סה\"כ  מוטוריקה גסה כולל מע\"מ",null,null,{"$f":"SUM(E48:E62)","v":35610},null,null,{"$f":"SUM(H48:H62)","v":0},{"$f":"B63","v":"סה\"כ  מוטוריקה גסה כולל מע\"מ"},null,{"$f":"B63","v":"סה\"כ  מוטוריקה גסה כולל מע\"מ"},null,null,{"$f":"SUM(N48:N62)","v":0}]
[null,"מכשירי כושר"]
[null,"אופנים + טלויזיה",1,5500,5500,null,null,0]
[null,"מדרגות ארוביות ",1,1450,1450,null,null,0]
[null,"בוסו",1,1760,1760,null,null,0]
[null,"פולי",1,6800,6800,null,null,0]
[null,"מעמד עם APT",1,14000,14000,null,null,0]
[null,"אופנים עם משענת",1,10500,10500,null,null,0]
[null,"אופני ידיים ורגליים מתכווננים",1,27000,27000,null,null,0]
[null,"הליכון חשמלי",1,23500,23500,null,null,0]
[null,"מתקן נשיאה",1,14500,14500,null,null,0]
[null,"גומיות, כדורי כח ומשקוליות תקציב כולל",1,1600,1600,null,null,0]
[null,"תלת אופן גדול",1,12000,12000,null,null,0]
[null,"קסדות בגדלים ובצבעים שונים- תקציב כולל",1,1700,1700,null,null,0]
[null,"תלת אופן קטן",1,8500,8500,null,null,0]
[null,"תלת אופן רגיל",1,400,400,null,null,0]
[null,"סה\"כ מכשירים ",null,null,{"$f":"SUM(E65:E78)","v":129210},null,null,{"$f":"SUM(H65:H78)","v":0},{"$f":"B79","v":"סה\"כ מכשירים "},null,{"$f":"B79","v":"סה\"כ מכשירים "},null,null,{"$f":"SUM(N65:N78)","v":0}]
[null,"סה\"כ ציוד פיזותרפיה כולל מע\"מ",null,null,{"$f":"E15+E19+E26+E39+E46+E63+E79","v":445850},null,null,{"$f":"H15+H19+H26+H39+H46+H63+H79","v":0},{"$f":"B80","v":"סה\"כ ציוד פיזותרפיה כולל מע\"מ"},null,{"$f":"B80","v":"סה\"כ ציוד פיזותרפיה כולל מע\"מ"},null,null,{"$f":"N15+N19+N26+N39+N46+N63+N79","v":0}]

{"sheet":"ט. ציוד טיפולי-שיקומי","index":9,"n_rows":17,"n_cols":14,"rows_kept":17,"cut":false,"hidden":false,"merged":[[4,1,4,4],[4,6,4,8],[4,10,4,13],[16,1,16,3]]}
[null,{"$f":"'ב. תוכן עניינים'!C22","v":"ציוד טיפולי שיקומי"},null,null,null,null,"שלב הגשת הבקשה:",null,null,null,"שלב הדיווח על ההוצאות:"]
[null,"שם המסגרת :",{"$f":"'ג. שאלון למילוי מגיש הבקשה'!G24","v":0},null,null,null,"עליכם למלא גיליון ג' בטרם מילוי הגיליונות האחרים.",null,null,null,"לאחר אישור הבקשה יוחזר הגיליון עם הפריטים המאושרים"]
[null,"סוג המסגרת :",{"$f":"'ג. שאלון למילוי מגיש הבקשה'!G26","v":"נא לבחור מתוך הרשימה"},null,null,null,"גיליונות ד' עד י\"ב עליכם למלא רק עמודות הצבועות בירוק",null,null,null,"גיליונות ד' עד י\"ב עליכם למלא רק עמודות הצבועות בכתום",null,null,"הצבועות בוורוד"]
[null,"מספר האנשים שעבורם מיועד הפרויקט :",{"$f":"'ג. שאלון למילוי מגיש הבקשה'!G42","v":0},null,null,null,"אין לגעת בתאים האחרים- תאים אלו יהיו נעולים",null,null,null,"אין לגעת בתאים האחרים- תאים אלו יהיו נעולים"]
[null,"תקן",null,null,null,null,"בקשת הגוף ",null,null,null,"דיווח לתשלום לאחר ביצוע"]
[null,"פריטים","כמות תקן","עלות ליחידה כולל מע\"מ","סך עלות  כולל מע\"מ",null,"כמות מבוקשת ","תקציב מבוקש ","הערות הגוף",null,"הפריט שנרכש","מס' חשבונית מס","תאריך חשבונית מס","סכום כולל מע\"מ"]
[null,"מיטה סיעודית כולל מזרן רגיל",1,7500,{"$f":"D7*C7","v":7500},null,null,{"$f":"G7*D7","v":0}]
[null,"מזרן אויר דינאמי (מזרן נגד פצעי לחץ)",1,5500,{"$f":"D8*C8","v":5500},null,null,0]
[null,"כיסאות רחצה- סטנדרטי",1,1690,1690,null,null,0]
[null,"כיסאות רחצה- טילט",1,4850,4850,null,null,0]
[null,"כיסאות רחצה",1,2150,2150,null,null,0]
[null,"אלונקת רחצה",1,15500,15500,null,null,0]
[null,"מיטת החתלה כולל מזרן",1,6500,6500,null,null,0]
[null,"כיסאות שירותים נייח",1,341,341,null,null,0]
[null,"מאחזי יד (סכום גלובלי)",1,500,500,null,null,0]
[null,"הגבהות לאסלה עם ידיות",1,680,680,null,null,0]
[null,"סה\"כ ציוד טיפולי שיקומי כולל מע\"מ",null,null,{"$f":"SUM(E7:E16)","v":45211},null,null,{"$f":"SUM(H7:H16)","v":0},{"$f":"B17","v":"סה\"כ ציוד טיפולי שיקומי כולל מע\"מ"},null,{"$f":"B17","v":"סה\"כ ציוד טיפולי שיקומי כולל מע\"מ"},null,null,{"$f":"SUM(N7:N16)","v":0}]

{"sheet":"י. מטבח מבשל","index":10,"n_rows":33,"n_cols":14,"rows_kept":33,"cut":false,"hidden":false,"merged":[[4,1,4,4],[4,6,4,8],[4,10,4,13],[32,1,32,3]]}
[null,{"$f":"'ב. תוכן עניינים'!C23","v":"ציוד מטבח מבשל"},null,null,null,null,"שלב הגשת הבקשה:",null,null,null,"שלב הדיווח על ההוצאות:"]
[null,"שם המסגרת :",{"$f":"'ג. שאלון למילוי מגיש הבקשה'!G24","v":0},null,null,null,"עליכם למלא גיליון ג' בטרם מילוי הגיליונות האחרים.",null,null,null,"לאחר אישור הבקשה יוחזר הגיליון עם הפריטים המאושרים","לאחר אישור הבקשה יוחזר הגיליון עם הפריטים המאושרים","לאחר אישור הבקשה יוחזר הגיליון עם הפריטים המאושרים"]
[null,"סוג המסגרת :",{"$f":"'ג. שאלון למילוי מגיש הבקשה'!G26","v":"נא לבחור מתוך הרשימה"},null,null,null,"גיליונות ד' עד י\"ב עליכם למלא רק עמודות הצבועות בירוק",null,null,null,"גיליונות ד' עד י\"ב עליכם למלא רק עמודות הצבועות בכתום",null,null,"צבועות בוורוד"]
[null,"מספר האנשים שעבורם מיועד הפרויקט :",{"$f":"'ג. שאלון למילוי מגיש הבקשה'!G42","v":0},null,null,null,"אין לגעת בתאים האחרים- תאים אלו יהיו נעולים",null,null,null,"אין לגעת בתאים האחרים- תאים אלו יהיו נעולים"]
[null,"תקן",null,null,null,null,"בקשת הגוף ",null,null,null,"דיווח לתשלום לאחר ביצוע"]
[null,"פריטים","כמות תקן","עלות ליחידה כולל מע\"מ","סך עלות  כולל מע\"מ",null,"כמות מבוקשת ","תקציב מבוקש ","הערות הגוף",null,"הפריט שנרכש","מס' חשבונית מס","תאריך חשבונית מס","סכום כולל מע\"מ"]
[null,"מקרר ארון חד רוחבי",3,{"$f":"5500*1.17","v":6435},{"$f":"D7*C7","v":19305},null,null,{"$f":"G7*D7","v":0}]
[null,"מקפיא ארון חד רוחבי",2,{"$f":"6500*1.17","v":7604.9999999999991},15209.999999999998,null,null,0]
[null,"מקרר דלפק",1,{"$f":"5000*1.17","v":5850},5850,null,null,0]
[null,"שולחן כניסה ויציאה  למדיח כלים",1,{"$f":"6100*1.17","v":7137},7137,null,null,0]
[null,"מדיח כלים חצי תעשייתי / תעשייתי ",1,15000,15000,null,null,0]
[null,"מרכך מים 230 ליטר/שעה",1,{"$f":"4000*1.17","v":4680},4680,null,null,0]
[null,"כיריים חשמליות  / גז  6  להבות",1,10000,10000,null,null,0]
[null,"תנור קומביסטימר",1,32000,32000,null,null,0]
[null,"מקסר / בלנדר - בייתי / תעשייתי",1,3000,3000,null,null,0]
[null,"קוצץ ירקות שולחני",1,{"$f":"5400*1.17","v":6318},6318,null,null,0]
[null,"מעבד מזון תעשייתי",1,7605,7605,null,null,0]
[null,"משטחי עבודה",4,{"$f":"1500*1.17","v":1755},7020,null,null,0]
[null,"שולחן כיור",3,{"$f":"3900*1.17","v":4563},13689,null,null,0]
[null,"מיקרוגל לעומס בינוני",1,{"$f":"2400*1.17","v":2808},2808,null,null,0]
[null,"מחבת מתהפך 50 ליטר",1,19608,19608,null,null,0]
[null,"ארון חימום תחתון/ מעמד לתנור",1,{"$f":"6000*1.17","v":7020},7020,null,null,0]
[null,"סוללה עם מתז עליון על שולחן",2,{"$f":"1500*1.17","v":1755},3510,null,null,0]
[null,"ברז שולחני עם פיה מסתובבת לכיור עבודה",4,{"$f":"400*1.17","v":468},{"$f":"D24*C24","v":1872},null,null,0]
[null,"מדף עליון כפול",4,{"$f":"1650*1.17","v":1930.4999999999998},7721.9999999999991,null,null,0]
[null,"מתלה ייבוש לצלחות עם מדף לספלים",2,{"$f":"1000*1.17","v":1170},2340,null,null,0]
[null,"עגלת עבודה",2,1521,3042,null,null,0]
[null,"עגלה עם מיכל אשפה  80 ליטר",3,{"$f":"590*1.17","v":690.3},2070.8999999999996,null,null,0]
[null,"עגלת חימום / קרור",2,15000,{"$f":"D29*C29","v":30000},null,null,0]
[null,"מיחם אוטומטי  25 ליטר",1,4500,{"$f":"D30*C30","v":4500},null,null,0]
[null,"כלי מטבח",1,10000,{"$f":"D31*C31","v":10000},null,null,0]
[null,"ארון אחסון יבש ",2,3700,7400,null,null,0]
[null,"סה\"כ ציוד מטבח מבשל - כולל מע\"מ",null,null,{"$f":"SUM(E7:E32)","v":248706.9},null,null,{"$f":"SUM(H7:H32)","v":0},{"$f":"B33","v":"סה\"כ ציוד מטבח מבשל - כולל מע\"מ"},null,{"$f":"B33","v":"סה\"כ ציוד מטבח מבשל - כולל מע\"מ"},null,null,{"$f":"SUM(N7:N32)","v":0}]

{"sheet":"יא. ציוד צוות","index":11,"n_rows":37,"n_cols":14,"rows_kept":37,"cut":false,"hidden":false,"merged":[[4,1,4,4],[4,6,4,8],[4,10,4,13]]}
[null,{"$f":"'ב. תוכן עניינים'!C24","v":"ציוד לצוות"},null,null,null,null,"שלב הגשת הבקשה:",null,null,null,"שלב הדיווח על ההוצאות:"]
[null,"שם המסגרת :",{"$f":"'ג. שאלון למילוי מגיש הבקשה'!G24","v":0},null,null,null,"עליכם למלא גיליון ג' בטרם מילוי הגיליונות האחרים.",null,null,null,"לאחר אישור הבקשה יוחזר הגיליון עם הפריטים המאושרים"]
[null," : מס' אנשי צוות  ",{"$f":"$C$37","v":0},null,null,null,"גיליונות ד' עד י\"ב עליכם למלא רק עמודות הצבועות בירוק",null,null,null,"גליונות ד'-י\"ב עליכם למלא רק בעמודות הצבועות בוורוד"]
[null,null,null,null,null,null,"אין לגעת בתאים האחרים- תאים אלו יהיו נעולים",null,null,null,"אין לגעת בתאים האחרים- תאים אלו יהיו נעולים"]
[null,"תקן",null,null,null,null,"בקשת הגוף ",null,null,null,"דיווח לתשלום לאחר ביצוע"]
[null,"פריטים","כמות תקן","עלות ליחידה כולל מע\"מ","סך עלות  כולל מע\"מ",null,"כמות מבוקשת ","תקציב מבוקש ","הערות הגוף",null,"הפריט שנרכש","מס' חשבונית מס","תאריך חשבונית מס","סכום כולל מע\"מ"]
[null,"כיסא אישי",{"$f":"$C$3","v":0},500,{"$f":"D7*C7","v":0},null,null,{"$f":"G7*D7","v":0}]
[null,"שולחן מגירה",{"$f":"$C$3","v":0},1500,0,null,null,0]
[null,"עמדת מחשב ",{"$f":"$C$3","v":0},500,0,null,null,0]
[null,"מחשב+תוכנות",{"$f":"$C$3","v":0},3000,0,null,null,0]
[null,"כיסא אורחים",{"$f":"$C$3","v":0},350,0,null,null,0]
[null,"ארון",{"$f":"ROUNDUP($C$3/4,0)","v":0},2000,0,null,null,0]
[null,"ציוד תקשורת ומולטימדיה",{"$f":"ROUNDUP($C$3*0.3,0)","v":0},750,0,null,null,0]
[null,"אביזרי עיצוב ",1,2000,2000,null,null,0]
[null,"סה\"כ ציוד צוות כולל מע\"מ",null,null,{"$f":"SUM(E7:E14)","v":2000},null,null,{"$f":"SUM(H7:H14)","v":0},{"$f":"B15","v":"סה\"כ ציוד צוות כולל מע\"מ"},null,{"$f":"B15","v":"סה\"כ ציוד צוות כולל מע\"מ"},null,null,{"$f":"SUM(N7:N14)","v":0}]
[]
[null,"טבלת עזר לאנשי הצוות"]
[null,"פירוט תפקיד "," מס' אנשים "]
[]
[]
[]
[]
[]
[]
[]
[]
[]
[]
[]
[]
[]
[]
[]
[]
[]
[]
[null,"סה\"כ אנשי צוות במסגרת",{"$f":"SUM(C19:C36)","v":0}]

{"sheet":"יב. ציוד נוסף","index":12,"n_rows":29,"n_cols":18,"rows_kept":29,"cut":false,"hidden":false,"merged":[[5,4,5,6],[5,7,5,9],[5,10,5,12],[5,14,5,17]]}
[null,{"$f":"'ב. תוכן עניינים'!C25","v":"ציוד נוסף"},null,null,null,null,null,null,null,null,"שלב הגשת הבקשה:",null,null,null,"שלב הדיווח על ההוצאות:"]
[null,"ציוד נוסף/משלים  ניתן להכניס בטבלה  זאת  יש להציג  2  הצעות מחיר  ולציין  בטורים  K-L  את  ההצעה המועדפת.",null,null,null,null,null,null,null,null,"עליכם למלא גיליון ג' בטרם מילוי הגיליונות האחרים.",null,null,null,"לאחר אישור הבקשה יוחזר הגיליון עם הפריטים המאושרים"]
[null,"שם המסגרת",null,{"$f":"'ג. שאלון למילוי מגיש הבקשה'!G24","v":0},null,null,null,null,null,null,"גיליונות ד' עד י\"ב עליכם למלא רק עמודות הצבועות בירוק",null,null,null,"גיליונות ד' עד י\"ב עליכם למלא רק עמודות הצבועות בוורוד"]
[null,"סוג המסגרת",null,{"$f":"'ג. שאלון למילוי מגיש הבקשה'!G26","v":"נא לבחור מתוך הרשימה"},null,null,null,null,null,null,"אין לגעת בתאים האחרים- תאים אלו יהיו נעולים",null,null,null,"אין לגעת בתאים האחרים- תאים אלו יהיו נעולים"]
[null,"מספר האנשים שעבורם מיועד הפרויקט",null,{"$f":"'ג. שאלון למילוי מגיש הבקשה'!G42","v":0}]
[null,"ציוד נוסף",null,null,"הצעה ראשונה ",null,null," הצעה שניה",null,null,"הצעה מועדפת",null,null,null,"דיווח לתשלום לאחר ביצוע"]
[null,"תאור הציוד","יעוד הציוד","כמות מבוקשת","הספק 1","מחיר ליחידה ","סכום ","שם הספק 2","מחיר ליחידה ","סכום","הספק  המועדף","מחיר ליחידה ","סכום",null,"הפריט שנרכש","מס' חשבונית מס","תאריך חשבונית מס","סכום כולל מע\"מ"]
[null,null,null,null,null,null,{"$f":"D8*F8","v":0},null,null,{"$f":"$D8*I8","v":0},null,null,{"$f":"D8*L8","v":0}]
[null,null,null,null,null,null,0,null,null,{"$f":"$D9*I9","v":0},null,null,{"$f":"D9*L9","v":0}]
[null,null,null,null,null,null,0,null,null,0,null,null,0]
[null,null,null,null,null,null,0,null,null,0,null,null,0]
[null,null,null,null,null,null,0,null,null,0,null,null,0]
[null,null,null,null,null,null,0,null,null,0,null,null,0]
[null,null,null,null,null,null,0,null,null,0,null,null,0]
[null,null,null,null,null,null,0,null,null,0,null,null,0]
[null,null,null,null,null,null,0,null,null,0,null,null,0]
[null,null,null,null,null,null,0,null,null,0,null,null,0]
[null,null,null,null,null,null,0,null,null,0,null,null,0]
[null,null,null,null,null,null,0,null,null,0,null,null,0]
[null,null,null,null,null,null,0,null,null,0,null,null,0]
[null,null,null,null,null,null,0,null,null,0,null,null,0]
[null,null,null,null,null,null,0,null,null,0,null,null,0]
[null,null,null,null,null,null,0,null,null,0,null,null,0]
[null,null,null,null,null,null,0,null,null,0,null,null,0]
[null,null,null,null,null,null,0,null,null,0,null,null,0]
[null,null,null,null,null,null,0,null,null,0,null,null,0]
[null,null,null,null,null,null,0,null,null,0,null,null,0]
[null,null,null,null,null,null,0,null,null,0,null,null,0]
[null,"סה\"כ  ציוד נוסף כולל מע\"מ",null,null,null,null,{"$f":"SUM(G8:G28)","v":0},null,null,{"$f":"SUM(J8:J28)","v":0},null,null,{"$f":"SUM(M8:M28)","v":0},null,{"$f":"B29","v":"סה\"כ  ציוד נוסף כולל מע\"מ"},null,null,{"$f":"SUM(R8:R28)","v":0}]

{"sheet":"יג. סיכום","index":13,"n_rows":42,"n_cols":4,"rows_kept":42,"cut":false,"hidden":false,"merged":[]}
[]
[]
[]
[]
[]
[]
[]
[null,"תקן ציוד למרכזי יום טיפוליים סיעודיים ו/או תעסוקה "]
[null," ציוד פרא רפואי, חדר סנוזלן, ציוד למטבח מבשל וציוד לצוות. "]
[]
[null,"דוח ביצוע מסכם"]
[]
[null,"הנחיות לקבלת תשלום : "]
[null,"יש למלא את ההוצאות בפועל בכל אחד מהגיליונות הרלבנטיים הקודמים. הסכומים יעודכנו אוטומטית בגיליון זה."]
[null,"יש לשלוח את הקובץ הזה במלואו לדוא\"ל המצויין מטה."]
[null,"יש להדפיס עמוד זה ולהחתים כנדרש."]
[null,"בנוסף יש לצרף :"]
[null,"צילומי חשבוניות מס / קבלות או כרטסת חתומה ע\"י רו\"ח של ארגון מפעיל/ גזבר הרשות"]
[null,"את הדיווחים  לתשלום  ואת הקובץ במלואו יש לשלוח  לדוא\"ל  : limor@kshalem.org.il"]
[null,"באחריות השולח לוודא כי המסמכים הגיעו ליעדם."]
[]
[null,{"$f":"'ג. שאלון למילוי מגיש הבקשה'!C24","v":"שם המסגרת"},{"$f":"'ג. שאלון למילוי מגיש הבקשה'!G24","v":"00:00:00"}]
[null,{"$f":"'ג. שאלון למילוי מגיש הבקשה'!C26","v":"סוג המסגרת"},{"$f":"'ג. שאלון למילוי מגיש הבקשה'!G26","v":"נא לבחור מתוך הרשימה"}]
[null,{"$f":"'ג. שאלון למילוי מגיש הבקשה'!C42","v":"מספר האנשים שעבורם מיועד הפרויקט"},{"$f":"'ג. שאלון למילוי מגיש הבקשה'!G42","v":0}]
[]
[null,"ציוד עפ\"י נושאים","סכום מבוקש","סכום שבוצע בפועל"]
[null,{"$f":"'ב. תוכן עניינים'!C17","v":"ריפוי בעיסוק"},{"$f":"'ד. ריפוי בעיסוק'!H51","v":0},{"$f":"'ד. ריפוי בעיסוק'!N51","v":0}]
[null,{"$f":"'ב. תוכן עניינים'!C18","v":"קלינאות תקשורת"},{"$f":"'ה. קלינאות תקשורת'!H33","v":0},{"$f":"'ה. קלינאות תקשורת'!N33","v":0}]
[null,{"$f":"'ב. תוכן עניינים'!C19","v":"חדר סנוזלן"},{"$f":"'ו. סנוזלן'!H23","v":0},{"$f":"'ו. סנוזלן'!N23","v":0}]
[null,{"$f":"'ב. תוכן עניינים'!C20","v":"מתקני חצר"},{"$f":"'ז. מתקני חצר '!I27","v":0},{"$f":"'ז. מתקני חצר '!O27","v":0}]
[null,{"$f":"'ב. תוכן עניינים'!C21","v":"פיזיותרפיה"},{"$f":"'ח. פיזיותרפיה'!H80","v":0},{"$f":"'ח. פיזיותרפיה'!N80","v":0}]
[null,{"$f":"'ב. תוכן עניינים'!C22","v":"ציוד טיפולי שיקומי"},{"$f":"'ט. ציוד טיפולי-שיקומי'!H17","v":0},{"$f":"'ט. ציוד טיפולי-שיקומי'!N17","v":0}]
[null,{"$f":"'ב. תוכן עניינים'!C23","v":"ציוד מטבח מבשל"},{"$f":"'י. מטבח מבשל'!H33","v":0},{"$f":"'י. מטבח מבשל'!N33","v":0}]
[null,{"$f":"'ב. תוכן עניינים'!C24","v":"ציוד לצוות"},{"$f":"'יא. ציוד צוות'!H15","v":0},{"$f":"'יא. ציוד צוות'!N15","v":0}]
[null,{"$f":"'ב. תוכן עניינים'!C25","v":"ציוד נוסף"},{"$f":"'יב. ציוד נוסף'!M29","v":0},{"$f":"'יב. ציוד נוסף'!R29","v":0}]
[null,"סה\"כ בקשה כולל מע\"מ",{"$f":"SUM(C27:C35)","v":0},{"$f":"SUM(D27:D35)","v":0}]
[]
[null,"מספר פרוייקט קרן שלם"]
[]
[null,"חתימה וחותמת גזבר/רו\"ח"]
[]
[null,"תאריך "]

{"sheet":"סיכום מפורט (לשימוש משרדי)","index":14,"n_rows":241,"n_cols":8,"rows_kept":241,"cut":false,"hidden":false,"merged":[]}
[{"$f":"'ב. תוכן עניינים'!C27","v":"סיכום מפורט (לשימוש משרדי)"}]
["מספר מק\"ט",{"$f":"'יג. סיכום'!C38","v":0}]
[{"$f":"'ג. שאלון למילוי מגיש הבקשה'!C24","v":"שם המסגרת"},{"$f":"'ג. שאלון למילוי מגיש הבקשה'!G24","v":"00:00:00"}]
[{"$f":"'ג. שאלון למילוי מגיש הבקשה'!C26","v":"סוג המסגרת"},{"$f":"'ג. שאלון למילוי מגיש הבקשה'!G26","v":"נא לבחור מתוך הרשימה"}]
[{"$f":"'ג. שאלון למילוי מגיש הבקשה'!C42","v":"מספר האנשים שעבורם מיועד הפרויקט"},{"$f":"'ג. שאלון למילוי מגיש הבקשה'!G42","v":0}]
[null,"בקשה / אישור",null,null,"דיווח לתשלום"]
["תיאור","כמות מבוקשת","תקציב מבוקש לקבוצה",null,"הפריט שנרכש","מס' חשבונית מס","תאריך חשבונית מס","סכום כולל מע\"מ"]
[{"$f":"'יג. סיכום'!B27","v":"ריפוי בעיסוק"},null,null,null,{"$f":"A8","v":"ריפוי בעיסוק"}]
[{"$f":"'ד. ריפוי בעיסוק'!B9","v":"מזרונים טיפוליים"},{"$f":"'ד. ריפוי בעיסוק'!G9","v":0},{"$f":"'ד. ריפוי בעיסוק'!H9","v":0},null,{"$f":"'ד. ריפוי בעיסוק'!K9","v":0},{"$f":"'ד. ריפוי בעיסוק'!L9","v":0},{"$f":"IF(F9=0,\"\",'ד. ריפוי בעיסוק'!M9)","v":""},{"$f":"'ד. ריפוי בעיסוק'!N9","v":0}]
[{"$f":"'ד. ריפוי בעיסוק'!B10","v":"ארון אחסון"},{"$f":"'ד. ריפוי בעיסוק'!G10","v":0},{"$f":"'ד. ריפוי בעיסוק'!H10","v":0},null,{"$f":"'ד. ריפוי בעיסוק'!K10","v":0},{"$f":"'ד. ריפוי בעיסוק'!L10","v":0},{"$f":"IF(F10=0,\"\",'ד. ריפוי בעיסוק'!M10)","v":""},{"$f":"'ד. ריפוי בעיסוק'!N10","v":0}]
[{"$f":"'ד. ריפוי בעיסוק'!B11","v":"מדף אחסון לציוד גדול תלוי"},{"$f":"'ד. ריפוי בעיסוק'!G11","v":0},{"$f":"'ד. ריפוי בעיסוק'!H11","v":0},null,{"$f":"'ד. ריפוי בעיסוק'!K11","v":0},{"$f":"'ד. ריפוי בעיסוק'!L11","v":0},{"$f":"IF(F11=0,\"\",'ד. ריפוי בעיסוק'!M11)","v":""},{"$f":"'ד. ריפוי בעיסוק'!N11","v":0}]
[{"$f":"'ד. ריפוי בעיסוק'!B12","v":"כסא מתכוונן"},{"$f":"'ד. ריפוי בעיסוק'!G12","v":0},{"$f":"'ד. ריפוי בעיסוק'!H12","v":0},null,{"$f":"'ד. ריפוי בעיסוק'!K12","v":0},{"$f":"'ד. ריפוי בעיסוק'!L12","v":0},{"$f":"IF(F12=0,\"\",'ד. ריפוי בעיסוק'!M12)","v":""},{"$f":"'ד. ריפוי בעיסוק'!N12","v":0}]
[{"$f":"'ד. ריפוי בעיסוק'!B13","v":"כסא מטפל"},{"$f":"'ד. ריפוי בעיסוק'!G13","v":0},{"$f":"'ד. ריפוי בעיסוק'!H13","v":0},null,{"$f":"'ד. ריפוי בעיסוק'!K13","v":0},{"$f":"'ד. ריפוי בעיסוק'!L13","v":0},{"$f":"IF(F13=0,\"\",'ד. ריפוי בעיסוק'!M13)","v":""},{"$f":"'ד. ריפוי בעיסוק'!N13","v":0}]
[{"$f":"'ד. ריפוי בעיסוק'!B14","v":"לוח מחיק"},{"$f":"'ד. ריפוי בעיסוק'!G14","v":0},{"$f":"'ד. ריפוי בעיסוק'!H14","v":0},null,{"$f":"'ד. ריפוי בעיסוק'!K14","v":0},{"$f":"'ד. ריפוי בעיסוק'!L14","v":0},{"$f":"IF(F14=0,\"\",'ד. ריפוי בעיסוק'!M14)","v":""},{"$f":"'ד. ריפוי בעיסוק'!N14","v":0}]
[{"$f":"'ד. ריפוי בעיסוק'!B15","v":"מראה קבועה ווילון"},{"$f":"'ד. ריפוי בעיסוק'!G15","v":0},{"$f":"'ד. ריפוי בעיסוק'!H15","v":0},null,{"$f":"'ד. ריפוי בעיסוק'!K15","v":0},{"$f":"'ד. ריפוי בעיסוק'!L15","v":0},{"$f":"IF(F15=0,\"\",'ד. ריפוי בעיסוק'!M15)","v":""},{"$f":"'ד. ריפוי בעיסוק'!N15","v":0}]
[{"$f":"'ד. ריפוי בעיסוק'!B16","v":"שולחן מתכוונן חשמלי"},{"$f":"'ד. ריפוי בעיסוק'!G16","v":0},{"$f":"'ד. ריפוי בעיסוק'!H16","v":0},null,{"$f":"'ד. ריפוי בעיסוק'!K16","v":0},{"$f":"'ד. ריפוי בעיסוק'!L16","v":0},{"$f":"IF(F16=0,\"\",'ד. ריפוי בעיסוק'!M16)","v":""},{"$f":"'ד. ריפוי בעיסוק'!N16","v":0}]
[{"$f":"'ד. ריפוי בעיסוק'!B19","v":"נקודת תליה בתקרה, כולל התקנה "},{"$f":"'ד. ריפוי בעיסוק'!G19","v":0},{"$f":"'ד. ריפוי בעיסוק'!H19","v":0},null,{"$f":"'ד. ריפוי בעיסוק'!K19","v":0},{"$f":"'ד. ריפוי בעיסוק'!L19","v":0},{"$f":"IF(F17=0,\"\",'ד. ריפוי בעיסוק'!M19)","v":""},{"$f":"'ד. ריפוי בעיסוק'!N19","v":0}]
[{"$f":"'ד. ריפוי בעיסוק'!B20","v":"סקוטר למשקל של מבוגרים"},{"$f":"'ד. ריפוי בעיסוק'!G20","v":0},{"$f":"'ד. ריפוי בעיסוק'!H20","v":0},null,{"$f":"'ד. ריפוי בעיסוק'!K20","v":0},{"$f":"'ד. ריפוי בעיסוק'!L20","v":0},{"$f":"IF(F18=0,\"\",'ד. ריפוי בעיסוק'!M20)","v":""},{"$f":"'ד. ריפוי בעיסוק'!N20","v":0}]
[{"$f":"'ד. ריפוי בעיסוק'!B21","v":"חבית טיפולית"},{"$f":"'ד. ריפוי בעיסוק'!G21","v":0},{"$f":"'ד. ריפוי בעיסוק'!H21","v":0},null,{"$f":"'ד. ריפוי בעיסוק'!K21","v":0},{"$f":"'ד. ריפוי בעיסוק'!L21","v":0},{"$f":"IF(F19=0,\"\",'ד. ריפוי בעיסוק'!M21)","v":""},{"$f":"'ד. ריפוי בעיסוק'!N21","v":0}]
[{"$f":"'ד. ריפוי בעיסוק'!B22","v":"סט חמישה ספסלים"},{"$f":"'ד. ריפוי בעיסוק'!G22","v":0},{"$f":"'ד. ריפוי בעיסוק'!H22","v":0},null,{"$f":"'ד. ריפוי בעיסוק'!K22","v":0},{"$f":"'ד. ריפוי בעיסוק'!L22","v":0},{"$f":"IF(F20=0,\"\",'ד. ריפוי בעיסוק'!M22)","v":""},{"$f":"'ד. ריפוי בעיסוק'!N22","v":0}]
[{"$f":"'ד. ריפוי בעיסוק'!B23","v":"ערסל בד טיפולי"},{"$f":"'ד. ריפוי בעיסוק'!G23","v":0},{"$f":"'ד. ריפוי בעיסוק'!H23","v":0},null,{"$f":"'ד. ריפוי בעיסוק'!K23","v":0},{"$f":"'ד. ריפוי בעיסוק'!L23","v":0},{"$f":"IF(F21=0,\"\",'ד. ריפוי בעיסוק'!M23)","v":""},{"$f":"'ד. ריפוי בעיסוק'!N23","v":0}]
[{"$f":"'ד. ריפוי בעיסוק'!B24","v":"צלחת וסטיבולרית לבוגרים"},{"$f":"'ד. ריפוי בעיסוק'!G24","v":0},{"$f":"'ד. ריפוי בעיסוק'!H24","v":0},null,{"$f":"'ד. ריפוי בעיסוק'!K24","v":0},{"$f":"'ד. ריפוי בעיסוק'!L24","v":0},{"$f":"IF(F22=0,\"\",'ד. ריפוי בעיסוק'!M24)","v":""},{"$f":"'ד. ריפוי בעיסוק'!N24","v":0}]
[{"$f":"'ד. ריפוי בעיסוק'!B25","v":"כדורים (סכום גלובלי)"},{"$f":"'ד. ריפוי בעיסוק'!G25","v":0},{"$f":"'ד. ריפוי בעיסוק'!H25","v":0},null,{"$f":"'ד. ריפוי בעיסוק'!K25","v":0},{"$f":"'ד. ריפוי בעיסוק'!L25","v":0},{"$f":"IF(F23=0,\"\",'ד. ריפוי בעיסוק'!M25)","v":""},{"$f":"'ד. ריפוי בעיסוק'!N25","v":0}]
[{"$f":"'ד. ריפוי בעיסוק'!B26","v":"גלילים בגדלים שונים (סכום גלובלי)"},{"$f":"'ד. ריפוי בעיסוק'!G26","v":0},{"$f":"'ד. ריפוי בעיסוק'!H26","v":0},null,{"$f":"'ד. ריפוי בעיסוק'!K26","v":0},{"$f":"'ד. ריפוי בעיסוק'!L26","v":0},{"$f":"IF(F24=0,\"\",'ד. ריפוי בעיסוק'!M26)","v":""},{"$f":"'ד. ריפוי בעיסוק'!N26","v":0}]
[{"$f":"'ד. ריפוי בעיסוק'!B27","v":"וסט נאופרן"},{"$f":"'ד. ריפוי בעיסוק'!G27","v":0},{"$f":"'ד. ריפוי בעיסוק'!H27","v":0},null,{"$f":"'ד. ריפוי בעיסוק'!K27","v":0},{"$f":"'ד. ריפוי בעיסוק'!L27","v":0},{"$f":"IF(F25=0,\"\",'ד. ריפוי בעיסוק'!M27)","v":""},{"$f":"'ד. ריפוי בעיסוק'!N27","v":0}]
[{"$f":"'ד. ריפוי בעיסוק'!B28","v":"משחקי גריה שונים (סכום גלובלי)"},{"$f":"'ד. ריפוי בעיסוק'!G28","v":0},{"$f":"'ד. ריפוי בעיסוק'!H28","v":0},null,{"$f":"'ד. ריפוי בעיסוק'!K28","v":0},{"$f":"'ד. ריפוי בעיסוק'!L28","v":0},{"$f":"IF(F26=0,\"\",'ד. ריפוי בעיסוק'!M28)","v":""},{"$f":"'ד. ריפוי בעיסוק'!N28","v":0}]
[{"$f":"'ד. ריפוי בעיסוק'!B29","v":"עזרים לטיפול קבוצתי (טבעות, \nמטפחות, כדורים, מצנח וכד') (סכום גלובלי)"},{"$f":"'ד. ריפוי בעיסוק'!G29","v":0},{"$f":"'ד. ריפוי בעיסוק'!H29","v":0},null,{"$f":"'ד. ריפוי בעיסוק'!K29","v":0},{"$f":"'ד. ריפוי בעיסוק'!L29","v":0},{"$f":"IF(F27=0,\"\",'ד. ריפוי בעיסוק'!M29)","v":""},{"$f":"'ד. ריפוי בעיסוק'!N29","v":0}]
[{"$f":"'ד. ריפוי בעיסוק'!B30","v":"משחקי מרחב, בנייה והרכבה  (סכום גלובלי)"},{"$f":"'ד. ריפוי בעיסוק'!G30","v":0},{"$f":"'ד. ריפוי בעיסוק'!H30","v":0},null,{"$f":"'ד. ריפוי בעיסוק'!K30","v":0},{"$f":"'ד. ריפוי בעיסוק'!L30","v":0},{"$f":"IF(F28=0,\"\",'ד. ריפוי בעיסוק'!M30)","v":""},{"$f":"'ד. ריפוי בעיסוק'!N30","v":0}]
[{"$f":"'ד. ריפוי בעיסוק'!B31","v":"פאזלים ומשחקי תפיסה (סכום גלובלי)"},{"$f":"'ד. ריפוי בעיסוק'!G31","v":0},{"$f":"'ד. ריפוי בעיסוק'!H31","v":0},null,{"$f":"'ד. ריפוי בעיסוק'!K31","v":0},{"$f":"'ד. ריפוי בעיסוק'!L31","v":0},{"$f":"IF(F29=0,\"\",'ד. ריפוי בעיסוק'!M31)","v":""},{"$f":"'ד. ריפוי בעיסוק'!N31","v":0}]
[{"$f":"'ד. ריפוי בעיסוק'!B32","v":"אביזרי ADL מותאמים (סכום גלובלי)"},{"$f":"'ד. ריפוי בעיסוק'!G32","v":0},{"$f":"'ד. ריפוי בעיסוק'!H32","v":0},null,{"$f":"'ד. ריפוי בעיסוק'!K32","v":0},{"$f":"'ד. ריפוי בעיסוק'!L32","v":0},{"$f":"IF(F30=0,\"\",'ד. ריפוי בעיסוק'!M32)","v":""},{"$f":"'ד. ריפוי בעיסוק'!N32","v":0}]
[{"$f":"'ד. ריפוי בעיסוק'!B33","v":"ציוד להכנת סדי ידיים "},{"$f":"'ד. ריפוי בעיסוק'!G33","v":0},{"$f":"'ד. ריפוי בעיסוק'!H33","v":0},null,{"$f":"'ד. ריפוי בעיסוק'!K33","v":0},{"$f":"'ד. ריפוי בעיסוק'!L33","v":0},{"$f":"IF(F31=0,\"\",'ד. ריפוי בעיסוק'!M33)","v":""},{"$f":"'ד. ריפוי בעיסוק'!N33","v":0}]
[{"$f":"'ד. ריפוי בעיסוק'!B36","v":"מחשב נייח/נייד עם מסך מגע  "},{"$f":"'ד. ריפוי בעיסוק'!G36","v":0},{"$f":"'ד. ריפוי בעיסוק'!H36","v":0},null,{"$f":"'ד. ריפוי בעיסוק'!K36","v":0},{"$f":"'ד. ריפוי בעיסוק'!L36","v":0},{"$f":"IF(F32=0,\"\",'ד. ריפוי בעיסוק'!M36)","v":""},{"$f":"'ד. ריפוי בעיסוק'!N36","v":0}]
[{"$f":"'ד. ריפוי בעיסוק'!B37","v":"מדפסת"},{"$f":"'ד. ריפוי בעיסוק'!G37","v":0},{"$f":"'ד. ריפוי בעיסוק'!H37","v":0},null,{"$f":"'ד. ריפוי בעיסוק'!K37","v":0},{"$f":"'ד. ריפוי בעיסוק'!L37","v":0},{"$f":"IF(F33=0,\"\",'ד. ריפוי בעיסוק'!M37)","v":""},{"$f":"'ד. ריפוי בעיסוק'!N37","v":0}]
[{"$f":"'ד. ריפוי בעיסוק'!B38","v":" אייפד (1  ל 5 אנשים)   Ipad 10.2\" 128GB WIFI "},{"$f":"'ד. ריפוי בעיסוק'!G38","v":0},{"$f":"'ד. ריפוי בעיסוק'!H38","v":0},null,{"$f":"'ד. ריפוי בעיסוק'!K38","v":0},{"$f":"'ד. ריפוי בעיסוק'!L38","v":0},{"$f":"IF(F34=0,\"\",'ד. ריפוי בעיסוק'!M38)","v":""},{"$f":"'ד. ריפוי בעיסוק'!N38","v":0}]
[{"$f":"'ד. ריפוי בעיסוק'!B39","v":"תוכנות לאייפד"},{"$f":"'ד. ריפוי בעיסוק'!G39","v":0},{"$f":"'ד. ריפוי בעיסוק'!H39","v":0},null,{"$f":"'ד. ריפוי בעיסוק'!K39","v":0},{"$f":"'ד. ריפוי בעיסוק'!L39","v":0},{"$f":"IF(F35=0,\"\",'ד. ריפוי בעיסוק'!M39)","v":""},{"$f":"'ד. ריפוי בעיסוק'!N39","v":0}]
[{"$f":"'ד. ריפוי בעיסוק'!B40","v":"מגן לאייפד + מדבקת זכוכית"},{"$f":"'ד. ריפוי בעיסוק'!G40","v":0},{"$f":"'ד. ריפוי בעיסוק'!H40","v":0},null,{"$f":"'ד. ריפוי בעיסוק'!K40","v":0},{"$f":"'ד. ריפוי בעיסוק'!L40","v":0},{"$f":"IF(F36=0,\"\",'ד. ריפוי בעיסוק'!M40)","v":""},{"$f":"'ד. ריפוי בעיסוק'!N40","v":0}]
[{"$f":"'ד. ריפוי בעיסוק'!B41","v":"Apple tv"},{"$f":"'ד. ריפוי בעיסוק'!G41","v":0},{"$f":"'ד. ריפוי בעיסוק'!H41","v":0},null,{"$f":"'ד. ריפוי בעיסוק'!K41","v":0},{"$f":"'ד. ריפוי בעיסוק'!L41","v":0},{"$f":"IF(F37=0,\"\",'ד. ריפוי בעיסוק'!M41)","v":""},{"$f":"'ד. ריפוי בעיסוק'!N41","v":0}]
[{"$f":"'ד. ריפוי בעיסוק'!B42","v":"מסך הקרנה נגלל"},{"$f":"'ד. ריפוי בעיסוק'!G42","v":0},{"$f":"'ד. ריפוי בעיסוק'!H42","v":0},null,{"$f":"'ד. ריפוי בעיסוק'!K42","v":0},{"$f":"'ד. ריפוי בעיסוק'!L42","v":0},{"$f":"IF(F38=0,\"\",'ד. ריפוי בעיסוק'!M42)","v":""},{"$f":"'ד. ריפוי בעיסוק'!N42","v":0}]
[{"$f":"'ד. ריפוי בעיסוק'!B43","v":"מסך מגע 65\" לתלייה על קיר+ ארון + מחשב להפעלה, ניתן להשתמש גם בלוח חכם "},{"$f":"'ד. ריפוי בעיסוק'!G43","v":0},{"$f":"'ד. ריפוי בעיסוק'!H43","v":0},null,{"$f":"'ד. ריפוי בעיסוק'!K43","v":0},{"$f":"'ד. ריפוי בעיסוק'!L43","v":0},{"$f":"IF(F39=0,\"\",'ד. ריפוי בעיסוק'!M43)","v":""},{"$f":"'ד. ריפוי בעיסוק'!N43","v":0}]
[{"$f":"'ד. ריפוי בעיסוק'!B44","v":"מערכת מציאות מדומה"},{"$f":"'ד. ריפוי בעיסוק'!G44","v":0},{"$f":"'ד. ריפוי בעיסוק'!H44","v":0},null,{"$f":"'ד. ריפוי בעיסוק'!K44","v":0},{"$f":"'ד. ריפוי בעיסוק'!L44","v":0},{"$f":"IF(F40=0,\"\",'ד. ריפוי בעיסוק'!M44)","v":""},{"$f":"'ד. ריפוי בעיסוק'!N44","v":0}]
[{"$f":"'ד. ריפוי בעיסוק'!B45","v":"עכברים ייחודיים "},{"$f":"'ד. ריפוי בעיסוק'!G45","v":0},{"$f":"'ד. ריפוי בעיסוק'!H45","v":0},null,{"$f":"'ד. ריפוי בעיסוק'!K45","v":0},{"$f":"'ד. ריפוי בעיסוק'!L45","v":0},{"$f":"IF(F41=0,\"\",'ד. ריפוי בעיסוק'!M45)","v":""},{"$f":"'ד. ריפוי בעיסוק'!N45","v":0}]
[{"$f":"'ד. ריפוי בעיסוק'!B46","v":"מקלדות ייחודיות "},{"$f":"'ד. ריפוי בעיסוק'!G46","v":0},{"$f":"'ד. ריפוי בעיסוק'!H46","v":0},null,{"$f":"'ד. ריפוי בעיסוק'!K46","v":0},{"$f":"'ד. ריפוי בעיסוק'!L46","v":0},{"$f":"IF(F42=0,\"\",'ד. ריפוי בעיסוק'!M46)","v":""},{"$f":"'ד. ריפוי בעיסוק'!N46","v":0}]
[{"$f":"'ד. ריפוי בעיסוק'!B47","v":"מתגים ומתאמי מתגים "},{"$f":"'ד. ריפוי בעיסוק'!G47","v":0},{"$f":"'ד. ריפוי בעיסוק'!H47","v":0},null,{"$f":"'ד. ריפוי בעיסוק'!K47","v":0},{"$f":"'ד. ריפוי בעיסוק'!L47","v":0},{"$f":"IF(F43=0,\"\",'ד. ריפוי בעיסוק'!M47)","v":""},{"$f":"'ד. ריפוי בעיסוק'!N47","v":0}]
[{"$f":"'ד. ריפוי בעיסוק'!B48","v":"זרועות למתגים ולטאבלט "},{"$f":"'ד. ריפוי בעיסוק'!G48","v":0},{"$f":"'ד. ריפוי בעיסוק'!H48","v":0},null,{"$f":"'ד. ריפוי בעיסוק'!K48","v":0},{"$f":"'ד. ריפוי בעיסוק'!L48","v":0},{"$f":"IF(F44=0,\"\",'ד. ריפוי בעיסוק'!M48)","v":""},{"$f":"'ד. ריפוי בעיסוק'!N48","v":0}]
[{"$f":"'ד. ריפוי בעיסוק'!B49","v":"צעצועים מותאמים - סכום גלובלי"},{"$f":"'ד. ריפוי בעיסוק'!G49","v":0},{"$f":"'ד. ריפוי בעיסוק'!H49","v":0},null,{"$f":"'ד. ריפוי בעיסוק'!K49","v":0},{"$f":"'ד. ריפוי בעיסוק'!L49","v":0},{"$f":"IF(F45=0,\"\",'ד. ריפוי בעיסוק'!M49)","v":""},{"$f":"'ד. ריפוי בעיסוק'!N49","v":0}]
[{"$f":"'ד. ריפוי בעיסוק'!B51","v":"סה\"כ ציוד ריפוי בעיסוק כולל מע\"מ"},null,{"$f":"SUM(C9:C45)","v":0},null,{"$f":"A46","v":"סה\"כ ציוד ריפוי בעיסוק כולל מע\"מ"},null,null,{"$f":"SUM(H9:H45)","v":0}]
[{"$f":"'יג. סיכום'!B28","v":"קלינאות תקשורת"},null,null,null,"קלינאות תקשורת"]
[{"$f":"'ה. קלינאות תקשורת'!B8","v":"מחשב נייח /נייד"},{"$f":"'ה. קלינאות תקשורת'!G8","v":0},{"$f":"'ה. קלינאות תקשורת'!H8","v":0},null,{"$f":"'ה. קלינאות תקשורת'!K8","v":0},{"$f":"'ה. קלינאות תקשורת'!L8","v":0},{"$f":"IF(F48=0,\"\",'ה. קלינאות תקשורת'!M8)","v":""},{"$f":"'ה. קלינאות תקשורת'!N8","v":0}]
[{"$f":"'ה. קלינאות תקשורת'!B9","v":"מדפסת משולבת עם יישומי סריקה וצילום, פלט צבעוני"},{"$f":"'ה. קלינאות תקשורת'!G9","v":0},{"$f":"'ה. קלינאות תקשורת'!H9","v":0},null,{"$f":"'ה. קלינאות תקשורת'!K9","v":0},{"$f":"'ה. קלינאות תקשורת'!L9","v":0},{"$f":"IF(F49=0,\"\",'ה. קלינאות תקשורת'!M9)","v":""},{"$f":"'ה. קלינאות תקשורת'!N9","v":0}]
[{"$f":"'ה. קלינאות תקשורת'!B10","v":"מכשיר למינציה"},{"$f":"'ה. קלינאות תקשורת'!G10","v":0},{"$f":"'ה. קלינאות תקשורת'!H10","v":0},null,{"$f":"'ה. קלינאות תקשורת'!K10","v":0},{"$f":"'ה. קלינאות תקשורת'!L10","v":0},{"$f":"IF(F50=0,\"\",'ה. קלינאות תקשורת'!M10)","v":""},{"$f":"'ה. קלינאות תקשורת'!N10","v":0}]
[{"$f":"'ה. קלינאות תקשורת'!B11","v":"מחשב לוח (אייפד/טאבלט)"},{"$f":"'ה. קלינאות תקשורת'!G11","v":0},{"$f":"'ה. קלינאות תקשורת'!H11","v":0},null,{"$f":"'ה. קלינאות תקשורת'!K11","v":0},{"$f":"'ה. קלינאות תקשורת'!L11","v":0},{"$f":"IF(F51=0,\"\",'ה. קלינאות תקשורת'!M11)","v":""},{"$f":"'ה. קלינאות תקשורת'!N11","v":0}]
[{"$f":"'ה. קלינאות תקשורת'!B12","v":"אפליקציות למחשב לוח (אייפד/טאבלט)"},{"$f":"'ה. קלינאות תקשורת'!G12","v":0},{"$f":"'ה. קלינאות תקשורת'!H12","v":0},null,{"$f":"'ה. קלינאות תקשורת'!K12","v":0},{"$f":"'ה. קלינאות תקשורת'!L12","v":0},{"$f":"IF(F52=0,\"\",'ה. קלינאות תקשורת'!M12)","v":""},{"$f":"'ה. קלינאות תקשורת'!N12","v":0}]
[{"$f":"'ה. קלינאות תקשורת'!B15","v":"פלטים קוליים (סכום גלובלי)"},{"$f":"'ה. קלינאות תקשורת'!G15","v":0},{"$f":"'ה. קלינאות תקשורת'!H15","v":0},null,{"$f":"'ה. קלינאות תקשורת'!K15","v":0},{"$f":"'ה. קלינאות תקשורת'!L15","v":0},{"$f":"IF(F53=0,\"\",'ה. קלינאות תקשורת'!M15)","v":""},{"$f":"'ה. קלינאות תקשורת'!N15","v":0}]
[{"$f":"'ה. קלינאות תקשורת'!B16","v":"מתגים (סכום גלובלי)"},{"$f":"'ה. קלינאות תקשורת'!G16","v":0},{"$f":"'ה. קלינאות תקשורת'!H16","v":0},null,{"$f":"'ה. קלינאות תקשורת'!K16","v":0},{"$f":"'ה. קלינאות תקשורת'!L16","v":0},{"$f":"IF(F54=0,\"\",'ה. קלינאות תקשורת'!M16)","v":""},{"$f":"'ה. קלינאות תקשורת'!N16","v":0}]
[{"$f":"'ה. קלינאות תקשורת'!B17","v":"אפליקציות לתקשורת תומכת חליפית  (סכום גלובלי)"},{"$f":"'ה. קלינאות תקשורת'!G17","v":0},{"$f":"'ה. קלינאות תקשורת'!H17","v":0},null,{"$f":"'ה. קלינאות תקשורת'!K17","v":0},{"$f":"'ה. קלינאות תקשורת'!L17","v":0},{"$f":"IF(F55=0,\"\",'ה. קלינאות תקשורת'!M17)","v":""},{"$f":"'ה. קלינאות תקשורת'!N17","v":0}]
[{"$f":"'ה. קלינאות תקשורת'!B18","v":"תוכנת גריד (סכום גלובלי)"},{"$f":"'ה. קלינאות תקשורת'!G18","v":0},{"$f":"'ה. קלינאות תקשורת'!H18","v":0},null,{"$f":"'ה. קלינאות תקשורת'!K18","v":0},{"$f":"'ה. קלינאות תקשורת'!L18","v":0},{"$f":"IF(F56=0,\"\",'ה. קלינאות תקשורת'!M18)","v":""},{"$f":"'ה. קלינאות תקשורת'!N18","v":0}]
[{"$f":"'ה. קלינאות תקשורת'!B21","v":"ציוד טיפולי, ספרים, כרטיסיות ומשחקי שפה ותקשורת"},{"$f":"'ה. קלינאות תקשורת'!G21","v":0},{"$f":"'ה. קלינאות תקשורת'!H21","v":0},null,{"$f":"'ה. קלינאות תקשורת'!K21","v":0},{"$f":"'ה. קלינאות תקשורת'!L21","v":0},{"$f":"IF(F57=0,\"\",'ה. קלינאות תקשורת'!M21)","v":""},{"$f":"'ה. קלינאות תקשורת'!N21","v":0}]
[{"$f":"'ה. קלינאות תקשורת'!B22","v":"תוכנות תקשורת לאי-פד כמו sounding board, book creator,choice boards, snap scene ועוד, בהתאם למאפייני האוכלוסיה"},{"$f":"'ה. קלינאות תקשורת'!G22","v":0},{"$f":"'ה. קלינאות תקשורת'!H22","v":0},null,{"$f":"'ה. קלינאות תקשורת'!K22","v":0},{"$f":"'ה. קלינאות תקשורת'!L22","v":0},{"$f":"IF(F58=0,\"\",'ה. קלינאות תקשורת'!M22)","v":""},{"$f":"'ה. קלינאות תקשורת'!N22","v":0}]
[{"$f":"'ה. קלינאות תקשורת'!B23","v":"אי פד "},{"$f":"'ה. קלינאות תקשורת'!G23","v":0},{"$f":"'ה. קלינאות תקשורת'!H23","v":0},null,{"$f":"'ה. קלינאות תקשורת'!K23","v":0},{"$f":"'ה. קלינאות תקשורת'!L23","v":0},{"$f":"IF(F59=0,\"\",'ה. קלינאות תקשורת'!M23)","v":""},{"$f":"'ה. קלינאות תקשורת'!N23","v":0}]
[{"$f":"'ה. קלינאות תקשורת'!B26","v":"ארון אחסון לציוד"},{"$f":"'ה. קלינאות תקשורת'!G26","v":0},{"$f":"'ה. קלינאות תקשורת'!H26","v":0},null,{"$f":"'ה. קלינאות תקשורת'!K26","v":0},{"$f":"'ה. קלינאות תקשורת'!L26","v":0},{"$f":"IF(F60=0,\"\",'ה. קלינאות תקשורת'!M26)","v":""},{"$f":"'ה. קלינאות תקשורת'!N26","v":0}]
[{"$f":"'ה. קלינאות תקשורת'!B27","v":"כסאות"},{"$f":"'ה. קלינאות תקשורת'!G27","v":0},{"$f":"'ה. קלינאות תקשורת'!H27","v":0},null,{"$f":"'ה. קלינאות תקשורת'!K27","v":0},{"$f":"'ה. קלינאות תקשורת'!L27","v":0},{"$f":"IF(F61=0,\"\",'ה. קלינאות תקשורת'!M27)","v":""},{"$f":"'ה. קלינאות תקשורת'!N27","v":0}]
[{"$f":"'ה. קלינאות תקשורת'!B28","v":"שולחנות"},{"$f":"'ה. קלינאות תקשורת'!G28","v":0},{"$f":"'ה. קלינאות תקשורת'!H28","v":0},null,{"$f":"'ה. קלינאות תקשורת'!K28","v":0},{"$f":"'ה. קלינאות תקשורת'!L28","v":0},{"$f":"IF(F62=0,\"\",'ה. קלינאות תקשורת'!M28)","v":""},{"$f":"'ה. קלינאות תקשורת'!N28","v":0}]
[{"$f":"'ה. קלינאות תקשורת'!B29","v":"מראה ווילון"},{"$f":"'ה. קלינאות תקשורת'!G29","v":0},{"$f":"'ה. קלינאות תקשורת'!H29","v":0},null,{"$f":"'ה. קלינאות תקשורת'!K29","v":0},{"$f":"'ה. קלינאות תקשורת'!L29","v":0},{"$f":"IF(F63=0,\"\",'ה. קלינאות תקשורת'!M29)","v":""},{"$f":"'ה. קלינאות תקשורת'!N29","v":0}]
[{"$f":"'ה. קלינאות תקשורת'!B30","v":"לוח מחיק"},{"$f":"'ה. קלינאות תקשורת'!G30","v":0},{"$f":"'ה. קלינאות תקשורת'!H30","v":0},null,{"$f":"'ה. קלינאות תקשורת'!K30","v":0},{"$f":"'ה. קלינאות תקשורת'!L30","v":0},{"$f":"IF(F64=0,\"\",'ה. קלינאות תקשורת'!M30)","v":""},{"$f":"'ה. קלינאות תקשורת'!N30","v":0}]
[{"$f":"'ה. קלינאות תקשורת'!B31","v":"שטיח"},{"$f":"'ה. קלינאות תקשורת'!G31","v":0},{"$f":"'ה. קלינאות תקשורת'!H31","v":0},null,{"$f":"'ה. קלינאות תקשורת'!K31","v":0},{"$f":"'ה. קלינאות תקשורת'!L31","v":0},{"$f":"IF(F65=0,\"\",'ה. קלינאות תקשורת'!M31)","v":""},{"$f":"'ה. קלינאות תקשורת'!N31","v":0}]
[{"$f":"'ה. קלינאות תקשורת'!B33","v":"סה\"כ ציוד קלינאות תקשורת כולל מע\"מ"},null,{"$f":"SUM(C48:C65)","v":0},null,{"$f":"A66","v":"סה\"כ ציוד קלינאות תקשורת כולל מע\"מ"},null,null,{"$f":"SUM(H48:H65)","v":0}]
[{"$f":"'יג. סיכום'!B29","v":"חדר סנוזלן"},null,null,null,{"$f":"A67","v":"חדר סנוזלן"}]
[{"$f":"'ו. סנוזלן'!B7","v":"מנוף תקרה+ התקנה (לסיעודיים)"},{"$f":"'ו. סנוזלן'!G7","v":0},{"$f":"'ו. סנוזלן'!H7","v":0},null,{"$f":"'ו. סנוזלן'!K7","v":0},{"$f":"'ו. סנוזלן'!L7","v":0},{"$f":"IF(F68=0,\"\",'ו. סנוזלן'!M7)","v":""},{"$f":"'ו. סנוזלן'!N7","v":0}]
[{"$f":"'ו. סנוזלן'!B8","v":"עמוד בועות"},{"$f":"'ו. סנוזלן'!G8","v":0},{"$f":"'ו. סנוזלן'!H8","v":0},null,{"$f":"'ו. סנוזלן'!K8","v":0},{"$f":"'ו. סנוזלן'!L8","v":0},{"$f":"IF(F69=0,\"\",'ו. סנוזלן'!M8)","v":""},{"$f":"'ו. סנוזלן'!N8","v":0}]
[{"$f":"'ו. סנוזלן'!B9","v":"מראות מחוסמות"},{"$f":"'ו. סנוזלן'!G9","v":0},{"$f":"'ו. סנוזלן'!H9","v":0},null,{"$f":"'ו. סנוזלן'!K9","v":0},{"$f":"'ו. סנוזלן'!L9","v":0},{"$f":"IF(F70=0,\"\",'ו. סנוזלן'!M9)","v":""},{"$f":"'ו. סנוזלן'!N9","v":0}]
[{"$f":"'ו. סנוזלן'!B10","v":"בסיס מרופד"},{"$f":"'ו. סנוזלן'!G10","v":0},{"$f":"'ו. סנוזלן'!H10","v":0},null,{"$f":"'ו. סנוזלן'!K10","v":0},{"$f":"'ו. סנוזלן'!L10","v":0},{"$f":"IF(F71=0,\"\",'ו. סנוזלן'!M10)","v":""},{"$f":"'ו. סנוזלן'!N10","v":0}]
[{"$f":"'ו. סנוזלן'!B11","v":"פרוג'קטור"},{"$f":"'ו. סנוזלן'!G11","v":0},{"$f":"'ו. סנוזלן'!H11","v":0},null,{"$f":"'ו. סנוזלן'!K11","v":0},{"$f":"'ו. סנוזלן'!L11","v":0},{"$f":"IF(F72=0,\"\",'ו. סנוזלן'!M11)","v":""},{"$f":"'ו. סנוזלן'!N11","v":0}]
[{"$f":"'ו. סנוזלן'!B12","v":"פופ"},{"$f":"'ו. סנוזלן'!G12","v":0},{"$f":"'ו. סנוזלן'!H12","v":0},null,{"$f":"'ו. סנוזלן'!K12","v":0},{"$f":"'ו. סנוזלן'!L12","v":0},{"$f":"IF(F73=0,\"\",'ו. סנוזלן'!M12)","v":""},{"$f":"'ו. סנוזלן'!N12","v":0}]
[{"$f":"'ו. סנוזלן'!B13","v":"מערכת מוסיקה"},{"$f":"'ו. סנוזלן'!G13","v":0},{"$f":"'ו. סנוזלן'!H13","v":0},null,{"$f":"'ו. סנוזלן'!K13","v":0},{"$f":"'ו. סנוזלן'!L13","v":0},{"$f":"IF(F74=0,\"\",'ו. סנוזלן'!M13)","v":""},{"$f":"'ו. סנוזלן'!N13","v":0}]
[{"$f":"'ו. סנוזלן'!B14","v":"ריפוד רצפה  וקירות ל 20 מ\"ר"},{"$f":"'ו. סנוזלן'!G14","v":0},{"$f":"'ו. סנוזלן'!H14","v":0},null,{"$f":"'ו. סנוזלן'!K14","v":0},{"$f":"'ו. סנוזלן'!L14","v":0},{"$f":"IF(F75=0,\"\",'ו. סנוזלן'!M14)","v":""},{"$f":"'ו. סנוזלן'!N14","v":0}]
[{"$f":"'ו. סנוזלן'!B15","v":"סיבים אופטיים"},{"$f":"'ו. סנוזלן'!G15","v":0},{"$f":"'ו. סנוזלן'!H15","v":0},null,{"$f":"'ו. סנוזלן'!K15","v":0},{"$f":"'ו. סנוזלן'!L15","v":0},{"$f":"IF(F76=0,\"\",'ו. סנוזלן'!M15)","v":""},{"$f":"'ו. סנוזלן'!N15","v":0}]
[{"$f":"'ו. סנוזלן'!B16","v":"כדור מראות+מקרן"},{"$f":"'ו. סנוזלן'!G16","v":0},{"$f":"'ו. סנוזלן'!H16","v":0},null,{"$f":"'ו. סנוזלן'!K16","v":0},{"$f":"'ו. סנוזלן'!L16","v":0},{"$f":"IF(F77=0,\"\",'ו. סנוזלן'!M16)","v":""},{"$f":"'ו. סנוזלן'!N16","v":0}]
[{"$f":"'ו. סנוזלן'!B17","v":"נדנדה"},{"$f":"'ו. סנוזלן'!G17","v":0},{"$f":"'ו. סנוזלן'!H17","v":0},null,{"$f":"'ו. סנוזלן'!K17","v":0},{"$f":"'ו. סנוזלן'!L17","v":0},{"$f":"IF(F78=0,\"\",'ו. סנוזלן'!M17)","v":""},{"$f":"'ו. סנוזלן'!N17","v":0}]
[{"$f":"'ו. סנוזלן'!B18","v":"מתרגם קול לאור"},{"$f":"'ו. סנוזלן'!G18","v":0},{"$f":"'ו. סנוזלן'!H18","v":0},null,{"$f":"'ו. סנוזלן'!K18","v":0},{"$f":"'ו. סנוזלן'!L18","v":0},{"$f":"IF(F79=0,\"\",'ו. סנוזלן'!M18)","v":""},{"$f":"'ו. סנוזלן'!N18","v":0}]
[{"$f":"'ו. סנוזלן'!B19","v":"מתקן גירוי תגובה"},{"$f":"'ו. סנוזלן'!G19","v":0},{"$f":"'ו. סנוזלן'!H19","v":0},null,{"$f":"'ו. סנוזלן'!K19","v":0},{"$f":"'ו. סנוזלן'!L19","v":0},{"$f":"IF(F80=0,\"\",'ו. סנוזלן'!M19)","v":""},{"$f":"'ו. סנוזלן'!N19","v":0}]
[{"$f":"'ו. סנוזלן'!B20","v":"אביזרי עיסוי"},{"$f":"'ו. סנוזלן'!G20","v":0},{"$f":"'ו. סנוזלן'!H20","v":0},null,{"$f":"'ו. סנוזלן'!K20","v":0},{"$f":"'ו. סנוזלן'!L20","v":0},{"$f":"IF(F81=0,\"\",'ו. סנוזלן'!M20)","v":""},{"$f":"'ו. סנוזלן'!N20","v":0}]
[{"$f":"'ו. סנוזלן'!B21","v":"אביזרי גריה קטנים"},{"$f":"'ו. סנוזלן'!G21","v":0},{"$f":"'ו. סנוזלן'!H21","v":0},null,{"$f":"'ו. סנוזלן'!K21","v":0},{"$f":"'ו. סנוזלן'!L21","v":0},{"$f":"IF(F82=0,\"\",'ו. סנוזלן'!M21)","v":""},{"$f":"'ו. סנוזלן'!N21","v":0}]
[{"$f":"'ו. סנוזלן'!B22","v":"ארון אחסון לעזרים"},{"$f":"'ו. סנוזלן'!G22","v":0},{"$f":"'ו. סנוזלן'!H22","v":0},null,{"$f":"'ו. סנוזלן'!K22","v":0},{"$f":"'ו. סנוזלן'!L22","v":0},{"$f":"IF(F83=0,\"\",'ו. סנוזלן'!M22)","v":""},{"$f":"'ו. סנוזלן'!N22","v":0}]
[{"$f":"'ו. סנוזלן'!B23","v":"סה\"כ ציוד חדר סנוזלן כולל מע\"מ"},null,{"$f":"SUM(C68:C83)","v":0},null,{"$f":"A84","v":"סה\"כ ציוד חדר סנוזלן כולל מע\"מ"},null,null,{"$f":"SUM(H68:H83)","v":0}]
[{"$f":"'יג. סיכום'!B30","v":"מתקני חצר"},null,null,null,"מתקני חצר"]
[{"$f":"'ז. מתקני חצר '!B7","v":"לחיצת חזה משיכה עליונה"},{"$f":"'ז. מתקני חצר '!H7","v":0},{"$f":"'ז. מתקני חצר '!I7","v":0},null,{"$f":"'ז. מתקני חצר '!L7","v":0},{"$f":"'ז. מתקני חצר '!M7","v":0},{"$f":"IF(F86=0,\"\",'ז. מתקני חצר '!N7)","v":""},{"$f":"'ז. מתקני חצר '!O7","v":0}]
[{"$f":"'ז. מתקני חצר '!B8","v":"מתקן דחיקת כתפיים למשתמש"},{"$f":"'ז. מתקני חצר '!H8","v":0},{"$f":"'ז. מתקני חצר '!I8","v":0},null,{"$f":"'ז. מתקני חצר '!L8","v":0},{"$f":"'ז. מתקני חצר '!M8","v":0},{"$f":"IF(F87=0,\"\",'ז. מתקני חצר '!N8)","v":""},{"$f":"'ז. מתקני חצר '!O8","v":0}]
[{"$f":"'ז. מתקני חצר '!B9","v":"מתקן פרפר חזה"},{"$f":"'ז. מתקני חצר '!H9","v":0},{"$f":"'ז. מתקני חצר '!I9","v":0},null,{"$f":"'ז. מתקני חצר '!L9","v":0},{"$f":"'ז. מתקני חצר '!M9","v":0},{"$f":"IF(F88=0,\"\",'ז. מתקני חצר '!N9)","v":""},{"$f":"'ז. מתקני חצר '!O9","v":0}]
[{"$f":"'ז. מתקני חצר '!B10","v":"מתקן פרפר הפוך"},{"$f":"'ז. מתקני חצר '!H10","v":0},{"$f":"'ז. מתקני חצר '!I10","v":0},null,{"$f":"'ז. מתקני חצר '!L10","v":0},{"$f":"'ז. מתקני חצר '!M10","v":0},{"$f":"IF(F89=0,\"\",'ז. מתקני חצר '!N10)","v":""},{"$f":"'ז. מתקני חצר '!O10","v":0}]
[{"$f":"'ז. מתקני חצר '!B11","v":"מתקן מקבילי כנף לזוג\nמשתמשים"},{"$f":"'ז. מתקני חצר '!H11","v":0},{"$f":"'ז. מתקני חצר '!I11","v":0},null,{"$f":"'ז. מתקני חצר '!L11","v":0},{"$f":"'ז. מתקני חצר '!M11","v":0},{"$f":"IF(F90=0,\"\",'ז. מתקני חצר '!N11)","v":""},{"$f":"'ז. מתקני חצר '!O11","v":0}]
[{"$f":"'ז. מתקני חצר '!B12","v":"מתקן דחיקת רגליים לזוג משתמשים"},{"$f":"'ז. מתקני חצר '!H12","v":0},{"$f":"'ז. מתקני חצר '!I12","v":0},null,{"$f":"'ז. מתקני חצר '!L12","v":0},{"$f":"'ז. מתקני חצר '!M12","v":0},{"$f":"IF(F91=0,\"\",'ז. מתקני חצר '!N12)","v":""},{"$f":"'ז. מתקני חצר '!O12","v":0}]
[{"$f":"'ז. מתקני חצר '!B13","v":"מתקן סקי"},{"$f":"'ז. מתקני חצר '!H13","v":0},{"$f":"'ז. מתקני חצר '!I13","v":0},null,{"$f":"'ז. מתקני חצר '!L13","v":0},{"$f":"'ז. מתקני חצר '!M13","v":0},{"$f":"IF(F92=0,\"\",'ז. מתקני חצר '!N13)","v":""},{"$f":"'ז. מתקני חצר '!O13","v":0}]
[{"$f":"'ז. מתקני חצר '!B14","v":"מתקן הליכה באוויר לזוג משתמשים"},{"$f":"'ז. מתקני חצר '!H14","v":0},{"$f":"'ז. מתקני חצר '!I14","v":0},null,{"$f":"'ז. מתקני חצר '!L14","v":0},{"$f":"'ז. מתקני חצר '!M14","v":0},{"$f":"IF(F93=0,\"\",'ז. מתקני חצר '!N14)","v":""},{"$f":"'ז. מתקני חצר '!O14","v":0}]
[{"$f":"'ז. מתקני חצר '!B15","v":"מתקן חתירה בכורסא"},{"$f":"'ז. מתקני חצר '!H15","v":0},{"$f":"'ז. מתקני חצר '!I15","v":0},null,{"$f":"'ז. מתקני חצר '!L15","v":0},{"$f":"'ז. מתקני חצר '!M15","v":0},{"$f":"IF(F94=0,\"\",'ז. מתקני חצר '!N15)","v":""},{"$f":"'ז. מתקני חצר '!O15","v":0}]
[{"$f":"'ז. מתקני חצר '!B16","v":"ממתקן מאמן אגן שרירי בטן ישבן  וירכיים בתנועת מטוטלת"},{"$f":"'ז. מתקני חצר '!H16","v":0},{"$f":"'ז. מתקני חצר '!I16","v":0},null,{"$f":"'ז. מתקני חצר '!L16","v":0},{"$f":"'ז. מתקני חצר '!M16","v":0},{"$f":"IF(F95=0,\"\",'ז. מתקני חצר '!N16)","v":""},{"$f":"'ז. מתקני חצר '!O16","v":0}]
[{"$f":"'ז. מתקני חצר '!B17","v":"מתקן אופני ידיים רגליים"},{"$f":"'ז. מתקני חצר '!H17","v":0},{"$f":"'ז. מתקני חצר '!I17","v":0},null,{"$f":"'ז. מתקני חצר '!L17","v":0},{"$f":"'ז. מתקני חצר '!M17","v":0},{"$f":"IF(F96=0,\"\",'ז. מתקני חצר '!N17)","v":""},{"$f":"'ז. מתקני חצר '!O17","v":0}]
[{"$f":"'ז. מתקני חצר '!B18","v":"מתקן אימון פולי תחתון בתמיכת חזה"},{"$f":"'ז. מתקני חצר '!H18","v":0},{"$f":"'ז. מתקני חצר '!I18","v":0},null,{"$f":"'ז. מתקני חצר '!L18","v":0},{"$f":"'ז. מתקני חצר '!M18","v":0},{"$f":"IF(F97=0,\"\",'ז. מתקני חצר '!N18)","v":""},{"$f":"'ז. מתקני חצר '!O18","v":0}]
[{"$f":"'ז. מתקני חצר '!B19","v":"מתקן אופני ספיננג"},{"$f":"'ז. מתקני חצר '!H19","v":0},{"$f":"'ז. מתקני חצר '!I19","v":0},null,{"$f":"'ז. מתקני חצר '!L19","v":0},{"$f":"'ז. מתקני חצר '!M19","v":0},{"$f":"IF(F98=0,\"\",'ז. מתקני חצר '!N19)","v":""},{"$f":"'ז. מתקני חצר '!O19","v":0}]
[{"$f":"'ז. מתקני חצר '!B20","v":"מתקן דחיקת רגליים לארבע"},{"$f":"'ז. מתקני חצר '!H20","v":0},{"$f":"'ז. מתקני חצר '!I20","v":0},null,{"$f":"'ז. מתקני חצר '!L20","v":0},{"$f":"'ז. מתקני חצר '!M20","v":0},{"$f":"IF(F99=0,\"\",'ז. מתקני חצר '!N20)","v":""},{"$f":"'ז. מתקני חצר '!O20","v":0}]
[{"$f":"'ז. מתקני חצר '!B21","v":"מתקן מתח –מקבילים וכורסת בטן"},{"$f":"'ז. מתקני חצר '!H21","v":0},{"$f":"'ז. מתקני חצר '!I21","v":0},null,{"$f":"'ז. מתקני חצר '!L21","v":0},{"$f":"'ז. מתקני חצר '!M21","v":0},{"$f":"IF(F100=0,\"\",'ז. מתקני חצר '!N21)","v":""},{"$f":"'ז. מתקני חצר '!O21","v":0}]
[{"$f":"'ז. מתקני חצר '!B22","v":"נדנדה קן לציפור"},{"$f":"'ז. מתקני חצר '!H22","v":0},{"$f":"'ז. מתקני חצר '!I22","v":0},null,{"$f":"'ז. מתקני חצר '!L22","v":0},{"$f":"'ז. מתקני חצר '!M22","v":0},{"$f":"IF(F101=0,\"\",'ז. מתקני חצר '!N22)","v":""},{"$f":"'ז. מתקני חצר '!O22","v":0}]
[{"$f":"'ז. מתקני חצר '!B23","v":"מתקני מוזיקה"},{"$f":"'ז. מתקני חצר '!H23","v":0},{"$f":"'ז. מתקני חצר '!I23","v":0},null,{"$f":"'ז. מתקני חצר '!L23","v":0},{"$f":"'ז. מתקני חצר '!M23","v":0},{"$f":"IF(F102=0,\"\",'ז. מתקני חצר '!N23)","v":""},{"$f":"'ז. מתקני חצר '!O23","v":0}]
[{"$f":"'ז. מתקני חצר '!B24","v":"כדורגל שולחן"},{"$f":"'ז. מתקני חצר '!H24","v":0},{"$f":"'ז. מתקני חצר '!I24","v":0},null,{"$f":"'ז. מתקני חצר '!L24","v":0},{"$f":"'ז. מתקני חצר '!M24","v":0},{"$f":"IF(F103=0,\"\",'ז. מתקני חצר '!N24)","v":""},{"$f":"'ז. מתקני חצר '!O24","v":0}]
[{"$f":"'ז. מתקני חצר '!B25","v":"הוקי אויר"},{"$f":"'ז. מתקני חצר '!H25","v":0},{"$f":"'ז. מתקני חצר '!I25","v":0},null,{"$f":"'ז. מתקני חצר '!L25","v":0},{"$f":"'ז. מתקני חצר '!M25","v":0},{"$f":"IF(F104=0,\"\",'ז. מתקני חצר '!N25)","v":""},{"$f":"'ז. מתקני חצר '!O25","v":0}]
[{"$f":"'ז. מתקני חצר '!B26","v":"משטח גומי"},{"$f":"'ז. מתקני חצר '!H26","v":0},{"$f":"'ז. מתקני חצר '!I26","v":0},null,{"$f":"'ז. מתקני חצר '!L26","v":0},{"$f":"'ז. מתקני חצר '!M26","v":0},{"$f":"IF(F105=0,\"\",'ז. מתקני חצר '!N26)","v":""},{"$f":"'ז. מתקני חצר '!O26","v":0}]
[{"$f":"'ז. מתקני חצר '!B27","v":"סה\"כ מתקני חצר (כולל מע\"מ)"},null,{"$f":"SUM(C86:C105)","v":0},null,{"$f":"A106","v":"סה\"כ מתקני חצר (כולל מע\"מ)"},null,null,{"$f":"SUM(H86:H105)","v":0}]
[{"$f":"'יג. סיכום'!B31","v":"פיזיותרפיה"},null,null,null,"פיזיותרפיה"]
[{"$f":"'ח. פיזיותרפיה'!B8","v":" בובט מיטת טיפול"},{"$f":"'ח. פיזיותרפיה'!G8","v":0},{"$f":"'ח. פיזיותרפיה'!H8","v":0},null,{"$f":"'ח. פיזיותרפיה'!K8","v":0},{"$f":"'ח. פיזיותרפיה'!L8","v":0},{"$f":"IF(F108=0,\"\",'ח. פיזיותרפיה'!M8)","v":""},{"$f":"'ח. פיזיותרפיה'!N8","v":0}]
[{"$f":"'ח. פיזיותרפיה'!B9","v":"כסא מטפל"},{"$f":"'ח. פיזיותרפיה'!G9","v":0},{"$f":"'ח. פיזיותרפיה'!H9","v":0},null,{"$f":"'ח. פיזיותרפיה'!K9","v":0},{"$f":"'ח. פיזיותרפיה'!L9","v":0},{"$f":"IF(F109=0,\"\",'ח. פיזיותרפיה'!M9)","v":""},{"$f":"'ח. פיזיותרפיה'!N9","v":0}]
[{"$f":"'ח. פיזיותרפיה'!B10","v":"סולם שבדי ותוספות"},{"$f":"'ח. פיזיותרפיה'!G10","v":0},{"$f":"'ח. פיזיותרפיה'!H10","v":0},null,{"$f":"'ח. פיזיותרפיה'!K10","v":0},{"$f":"'ח. פיזיותרפיה'!L10","v":0},{"$f":"IF(F110=0,\"\",'ח. פיזיותרפיה'!M10)","v":""},{"$f":"'ח. פיזיותרפיה'!N10","v":0}]
[{"$f":"'ח. פיזיותרפיה'!B11","v":"אחות אילמת"},{"$f":"'ח. פיזיותרפיה'!G11","v":0},{"$f":"'ח. פיזיותרפיה'!H11","v":0},null,{"$f":"'ח. פיזיותרפיה'!K11","v":0},{"$f":"'ח. פיזיותרפיה'!L11","v":0},{"$f":"IF(F111=0,\"\",'ח. פיזיותרפיה'!M11)","v":""},{"$f":"'ח. פיזיותרפיה'!N11","v":0}]
[{"$f":"'ח. פיזיותרפיה'!B12","v":"מקבילים"},{"$f":"'ח. פיזיותרפיה'!G12","v":0},{"$f":"'ח. פיזיותרפיה'!H12","v":0},null,{"$f":"'ח. פיזיותרפיה'!K12","v":0},{"$f":"'ח. פיזיותרפיה'!L12","v":0},{"$f":"IF(F112=0,\"\",'ח. פיזיותרפיה'!M12)","v":""},{"$f":"'ח. פיזיותרפיה'!N12","v":0}]
[{"$f":"'ח. פיזיותרפיה'!B13","v":"ארון איחסון"},{"$f":"'ח. פיזיותרפיה'!G13","v":0},{"$f":"'ח. פיזיותרפיה'!H13","v":0},null,{"$f":"'ח. פיזיותרפיה'!K13","v":0},{"$f":"'ח. פיזיותרפיה'!L13","v":0},{"$f":"IF(F113=0,\"\",'ח. פיזיותרפיה'!M13)","v":""},{"$f":"'ח. פיזיותרפיה'!N13","v":0}]
[{"$f":"'ח. פיזיותרפיה'!B14","v":"מחשוב"},{"$f":"'ח. פיזיותרפיה'!G14","v":0},{"$f":"'ח. פיזיותרפיה'!H14","v":0},null,{"$f":"'ח. פיזיותרפיה'!K14","v":0},{"$f":"'ח. פיזיותרפיה'!L14","v":0},{"$f":"IF(F114=0,\"\",'ח. פיזיותרפיה'!M14)","v":""},{"$f":"'ח. פיזיותרפיה'!N14","v":0}]
[{"$f":"'ח. פיזיותרפיה'!B17","v":"כיסא אקטיבי מיוחד קטן/בינוני"},{"$f":"'ח. פיזיותרפיה'!G17","v":0},{"$f":"'ח. פיזיותרפיה'!H17","v":0},null,{"$f":"'ח. פיזיותרפיה'!K17","v":0},{"$f":"'ח. פיזיותרפיה'!L17","v":0},{"$f":"IF(F115=0,\"\",'ח. פיזיותרפיה'!M17)","v":""},{"$f":"'ח. פיזיותרפיה'!N17","v":0}]
[{"$f":"'ח. פיזיותרפיה'!B18","v":"כיסא אקטיבי מיוחד גדול"},{"$f":"'ח. פיזיותרפיה'!G18","v":0},{"$f":"'ח. פיזיותרפיה'!H18","v":0},null,{"$f":"'ח. פיזיותרפיה'!K18","v":0},{"$f":"'ח. פיזיותרפיה'!L18","v":0},{"$f":"IF(F116=0,\"\",'ח. פיזיותרפיה'!M18)","v":""},{"$f":"'ח. פיזיותרפיה'!N18","v":0}]
[{"$f":"'ח. פיזיותרפיה'!B21","v":"עמידון קידמי כולל תמיכות"},{"$f":"'ח. פיזיותרפיה'!G21","v":0},{"$f":"'ח. פיזיותרפיה'!H21","v":0},null,{"$f":"'ח. פיזיותרפיה'!K21","v":0},{"$f":"'ח. פיזיותרפיה'!L21","v":0},{"$f":"IF(F117=0,\"\",'ח. פיזיותרפיה'!M21)","v":""},{"$f":"'ח. פיזיותרפיה'!N21","v":0}]
[{"$f":"'ח. פיזיותרפיה'!B22","v":"עמידון אחורי כולל תמיכות"},{"$f":"'ח. פיזיותרפיה'!G22","v":0},{"$f":"'ח. פיזיותרפיה'!H22","v":0},null,{"$f":"'ח. פיזיותרפיה'!K22","v":0},{"$f":"'ח. פיזיותרפיה'!L22","v":0},{"$f":"IF(F118=0,\"\",'ח. פיזיותרפיה'!M22)","v":""},{"$f":"'ח. פיזיותרפיה'!N22","v":0}]
[{"$f":"'ח. פיזיותרפיה'!B23","v":"מיטת טיל גדולה"},{"$f":"'ח. פיזיותרפיה'!G23","v":0},{"$f":"'ח. פיזיותרפיה'!H23","v":0},null,{"$f":"'ח. פיזיותרפיה'!K23","v":0},{"$f":"'ח. פיזיותרפיה'!L23","v":0},{"$f":"IF(F119=0,\"\",'ח. פיזיותרפיה'!M23)","v":""},{"$f":"'ח. פיזיותרפיה'!N23","v":0}]
[{"$f":"'ח. פיזיותרפיה'!B24","v":"עמידון גדול כולל תמיכות מרובות "},{"$f":"'ח. פיזיותרפיה'!G24","v":0},{"$f":"'ח. פיזיותרפיה'!H24","v":0},null,{"$f":"'ח. פיזיותרפיה'!K24","v":0},{"$f":"'ח. פיזיותרפיה'!L24","v":0},{"$f":"IF(F120=0,\"\",'ח. פיזיותרפיה'!M24)","v":""},{"$f":"'ח. פיזיותרפיה'!N24","v":0}]
[{"$f":"'ח. פיזיותרפיה'!B25","v":"ישיבה לעמידה עם תמיכות מרובות"},{"$f":"'ח. פיזיותרפיה'!G25","v":0},{"$f":"'ח. פיזיותרפיה'!H25","v":0},null,{"$f":"'ח. פיזיותרפיה'!K25","v":0},{"$f":"'ח. פיזיותרפיה'!L25","v":0},{"$f":"IF(F121=0,\"\",'ח. פיזיותרפיה'!M25)","v":""},{"$f":"'ח. פיזיותרפיה'!N25","v":0}]
[{"$f":"'ח. פיזיותרפיה'!B28","v":"הליכון קידמי פשוט"},{"$f":"'ח. פיזיותרפיה'!G28","v":0},{"$f":"'ח. פיזיותרפיה'!H28","v":0},null,{"$f":"'ח. פיזיותרפיה'!K28","v":0},{"$f":"'ח. פיזיותרפיה'!L28","v":0},{"$f":"IF(F122=0,\"\",'ח. פיזיותרפיה'!M28)","v":""},{"$f":"'ח. פיזיותרפיה'!N28","v":0}]
[{"$f":"'ח. פיזיותרפיה'!B29","v":"הליכון אחורי ק"},{"$f":"'ח. פיזיותרפיה'!G29","v":0},{"$f":"'ח. פיזיותרפיה'!H29","v":0},null,{"$f":"'ח. פיזיותרפיה'!K29","v":0},{"$f":"'ח. פיזיותרפיה'!L29","v":0},{"$f":"IF(F123=0,\"\",'ח. פיזיותרפיה'!M29)","v":""},{"$f":"'ח. פיזיותרפיה'!N29","v":0}]
[{"$f":"'ח. פיזיותרפיה'!B30","v":"הליכון אחורי ב"},{"$f":"'ח. פיזיותרפיה'!G30","v":0},{"$f":"'ח. פיזיותרפיה'!H30","v":0},null,{"$f":"'ח. פיזיותרפיה'!K30","v":0},{"$f":"'ח. פיזיותרפיה'!L30","v":0},{"$f":"IF(F124=0,\"\",'ח. פיזיותרפיה'!M30)","v":""},{"$f":"'ח. פיזיותרפיה'!N30","v":0}]
[{"$f":"'ח. פיזיותרפיה'!B31","v":"הליכון אחורי ג"},{"$f":"'ח. פיזיותרפיה'!G31","v":0},{"$f":"'ח. פיזיותרפיה'!H31","v":0},null,{"$f":"'ח. פיזיותרפיה'!K31","v":0},{"$f":"'ח. פיזיותרפיה'!L31","v":0},{"$f":"IF(F125=0,\"\",'ח. פיזיותרפיה'!M31)","v":""},{"$f":"'ח. פיזיותרפיה'!N31","v":0}]
[{"$f":"'ח. פיזיותרפיה'!B32","v":"הליכון אמות הדראולי"},{"$f":"'ח. פיזיותרפיה'!G32","v":0},{"$f":"'ח. פיזיותרפיה'!H32","v":0},null,{"$f":"'ח. פיזיותרפיה'!K32","v":0},{"$f":"'ח. פיזיותרפיה'!L32","v":0},{"$f":"IF(F126=0,\"\",'ח. פיזיותרפיה'!M32)","v":""},{"$f":"'ח. פיזיותרפיה'!N32","v":0}]
[{"$f":"'ח. פיזיותרפיה'!B33","v":"הליכון אמות רגיל"},{"$f":"'ח. פיזיותרפיה'!G33","v":0},{"$f":"'ח. פיזיותרפיה'!H33","v":0},null,{"$f":"'ח. פיזיותרפיה'!K33","v":0},{"$f":"'ח. פיזיותרפיה'!L33","v":0},{"$f":"IF(F127=0,\"\",'ח. פיזיותרפיה'!M33)","v":""},{"$f":"'ח. פיזיותרפיה'!N33","v":0}]
[{"$f":"'ח. פיזיותרפיה'!B34","v":"רולטור בסיסי"},{"$f":"'ח. פיזיותרפיה'!G34","v":0},{"$f":"'ח. פיזיותרפיה'!H34","v":0},null,{"$f":"'ח. פיזיותרפיה'!K34","v":0},{"$f":"'ח. פיזיותרפיה'!L34","v":0},{"$f":"IF(F128=0,\"\",'ח. פיזיותרפיה'!M34)","v":""},{"$f":"'ח. פיזיותרפיה'!N34","v":0}]
[{"$f":"'ח. פיזיותרפיה'!B35","v":"רולטור מיוחד תמיכות"},{"$f":"'ח. פיזיותרפיה'!G35","v":0},{"$f":"'ח. פיזיותרפיה'!H35","v":0},null,{"$f":"'ח. פיזיותרפיה'!K35","v":0},{"$f":"'ח. פיזיותרפיה'!L35","v":0},{"$f":"IF(F129=0,\"\",'ח. פיזיותרפיה'!M35)","v":""},{"$f":"'ח. פיזיותרפיה'!N35","v":0}]
[{"$f":"'ח. פיזיותרפיה'!B36","v":"הליכון פייסר"},{"$f":"'ח. פיזיותרפיה'!G36","v":0},{"$f":"'ח. פיזיותרפיה'!H36","v":0},null,{"$f":"'ח. פיזיותרפיה'!K36","v":0},{"$f":"'ח. פיזיותרפיה'!L36","v":0},{"$f":"IF(F130=0,\"\",'ח. פיזיותרפיה'!M36)","v":""},{"$f":"'ח. פיזיותרפיה'!N36","v":0}]
[{"$f":"'ח. פיזיותרפיה'!B37","v":"הליכון גרילו"},{"$f":"'ח. פיזיותרפיה'!G37","v":0},{"$f":"'ח. פיזיותרפיה'!H37","v":0},null,{"$f":"'ח. פיזיותרפיה'!K37","v":0},{"$f":"'ח. פיזיותרפיה'!L37","v":0},{"$f":"IF(F131=0,\"\",'ח. פיזיותרפיה'!M37)","v":""},{"$f":"'ח. פיזיותרפיה'!N37","v":0}]
[{"$f":"'ח. פיזיותרפיה'!B38","v":"הליכון אוכף"},{"$f":"'ח. פיזיותרפיה'!G38","v":0},{"$f":"'ח. פיזיותרפיה'!H38","v":0},null,{"$f":"'ח. פיזיותרפיה'!K38","v":0},{"$f":"'ח. פיזיותרפיה'!L38","v":0},{"$f":"IF(F132=0,\"\",'ח. פיזיותרפיה'!M38)","v":""},{"$f":"'ח. פיזיותרפיה'!N38","v":0}]
[{"$f":"'ח. פיזיותרפיה'!B41","v":"מנוף תקרה+ התקנה"},{"$f":"'ח. פיזיותרפיה'!G41","v":0},{"$f":"'ח. פיזיותרפיה'!H41","v":0},null,{"$f":"'ח. פיזיותרפיה'!K41","v":0},{"$f":"'ח. פיזיותרפיה'!L41","v":0},{"$f":"IF(F133=0,\"\",'ח. פיזיותרפיה'!M41)","v":""},{"$f":"'ח. פיזיותרפיה'!N41","v":0}]
[{"$f":"'ח. פיזיותרפיה'!B42","v":"מנוף רצפה"},{"$f":"'ח. פיזיותרפיה'!G42","v":0},{"$f":"'ח. פיזיותרפיה'!H42","v":0},null,{"$f":"'ח. פיזיותרפיה'!K42","v":0},{"$f":"'ח. פיזיותרפיה'!L42","v":0},{"$f":"IF(F134=0,\"\",'ח. פיזיותרפיה'!M42)","v":""},{"$f":"'ח. פיזיותרפיה'!N42","v":0}]
[{"$f":"'ח. פיזיותרפיה'!B43","v":"מנופי העמדה"},{"$f":"'ח. פיזיותרפיה'!G43","v":0},{"$f":"'ח. פיזיותרפיה'!H43","v":0},null,{"$f":"'ח. פיזיותרפיה'!K43","v":0},{"$f":"'ח. פיזיותרפיה'!L43","v":0},{"$f":"IF(F135=0,\"\",'ח. פיזיותרפיה'!M43)","v":""},{"$f":"'ח. פיזיותרפיה'!N43","v":0}]
[{"$f":"'ח. פיזיותרפיה'!B44","v":"ערסלים"},{"$f":"'ח. פיזיותרפיה'!G44","v":0},{"$f":"'ח. פיזיותרפיה'!H44","v":0},null,{"$f":"'ח. פיזיותרפיה'!K44","v":0},{"$f":"'ח. פיזיותרפיה'!L44","v":0},{"$f":"IF(F136=0,\"\",'ח. פיזיותרפיה'!M44)","v":""},{"$f":"'ח. פיזיותרפיה'!N44","v":0}]
[{"$f":"'ח. פיזיותרפיה'!B45","v":"תוספת לערסלים מיוחדים"},{"$f":"'ח. פיזיותרפיה'!G45","v":0},{"$f":"'ח. פיזיותרפיה'!H45","v":0},null,{"$f":"'ח. פיזיותרפיה'!K45","v":0},{"$f":"'ח. פיזיותרפיה'!L45","v":0},{"$f":"IF(F137=0,\"\",'ח. פיזיותרפיה'!M45)","v":""},{"$f":"'ח. פיזיותרפיה'!N45","v":0}]
[{"$f":"'ח. פיזיותרפיה'!B48","v":"נדנדות"},{"$f":"'ח. פיזיותרפיה'!G48","v":0},{"$f":"'ח. פיזיותרפיה'!H48","v":0},null,{"$f":"'ח. פיזיותרפיה'!K48","v":0},{"$f":"'ח. פיזיותרפיה'!L48","v":0},{"$f":"IF(F138=0,\"\",'ח. פיזיותרפיה'!M48)","v":""},{"$f":"'ח. פיזיותרפיה'!N48","v":0}]
[{"$f":"'ח. פיזיותרפיה'!B49","v":"גלילים"},{"$f":"'ח. פיזיותרפיה'!G49","v":0},{"$f":"'ח. פיזיותרפיה'!H49","v":0},null,{"$f":"'ח. פיזיותרפיה'!K49","v":0},{"$f":"'ח. פיזיותרפיה'!L49","v":0},{"$f":"IF(F139=0,\"\",'ח. פיזיותרפיה'!M49)","v":""},{"$f":"'ח. פיזיותרפיה'!N49","v":0}]
[{"$f":"'ח. פיזיותרפיה'!B50","v":"כדורים שונים"},{"$f":"'ח. פיזיותרפיה'!G50","v":0},{"$f":"'ח. פיזיותרפיה'!H50","v":0},null,{"$f":"'ח. פיזיותרפיה'!K50","v":0},{"$f":"'ח. פיזיותרפיה'!L50","v":0},{"$f":"IF(F140=0,\"\",'ח. פיזיותרפיה'!M50)","v":""},{"$f":"'ח. פיזיותרפיה'!N50","v":0}]
[{"$f":"'ח. פיזיותרפיה'!B51","v":"עזרים לפיתוח שיווי משקל "},{"$f":"'ח. פיזיותרפיה'!G51","v":0},{"$f":"'ח. פיזיותרפיה'!H51","v":0},null,{"$f":"'ח. פיזיותרפיה'!K51","v":0},{"$f":"'ח. פיזיותרפיה'!L51","v":0},{"$f":"IF(F141=0,\"\",'ח. פיזיותרפיה'!M51)","v":""},{"$f":"'ח. פיזיותרפיה'!N51","v":0}]
[{"$f":"'ח. פיזיותרפיה'!B52","v":"מזרונים"},{"$f":"'ח. פיזיותרפיה'!G52","v":0},{"$f":"'ח. פיזיותרפיה'!H52","v":0},null,{"$f":"'ח. פיזיותרפיה'!K52","v":0},{"$f":"'ח. פיזיותרפיה'!L52","v":0},{"$f":"IF(F142=0,\"\",'ח. פיזיותרפיה'!M52)","v":""},{"$f":"'ח. פיזיותרפיה'!N52","v":0}]
[{"$f":"'ח. פיזיותרפיה'!B53","v":"אביזרי טיפוס"},{"$f":"'ח. פיזיותרפיה'!G53","v":0},{"$f":"'ח. פיזיותרפיה'!H53","v":0},null,{"$f":"'ח. פיזיותרפיה'!K53","v":0},{"$f":"'ח. פיזיותרפיה'!L53","v":0},{"$f":"IF(F143=0,\"\",'ח. פיזיותרפיה'!M53)","v":""},{"$f":"'ח. פיזיותרפיה'!N53","v":0}]
[{"$f":"'ח. פיזיותרפיה'!B54","v":"ערכות הפעלה"},{"$f":"'ח. פיזיותרפיה'!G54","v":0},{"$f":"'ח. פיזיותרפיה'!H54","v":0},null,{"$f":"'ח. פיזיותרפיה'!K54","v":0},{"$f":"'ח. פיזיותרפיה'!L54","v":0},{"$f":"IF(F144=0,\"\",'ח. פיזיותרפיה'!M54)","v":""},{"$f":"'ח. פיזיותרפיה'!N54","v":0}]
[{"$f":"'ח. פיזיותרפיה'!B55","v":"אביזרים לפעילות קבוצתית"},{"$f":"'ח. פיזיותרפיה'!G55","v":0},{"$f":"'ח. פיזיותרפיה'!H55","v":0},null,{"$f":"'ח. פיזיותרפיה'!K55","v":0},{"$f":"'ח. פיזיותרפיה'!L55","v":0},{"$f":"IF(F145=0,\"\",'ח. פיזיותרפיה'!M55)","v":""},{"$f":"'ח. פיזיותרפיה'!N55","v":0}]
[{"$f":"'ח. פיזיותרפיה'!B56","v":"משחקי גירוי תגובה"},{"$f":"'ח. פיזיותרפיה'!G56","v":0},{"$f":"'ח. פיזיותרפיה'!H56","v":0},null,{"$f":"'ח. פיזיותרפיה'!K56","v":0},{"$f":"'ח. פיזיותרפיה'!L56","v":0},{"$f":"IF(F146=0,\"\",'ח. פיזיותרפיה'!M56)","v":""},{"$f":"'ח. פיזיותרפיה'!N56","v":0}]
[{"$f":"'ח. פיזיותרפיה'!B57","v":"התקנות והתאמות"},{"$f":"'ח. פיזיותרפיה'!G57","v":0},{"$f":"'ח. פיזיותרפיה'!H57","v":0},null,{"$f":"'ח. פיזיותרפיה'!K57","v":0},{"$f":"'ח. פיזיותרפיה'!L57","v":0},{"$f":"IF(F147=0,\"\",'ח. פיזיותרפיה'!M57)","v":""},{"$f":"'ח. פיזיותרפיה'!N57","v":0}]
[{"$f":"'ח. פיזיותרפיה'!B58","v":"עזרי הפעלה ועוררות "},{"$f":"'ח. פיזיותרפיה'!G58","v":0},{"$f":"'ח. פיזיותרפיה'!H58","v":0},null,{"$f":"'ח. פיזיותרפיה'!K58","v":0},{"$f":"'ח. פיזיותרפיה'!L58","v":0},{"$f":"IF(F148=0,\"\",'ח. פיזיותרפיה'!M58)","v":""},{"$f":"'ח. פיזיותרפיה'!N58","v":0}]
[{"$f":"'ח. פיזיותרפיה'!B59","v":"עזרי פעילות תנועתית"},{"$f":"'ח. פיזיותרפיה'!G59","v":0},{"$f":"'ח. פיזיותרפיה'!H59","v":0},null,{"$f":"'ח. פיזיותרפיה'!K59","v":0},{"$f":"'ח. פיזיותרפיה'!L59","v":0},{"$f":"IF(F149=0,\"\",'ח. פיזיותרפיה'!M59)","v":""},{"$f":"'ח. פיזיותרפיה'!N59","v":0}]
[{"$f":"'ח. פיזיותרפיה'!B60","v":"כח וסיבולת"},{"$f":"'ח. פיזיותרפיה'!G60","v":0},{"$f":"'ח. פיזיותרפיה'!H60","v":0},null,{"$f":"'ח. פיזיותרפיה'!K60","v":0},{"$f":"'ח. פיזיותרפיה'!L60","v":0},{"$f":"IF(F150=0,\"\",'ח. פיזיותרפיה'!M60)","v":""},{"$f":"'ח. פיזיותרפיה'!N60","v":0}]
[{"$f":"'ח. פיזיותרפיה'!B61","v":" ארון אחסון לאביזרים הקטנים"},{"$f":"'ח. פיזיותרפיה'!G61","v":0},{"$f":"'ח. פיזיותרפיה'!H61","v":0},null,{"$f":"'ח. פיזיותרפיה'!K61","v":0},{"$f":"'ח. פיזיותרפיה'!L61","v":0},{"$f":"IF(F151=0,\"\",'ח. פיזיותרפיה'!M61)","v":""},{"$f":"'ח. פיזיותרפיה'!N61","v":0}]
[{"$f":"'ח. פיזיותרפיה'!B62","v":"מדף אחסון לכדורים וגלילים"},{"$f":"'ח. פיזיותרפיה'!G62","v":0},{"$f":"'ח. פיזיותרפיה'!H62","v":0},null,{"$f":"'ח. פיזיותרפיה'!K62","v":0},{"$f":"'ח. פיזיותרפיה'!L62","v":0},{"$f":"IF(F152=0,\"\",'ח. פיזיותרפיה'!M62)","v":""},{"$f":"'ח. פיזיותרפיה'!N62","v":0}]
[{"$f":"'ח. פיזיותרפיה'!B65","v":"אופנים + טלויזיה"},{"$f":"'ח. פיזיותרפיה'!G65","v":0},{"$f":"'ח. פיזיותרפיה'!H65","v":0},null,{"$f":"'ח. פיזיותרפיה'!K65","v":0},{"$f":"'ח. פיזיותרפיה'!L65","v":0},{"$f":"IF(F153=0,\"\",'ח. פיזיותרפיה'!M65)","v":""},{"$f":"'ח. פיזיותרפיה'!N65","v":0}]
[{"$f":"'ח. פיזיותרפיה'!B66","v":"מדרגות ארוביות "},{"$f":"'ח. פיזיותרפיה'!G66","v":0},{"$f":"'ח. פיזיותרפיה'!H66","v":0},null,{"$f":"'ח. פיזיותרפיה'!K66","v":0},{"$f":"'ח. פיזיותרפיה'!L66","v":0},{"$f":"IF(F154=0,\"\",'ח. פיזיותרפיה'!M66)","v":""},{"$f":"'ח. פיזיותרפיה'!N66","v":0}]
[{"$f":"'ח. פיזיותרפיה'!B67","v":"בוסו"},{"$f":"'ח. פיזיותרפיה'!G67","v":0},{"$f":"'ח. פיזיותרפיה'!H67","v":0},null,{"$f":"'ח. פיזיותרפיה'!K67","v":0},{"$f":"'ח. פיזיותרפיה'!L67","v":0},{"$f":"IF(F155=0,\"\",'ח. פיזיותרפיה'!M67)","v":""},{"$f":"'ח. פיזיותרפיה'!N67","v":0}]
[{"$f":"'ח. פיזיותרפיה'!B68","v":"פולי"},{"$f":"'ח. פיזיותרפיה'!G68","v":0},{"$f":"'ח. פיזיותרפיה'!H68","v":0},null,{"$f":"'ח. פיזיותרפיה'!K68","v":0},{"$f":"'ח. פיזיותרפיה'!L68","v":0},{"$f":"IF(F156=0,\"\",'ח. פיזיותרפיה'!M68)","v":""},{"$f":"'ח. פיזיותרפיה'!N68","v":0}]
[{"$f":"'ח. פיזיותרפיה'!B69","v":"מעמד עם APT"},{"$f":"'ח. פיזיותרפיה'!G69","v":0},{"$f":"'ח. פיזיותרפיה'!H69","v":0},null,{"$f":"'ח. פיזיותרפיה'!K69","v":0},{"$f":"'ח. פיזיותרפיה'!L69","v":0},{"$f":"IF(F157=0,\"\",'ח. פיזיותרפיה'!M69)","v":""},{"$f":"'ח. פיזיותרפיה'!N69","v":0}]
[{"$f":"'ח. פיזיותרפיה'!B70","v":"אופנים עם משענת"},{"$f":"'ח. פיזיותרפיה'!G70","v":0},{"$f":"'ח. פיזיותרפיה'!H70","v":0},null,{"$f":"'ח. פיזיותרפיה'!K70","v":0},{"$f":"'ח. פיזיותרפיה'!L70","v":0},{"$f":"IF(F158=0,\"\",'ח. פיזיותרפיה'!M70)","v":""},{"$f":"'ח. פיזיותרפיה'!N70","v":0}]
[{"$f":"'ח. פיזיותרפיה'!B71","v":"אופני ידיים ורגליים מתכווננים"},{"$f":"'ח. פיזיותרפיה'!G71","v":0},{"$f":"'ח. פיזיותרפיה'!H71","v":0},null,{"$f":"'ח. פיזיותרפיה'!K71","v":0},{"$f":"'ח. פיזיותרפיה'!L71","v":0},{"$f":"IF(F159=0,\"\",'ח. פיזיותרפיה'!M71)","v":""},{"$f":"'ח. פיזיותרפיה'!N71","v":0}]
[{"$f":"'ח. פיזיותרפיה'!B72","v":"הליכון חשמלי"},{"$f":"'ח. פיזיותרפיה'!G72","v":0},{"$f":"'ח. פיזיותרפיה'!H72","v":0},null,{"$f":"'ח. פיזיותרפיה'!K72","v":0},{"$f":"'ח. פיזיותרפיה'!L72","v":0},{"$f":"IF(F160=0,\"\",'ח. פיזיותרפיה'!M72)","v":""},{"$f":"'ח. פיזיותרפיה'!N72","v":0}]
[{"$f":"'ח. פיזיותרפיה'!B73","v":"מתקן נשיאה"},{"$f":"'ח. פיזיותרפיה'!G73","v":0},{"$f":"'ח. פיזיותרפיה'!H73","v":0},null,{"$f":"'ח. פיזיותרפיה'!K73","v":0},{"$f":"'ח. פיזיותרפיה'!L73","v":0},{"$f":"IF(F161=0,\"\",'ח. פיזיותרפיה'!M73)","v":""},{"$f":"'ח. פיזיותרפיה'!N73","v":0}]
[{"$f":"'ח. פיזיותרפיה'!B74","v":"גומיות, כדורי כח ומשקוליות תקציב כולל"},{"$f":"'ח. פיזיותרפיה'!G74","v":0},{"$f":"'ח. פיזיותרפיה'!H74","v":0},null,{"$f":"'ח. פיזיותרפיה'!K74","v":0},{"$f":"'ח. פיזיותרפיה'!L74","v":0},{"$f":"IF(F162=0,\"\",'ח. פיזיותרפיה'!M74)","v":""},{"$f":"'ח. פיזיותרפיה'!N74","v":0}]
[{"$f":"'ח. פיזיותרפיה'!B75","v":"תלת אופן גדול"},{"$f":"'ח. פיזיותרפיה'!G75","v":0},{"$f":"'ח. פיזיותרפיה'!H75","v":0},null,{"$f":"'ח. פיזיותרפיה'!K75","v":0},{"$f":"'ח. פיזיותרפיה'!L75","v":0},{"$f":"IF(F163=0,\"\",'ח. פיזיותרפיה'!M75)","v":""},{"$f":"'ח. פיזיותרפיה'!N75","v":0}]
[{"$f":"'ח. פיזיותרפיה'!B76","v":"קסדות בגדלים ובצבעים שונים- תקציב כולל"},{"$f":"'ח. פיזיותרפיה'!G76","v":0},{"$f":"'ח. פיזיותרפיה'!H76","v":0},null,{"$f":"'ח. פיזיותרפיה'!K76","v":0},{"$f":"'ח. פיזיותרפיה'!L76","v":0},{"$f":"IF(F164=0,\"\",'ח. פיזיותרפיה'!M76)","v":""},{"$f":"'ח. פיזיותרפיה'!N76","v":0}]
[{"$f":"'ח. פיזיותרפיה'!B77","v":"תלת אופן קטן"},{"$f":"'ח. פיזיותרפיה'!G77","v":0},{"$f":"'ח. פיזיותרפיה'!H77","v":0},null,{"$f":"'ח. פיזיותרפיה'!K77","v":0},{"$f":"'ח. פיזיותרפיה'!L77","v":0},{"$f":"IF(F165=0,\"\",'ח. פיזיותרפיה'!M77)","v":""},{"$f":"'ח. פיזיותרפיה'!N77","v":0}]
[{"$f":"'ח. פיזיותרפיה'!B78","v":"תלת אופן רגיל"},{"$f":"'ח. פיזיותרפיה'!G78","v":0},{"$f":"'ח. פיזיותרפיה'!H78","v":0},null,{"$f":"'ח. פיזיותרפיה'!K78","v":0},{"$f":"'ח. פיזיותרפיה'!L78","v":0},{"$f":"IF(F166=0,\"\",'ח. פיזיותרפיה'!M78)","v":""},{"$f":"'ח. פיזיותרפיה'!N78","v":0}]
[{"$f":"'ח. פיזיותרפיה'!B80","v":"סה\"כ ציוד פיזותרפיה כולל מע\"מ"},null,{"$f":"SUM(C108:C166)","v":0},null,{"$f":"A167","v":"סה\"כ ציוד פיזותרפיה כולל מע\"מ"},null,null,{"$f":"SUM(H108:H166)","v":0}]
[{"$f":"'יג. סיכום'!B32","v":"ציוד טיפולי שיקומי"},null,null,null,{"$f":"A168","v":"ציוד טיפולי שיקומי"}]
[{"$f":"'ט. ציוד טיפולי-שיקומי'!B7","v":"מיטה סיעודית כולל מזרן רגיל"},{"$f":"'ט. ציוד טיפולי-שיקומי'!G7","v":0},{"$f":"'ט. ציוד טיפולי-שיקומי'!H7","v":0},null,{"$f":"'ט. ציוד טיפולי-שיקומי'!K7","v":0},{"$f":"'ט. ציוד טיפולי-שיקומי'!L7","v":0},{"$f":"IF(F169=0,\"\",'ט. ציוד טיפולי-שיקומי'!M7)","v":""},{"$f":"'ט. ציוד טיפולי-שיקומי'!N7","v":0}]
[{"$f":"'ט. ציוד טיפולי-שיקומי'!B8","v":"מזרן אויר דינאמי (מזרן נגד פצעי לחץ)"},{"$f":"'ט. ציוד טיפולי-שיקומי'!G8","v":0},{"$f":"'ט. ציוד טיפולי-שיקומי'!H8","v":0},null,{"$f":"'ט. ציוד טיפולי-שיקומי'!K8","v":0},{"$f":"'ט. ציוד טיפולי-שיקומי'!L8","v":0},{"$f":"IF(F170=0,\"\",'ט. ציוד טיפולי-שיקומי'!M8)","v":""},{"$f":"'ט. ציוד טיפולי-שיקומי'!N8","v":0}]
[{"$f":"'ט. ציוד טיפולי-שיקומי'!B9","v":"כיסאות רחצה- סטנדרטי"},{"$f":"'ט. ציוד טיפולי-שיקומי'!G9","v":0},{"$f":"'ט. ציוד טיפולי-שיקומי'!H9","v":0},null,{"$f":"'ט. ציוד טיפולי-שיקומי'!K9","v":0},{"$f":"'ט. ציוד טיפולי-שיקומי'!L9","v":0},{"$f":"IF(F171=0,\"\",'ט. ציוד טיפולי-שיקומי'!M9)","v":""},{"$f":"'ט. ציוד טיפולי-שיקומי'!N9","v":0}]
[{"$f":"'ט. ציוד טיפולי-שיקומי'!B10","v":"כיסאות רחצה- טילט"},{"$f":"'ט. ציוד טיפולי-שיקומי'!G10","v":0},{"$f":"'ט. ציוד טיפולי-שיקומי'!H10","v":0},null,{"$f":"'ט. ציוד טיפולי-שיקומי'!K10","v":0},{"$f":"'ט. ציוד טיפולי-שיקומי'!L10","v":0},{"$f":"IF(F172=0,\"\",'ט. ציוד טיפולי-שיקומי'!M10)","v":""},{"$f":"'ט. ציוד טיפולי-שיקומי'!N10","v":0}]
[{"$f":"'ט. ציוד טיפולי-שיקומי'!B11","v":"כיסאות רחצה"},{"$f":"'ט. ציוד טיפולי-שיקומי'!G11","v":0},{"$f":"'ט. ציוד טיפולי-שיקומי'!H11","v":0},null,{"$f":"'ט. ציוד טיפולי-שיקומי'!K11","v":0},{"$f":"'ט. ציוד טיפולי-שיקומי'!L11","v":0},{"$f":"IF(F173=0,\"\",'ט. ציוד טיפולי-שיקומי'!M11)","v":""},{"$f":"'ט. ציוד טיפולי-שיקומי'!N11","v":0}]
[{"$f":"'ט. ציוד טיפולי-שיקומי'!B12","v":"אלונקת רחצה"},{"$f":"'ט. ציוד טיפולי-שיקומי'!G12","v":0},{"$f":"'ט. ציוד טיפולי-שיקומי'!H12","v":0},null,{"$f":"'ט. ציוד טיפולי-שיקומי'!K12","v":0},{"$f":"'ט. ציוד טיפולי-שיקומי'!L12","v":0},{"$f":"IF(F174=0,\"\",'ט. ציוד טיפולי-שיקומי'!M12)","v":""},{"$f":"'ט. ציוד טיפולי-שיקומי'!N12","v":0}]
[{"$f":"'ט. ציוד טיפולי-שיקומי'!B13","v":"מיטת החתלה כולל מזרן"},{"$f":"'ט. ציוד טיפולי-שיקומי'!G13","v":0},{"$f":"'ט. ציוד טיפולי-שיקומי'!H13","v":0},null,{"$f":"'ט. ציוד טיפולי-שיקומי'!K13","v":0},{"$f":"'ט. ציוד טיפולי-שיקומי'!L13","v":0},{"$f":"IF(F175=0,\"\",'ט. ציוד טיפולי-שיקומי'!M13)","v":""},{"$f":"'ט. ציוד טיפולי-שיקומי'!N13","v":0}]
[{"$f":"'ט. ציוד טיפולי-שיקומי'!B14","v":"כיסאות שירותים נייח"},{"$f":"'ט. ציוד טיפולי-שיקומי'!G14","v":0},{"$f":"'ט. ציוד טיפולי-שיקומי'!H14","v":0},null,{"$f":"'ט. ציוד טיפולי-שיקומי'!K14","v":0},{"$f":"'ט. ציוד טיפולי-שיקומי'!L14","v":0},{"$f":"IF(F176=0,\"\",'ט. ציוד טיפולי-שיקומי'!M14)","v":""},{"$f":"'ט. ציוד טיפולי-שיקומי'!N14","v":0}]
[{"$f":"'ט. ציוד טיפולי-שיקומי'!B15","v":"מאחזי יד (סכום גלובלי)"},{"$f":"'ט. ציוד טיפולי-שיקומי'!G15","v":0},{"$f":"'ט. ציוד טיפולי-שיקומי'!H15","v":0},null,{"$f":"'ט. ציוד טיפולי-שיקומי'!K15","v":0},{"$f":"'ט. ציוד טיפולי-שיקומי'!L15","v":0},{"$f":"IF(F177=0,\"\",'ט. ציוד טיפולי-שיקומי'!M15)","v":""},{"$f":"'ט. ציוד טיפולי-שיקומי'!N15","v":0}]
[{"$f":"'ט. ציוד טיפולי-שיקומי'!B16","v":"הגבהות לאסלה עם ידיות"},{"$f":"'ט. ציוד טיפולי-שיקומי'!G16","v":0},{"$f":"'ט. ציוד טיפולי-שיקומי'!H16","v":0},null,{"$f":"'ט. ציוד טיפולי-שיקומי'!K16","v":0},{"$f":"'ט. ציוד טיפולי-שיקומי'!L16","v":0},{"$f":"IF(F178=0,\"\",'ט. ציוד טיפולי-שיקומי'!M16)","v":""},{"$f":"'ט. ציוד טיפולי-שיקומי'!N16","v":0}]
[{"$f":"'ט. ציוד טיפולי-שיקומי'!B17","v":"סה\"כ ציוד טיפולי שיקומי כולל מע\"מ"},null,{"$f":"SUM(C169:C178)","v":0},null,{"$f":"A179","v":"סה\"כ ציוד טיפולי שיקומי כולל מע\"מ"},null,null,{"$f":"SUM(H169:H178)","v":0}]
[{"$f":"'יג. סיכום'!B33","v":"ציוד מטבח מבשל"},null,null,null,"ציוד מטבח מבשל"]
[{"$f":"'י. מטבח מבשל'!B7","v":"מקרר ארון חד רוחבי"},{"$f":"'י. מטבח מבשל'!G7","v":0},{"$f":"'י. מטבח מבשל'!H7","v":0},null,{"$f":"'י. מטבח מבשל'!K7","v":0},{"$f":"'י. מטבח מבשל'!L7","v":0},{"$f":"IF(F181=0,\"\",'י. מטבח מבשל'!M7)","v":""},{"$f":"'י. מטבח מבשל'!N7","v":0}]
[{"$f":"'י. מטבח מבשל'!B8","v":"מקפיא ארון חד רוחבי"},{"$f":"'י. מטבח מבשל'!G8","v":0},{"$f":"'י. מטבח מבשל'!H8","v":0},null,{"$f":"'י. מטבח מבשל'!K8","v":0},{"$f":"'י. מטבח מבשל'!L8","v":0},{"$f":"IF(F182=0,\"\",'י. מטבח מבשל'!M8)","v":""},{"$f":"'י. מטבח מבשל'!N8","v":0}]
[{"$f":"'י. מטבח מבשל'!B9","v":"מקרר דלפק"},{"$f":"'י. מטבח מבשל'!G9","v":0},{"$f":"'י. מטבח מבשל'!H9","v":0},null,{"$f":"'י. מטבח מבשל'!K9","v":0},{"$f":"'י. מטבח מבשל'!L9","v":0},{"$f":"IF(F183=0,\"\",'י. מטבח מבשל'!M9)","v":""},{"$f":"'י. מטבח מבשל'!N9","v":0}]
[{"$f":"'י. מטבח מבשל'!B10","v":"שולחן כניסה ויציאה  למדיח כלים"},{"$f":"'י. מטבח מבשל'!G10","v":0},{"$f":"'י. מטבח מבשל'!H10","v":0},null,{"$f":"'י. מטבח מבשל'!K10","v":0},{"$f":"'י. מטבח מבשל'!L10","v":0},{"$f":"IF(F184=0,\"\",'י. מטבח מבשל'!M10)","v":""},{"$f":"'י. מטבח מבשל'!N10","v":0}]
[{"$f":"'י. מטבח מבשל'!B11","v":"מדיח כלים חצי תעשייתי / תעשייתי "},{"$f":"'י. מטבח מבשל'!G11","v":0},{"$f":"'י. מטבח מבשל'!H11","v":0},null,{"$f":"'י. מטבח מבשל'!K11","v":0},{"$f":"'י. מטבח מבשל'!L11","v":0},{"$f":"IF(F185=0,\"\",'י. מטבח מבשל'!M11)","v":""},{"$f":"'י. מטבח מבשל'!N11","v":0}]
[{"$f":"'י. מטבח מבשל'!B12","v":"מרכך מים 230 ליטר/שעה"},{"$f":"'י. מטבח מבשל'!G12","v":0},{"$f":"'י. מטבח מבשל'!H12","v":0},null,{"$f":"'י. מטבח מבשל'!K12","v":0},{"$f":"'י. מטבח מבשל'!L12","v":0},{"$f":"IF(F186=0,\"\",'י. מטבח מבשל'!M12)","v":""},{"$f":"'י. מטבח מבשל'!N12","v":0}]
[{"$f":"'י. מטבח מבשל'!B13","v":"כיריים חשמליות  / גז  6  להבות"},{"$f":"'י. מטבח מבשל'!G13","v":0},{"$f":"'י. מטבח מבשל'!H13","v":0},null,{"$f":"'י. מטבח מבשל'!K13","v":0},{"$f":"'י. מטבח מבשל'!L13","v":0},{"$f":"IF(F187=0,\"\",'י. מטבח מבשל'!M13)","v":""},{"$f":"'י. מטבח מבשל'!N13","v":0}]
[{"$f":"'י. מטבח מבשל'!B14","v":"תנור קומביסטימר"},{"$f":"'י. מטבח מבשל'!G14","v":0},{"$f":"'י. מטבח מבשל'!H14","v":0},null,{"$f":"'י. מטבח מבשל'!K14","v":0},{"$f":"'י. מטבח מבשל'!L14","v":0},{"$f":"IF(F188=0,\"\",'י. מטבח מבשל'!M14)","v":""},{"$f":"'י. מטבח מבשל'!N14","v":0}]
[{"$f":"'י. מטבח מבשל'!B15","v":"מקסר / בלנדר - בייתי / תעשייתי"},{"$f":"'י. מטבח מבשל'!G15","v":0},{"$f":"'י. מטבח מבשל'!H15","v":0},null,{"$f":"'י. מטבח מבשל'!K15","v":0},{"$f":"'י. מטבח מבשל'!L15","v":0},{"$f":"IF(F189=0,\"\",'י. מטבח מבשל'!M15)","v":""},{"$f":"'י. מטבח מבשל'!N15","v":0}]
[{"$f":"'י. מטבח מבשל'!B16","v":"קוצץ ירקות שולחני"},{"$f":"'י. מטבח מבשל'!G16","v":0},{"$f":"'י. מטבח מבשל'!H16","v":0},null,{"$f":"'י. מטבח מבשל'!K16","v":0},{"$f":"'י. מטבח מבשל'!L16","v":0},{"$f":"IF(F190=0,\"\",'י. מטבח מבשל'!M16)","v":""},{"$f":"'י. מטבח מבשל'!N16","v":0}]
[{"$f":"'י. מטבח מבשל'!B17","v":"מעבד מזון תעשייתי"},{"$f":"'י. מטבח מבשל'!G17","v":0},{"$f":"'י. מטבח מבשל'!H17","v":0},null,{"$f":"'י. מטבח מבשל'!K17","v":0},{"$f":"'י. מטבח מבשל'!L17","v":0},{"$f":"IF(F191=0,\"\",'י. מטבח מבשל'!M17)","v":""},{"$f":"'י. מטבח מבשל'!N17","v":0}]
[{"$f":"'י. מטבח מבשל'!B18","v":"משטחי עבודה"},{"$f":"'י. מטבח מבשל'!G18","v":0},{"$f":"'י. מטבח מבשל'!H18","v":0},null,{"$f":"'י. מטבח מבשל'!K18","v":0},{"$f":"'י. מטבח מבשל'!L18","v":0},{"$f":"IF(F192=0,\"\",'י. מטבח מבשל'!M18)","v":""},{"$f":"'י. מטבח מבשל'!N18","v":0}]
[{"$f":"'י. מטבח מבשל'!B19","v":"שולחן כיור"},{"$f":"'י. מטבח מבשל'!G19","v":0},{"$f":"'י. מטבח מבשל'!H19","v":0},null,{"$f":"'י. מטבח מבשל'!K19","v":0},{"$f":"'י. מטבח מבשל'!L19","v":0},{"$f":"IF(F193=0,\"\",'י. מטבח מבשל'!M19)","v":""},{"$f":"'י. מטבח מבשל'!N19","v":0}]
[{"$f":"'י. מטבח מבשל'!B20","v":"מיקרוגל לעומס בינוני"},{"$f":"'י. מטבח מבשל'!G20","v":0},{"$f":"'י. מטבח מבשל'!H20","v":0},null,{"$f":"'י. מטבח מבשל'!K20","v":0},{"$f":"'י. מטבח מבשל'!L20","v":0},{"$f":"IF(F194=0,\"\",'י. מטבח מבשל'!M20)","v":""},{"$f":"'י. מטבח מבשל'!N20","v":0}]
[{"$f":"'י. מטבח מבשל'!B21","v":"מחבת מתהפך 50 ליטר"},{"$f":"'י. מטבח מבשל'!G21","v":0},{"$f":"'י. מטבח מבשל'!H21","v":0},null,{"$f":"'י. מטבח מבשל'!K21","v":0},{"$f":"'י. מטבח מבשל'!L21","v":0},{"$f":"IF(F195=0,\"\",'י. מטבח מבשל'!M21)","v":""},{"$f":"'י. מטבח מבשל'!N21","v":0}]
[{"$f":"'י. מטבח מבשל'!B22","v":"ארון חימום תחתון/ מעמד לתנור"},{"$f":"'י. מטבח מבשל'!G22","v":0},{"$f":"'י. מטבח מבשל'!H22","v":0},null,{"$f":"'י. מטבח מבשל'!K22","v":0},{"$f":"'י. מטבח מבשל'!L22","v":0},{"$f":"IF(F196=0,\"\",'י. מטבח מבשל'!M22)","v":""},{"$f":"'י. מטבח מבשל'!N22","v":0}]
[{"$f":"'י. מטבח מבשל'!B23","v":"סוללה עם מתז עליון על שולחן"},{"$f":"'י. מטבח מבשל'!G23","v":0},{"$f":"'י. מטבח מבשל'!H23","v":0},null,{"$f":"'י. מטבח מבשל'!K23","v":0},{"$f":"'י. מטבח מבשל'!L23","v":0},{"$f":"IF(F197=0,\"\",'י. מטבח מבשל'!M23)","v":""},{"$f":"'י. מטבח מבשל'!N23","v":0}]
[{"$f":"'י. מטבח מבשל'!B24","v":"ברז שולחני עם פיה מסתובבת לכיור עבודה"},{"$f":"'י. מטבח מבשל'!G24","v":0},{"$f":"'י. מטבח מבשל'!H24","v":0},null,{"$f":"'י. מטבח מבשל'!K24","v":0},{"$f":"'י. מטבח מבשל'!L24","v":0},{"$f":"IF(F198=0,\"\",'י. מטבח מבשל'!M24)","v":""},{"$f":"'י. מטבח מבשל'!N24","v":0}]
[{"$f":"'י. מטבח מבשל'!B25","v":"מדף עליון כפול"},{"$f":"'י. מטבח מבשל'!G25","v":0},{"$f":"'י. מטבח מבשל'!H25","v":0},null,{"$f":"'י. מטבח מבשל'!K25","v":0},{"$f":"'י. מטבח מבשל'!L25","v":0},{"$f":"IF(F199=0,\"\",'י. מטבח מבשל'!M25)","v":""},{"$f":"'י. מטבח מבשל'!N25","v":0}]
[{"$f":"'י. מטבח מבשל'!B26","v":"מתלה ייבוש לצלחות עם מדף לספלים"},{"$f":"'י. מטבח מבשל'!G26","v":0},{"$f":"'י. מטבח מבשל'!H26","v":0},null,{"$f":"'י. מטבח מבשל'!K26","v":0},{"$f":"'י. מטבח מבשל'!L26","v":0},{"$f":"IF(F200=0,\"\",'י. מטבח מבשל'!M26)","v":""},{"$f":"'י. מטבח מבשל'!N26","v":0}]
[{"$f":"'י. מטבח מבשל'!B27","v":"עגלת עבודה"},{"$f":"'י. מטבח מבשל'!G27","v":0},{"$f":"'י. מטבח מבשל'!H27","v":0},null,{"$f":"'י. מטבח מבשל'!K27","v":0},{"$f":"'י. מטבח מבשל'!L27","v":0},{"$f":"IF(F201=0,\"\",'י. מטבח מבשל'!M27)","v":""},{"$f":"'י. מטבח מבשל'!N27","v":0}]
[{"$f":"'י. מטבח מבשל'!B28","v":"עגלה עם מיכל אשפה  80 ליטר"},{"$f":"'י. מטבח מבשל'!G28","v":0},{"$f":"'י. מטבח מבשל'!H28","v":0},null,{"$f":"'י. מטבח מבשל'!K28","v":0},{"$f":"'י. מטבח מבשל'!L28","v":0},{"$f":"IF(F202=0,\"\",'י. מטבח מבשל'!M28)","v":""},{"$f":"'י. מטבח מבשל'!N28","v":0}]
[{"$f":"'י. מטבח מבשל'!B29","v":"עגלת חימום / קרור"},{"$f":"'י. מטבח מבשל'!G29","v":0},{"$f":"'י. מטבח מבשל'!H29","v":0},null,{"$f":"'י. מטבח מבשל'!K29","v":0},{"$f":"'י. מטבח מבשל'!L29","v":0},{"$f":"IF(F203=0,\"\",'י. מטבח מבשל'!M29)","v":""},{"$f":"'י. מטבח מבשל'!N29","v":0}]
[{"$f":"'י. מטבח מבשל'!B30","v":"מיחם אוטומטי  25 ליטר"},{"$f":"'י. מטבח מבשל'!G30","v":0},{"$f":"'י. מטבח מבשל'!H30","v":0},null,{"$f":"'י. מטבח מבשל'!K30","v":0},{"$f":"'י. מטבח מבשל'!L30","v":0},{"$f":"IF(F204=0,\"\",'י. מטבח מבשל'!M30)","v":""},{"$f":"'י. מטבח מבשל'!N30","v":0}]
[{"$f":"'י. מטבח מבשל'!B31","v":"כלי מטבח"},{"$f":"'י. מטבח מבשל'!G31","v":0},{"$f":"'י. מטבח מבשל'!H31","v":0},null,{"$f":"'י. מטבח מבשל'!K31","v":0},{"$f":"'י. מטבח מבשל'!L31","v":0},{"$f":"IF(F205=0,\"\",'י. מטבח מבשל'!M31)","v":""},{"$f":"'י. מטבח מבשל'!N31","v":0}]
[{"$f":"'י. מטבח מבשל'!B32","v":"ארון אחסון יבש "},{"$f":"'י. מטבח מבשל'!G32","v":0},{"$f":"'י. מטבח מבשל'!H32","v":0},null,{"$f":"'י. מטבח מבשל'!K32","v":0},{"$f":"'י. מטבח מבשל'!L32","v":0},{"$f":"IF(F206=0,\"\",'י. מטבח מבשל'!M32)","v":""},{"$f":"'י. מטבח מבשל'!N32","v":0}]
[{"$f":"'י. מטבח מבשל'!B33","v":"סה\"כ ציוד מטבח מבשל - כולל מע\"מ"},null,{"$f":"SUM(C181:C206)","v":0},null,{"$f":"A207","v":"סה\"כ ציוד מטבח מבשל - כולל מע\"מ"},null,null,{"$f":"SUM(H181:H206)","v":0}]
[{"$f":"'יג. סיכום'!B34","v":"ציוד לצוות"},null,null,null,{"$f":"A208","v":"ציוד לצוות"}]
[{"$f":"'יא. ציוד צוות'!B7","v":"כיסא אישי"},{"$f":"'יא. ציוד צוות'!G7","v":0},{"$f":"'יא. ציוד צוות'!H7","v":0},null,{"$f":"'יא. ציוד צוות'!K7","v":0},{"$f":"'יא. ציוד צוות'!L7","v":0},{"$f":"IF(F209=0,\"\",'יא. ציוד צוות'!M7)","v":""},{"$f":"'יא. ציוד צוות'!N7","v":0}]
[{"$f":"'יא. ציוד צוות'!B8","v":"שולחן מגירה"},{"$f":"'יא. ציוד צוות'!G8","v":0},{"$f":"'יא. ציוד צוות'!H8","v":0},null,{"$f":"'יא. ציוד צוות'!K8","v":0},{"$f":"'יא. ציוד צוות'!L8","v":0},{"$f":"IF(F210=0,\"\",'יא. ציוד צוות'!M8)","v":""},{"$f":"'יא. ציוד צוות'!N8","v":0}]
[{"$f":"'יא. ציוד צוות'!B9","v":"עמדת מחשב "},{"$f":"'יא. ציוד צוות'!G9","v":0},{"$f":"'יא. ציוד צוות'!H9","v":0},null,{"$f":"'יא. ציוד צוות'!K9","v":0},{"$f":"'יא. ציוד צוות'!L9","v":0},{"$f":"IF(F211=0,\"\",'יא. ציוד צוות'!M9)","v":""},{"$f":"'יא. ציוד צוות'!N9","v":0}]
[{"$f":"'יא. ציוד צוות'!B10","v":"מחשב+תוכנות"},{"$f":"'יא. ציוד צוות'!G10","v":0},{"$f":"'יא. ציוד צוות'!H10","v":0},null,{"$f":"'יא. ציוד צוות'!K10","v":0},{"$f":"'יא. ציוד צוות'!L10","v":0},{"$f":"IF(F212=0,\"\",'יא. ציוד צוות'!M10)","v":""},{"$f":"'יא. ציוד צוות'!N10","v":0}]
[{"$f":"'יא. ציוד צוות'!B11","v":"כיסא אורחים"},{"$f":"'יא. ציוד צוות'!G11","v":0},{"$f":"'יא. ציוד צוות'!H11","v":0},null,{"$f":"'יא. ציוד צוות'!K11","v":0},{"$f":"'יא. ציוד צוות'!L11","v":0},{"$f":"IF(F213=0,\"\",'יא. ציוד צוות'!M11)","v":""},{"$f":"'יא. ציוד צוות'!N11","v":0}]
[{"$f":"'יא. ציוד צוות'!B12","v":"ארון"},{"$f":"'יא. ציוד צוות'!G12","v":0},{"$f":"'יא. ציוד צוות'!H12","v":0},null,{"$f":"'יא. ציוד צוות'!K12","v":0},{"$f":"'יא. ציוד צוות'!L12","v":0},{"$f":"IF(F214=0,\"\",'יא. ציוד צוות'!M12)","v":""},{"$f":"'יא. ציוד צוות'!N12","v":0}]
[{"$f":"'יא. ציוד צוות'!B13","v":"ציוד תקשורת ומולטימדיה"},{"$f":"'יא. ציוד צוות'!G13","v":0},{"$f":"'יא. ציוד צוות'!H13","v":0},null,{"$f":"'יא. ציוד צוות'!K13","v":0},{"$f":"'יא. ציוד צוות'!L13","v":0},{"$f":"IF(F215=0,\"\",'יא. ציוד צוות'!M13)","v":""},{"$f":"'יא. ציוד צוות'!N13","v":0}]
[{"$f":"'יא. ציוד צוות'!B14","v":"אביזרי עיצוב "},{"$f":"'יא. ציוד צוות'!G14","v":0},{"$f":"'יא. ציוד צוות'!H14","v":0},null,{"$f":"'יא. ציוד צוות'!K14","v":0},{"$f":"'יא. ציוד צוות'!L14","v":0},{"$f":"IF(F216=0,\"\",'יא. ציוד צוות'!M14)","v":""},{"$f":"'יא. ציוד צוות'!N14","v":0}]
[{"$f":"'יא. ציוד צוות'!B15","v":"סה\"כ ציוד צוות כולל מע\"מ"},null,{"$f":"SUM(C209:C216)","v":0},null,{"$f":"A217","v":"סה\"כ ציוד צוות כולל מע\"מ"},null,null,{"$f":"SUM(H209:H216)","v":0}]
[{"$f":"'יב. ציוד נוסף'!B1","v":"ציוד נוסף"},null,null,null,{"$f":"A218","v":"ציוד נוסף"}]
[{"$f":"'יב. ציוד נוסף'!B8","v":0},{"$f":"'יב. ציוד נוסף'!D8","v":0},{"$f":"'יב. ציוד נוסף'!M8","v":0},null,{"$f":"'יב. ציוד נוסף'!O8","v":0},{"$f":"'יב. ציוד נוסף'!P8","v":0},{"$f":"IF(F219=0,\"\",'יב. ציוד נוסף'!Q8)","v":""},{"$f":"'יב. ציוד נוסף'!R8","v":0}]
[{"$f":"'יב. ציוד נוסף'!B9","v":0},{"$f":"'יב. ציוד נוסף'!D9","v":0},{"$f":"'יב. ציוד נוסף'!M9","v":0},null,{"$f":"'יב. ציוד נוסף'!O9","v":0},{"$f":"'יב. ציוד נוסף'!P9","v":0},{"$f":"IF(F220=0,\"\",'יב. ציוד נוסף'!Q9)","v":""},{"$f":"'יב. ציוד נוסף'!R9","v":0}]
[{"$f":"'יב. ציוד נוסף'!B10","v":0},{"$f":"'יב. ציוד נוסף'!D10","v":0},{"$f":"'יב. ציוד נוסף'!M10","v":0},null,{"$f":"'יב. ציוד נוסף'!O10","v":0},{"$f":"'יב. ציוד נוסף'!P10","v":0},{"$f":"IF(F221=0,\"\",'יב. ציוד נוסף'!Q10)","v":""},{"$f":"'יב. ציוד נוסף'!R10","v":0}]
[{"$f":"'יב. ציוד נוסף'!B11","v":0},{"$f":"'יב. ציוד נוסף'!D11","v":0},{"$f":"'יב. ציוד נוסף'!M11","v":0},null,{"$f":"'יב. ציוד נוסף'!O11","v":0},{"$f":"'יב. ציוד נוסף'!P11","v":0},{"$f":"IF(F222=0,\"\",'יב. ציוד נוסף'!Q11)","v":""},{"$f":"'יב. ציוד נוסף'!R11","v":0}]
[{"$f":"'יב. ציוד נוסף'!B12","v":0},{"$f":"'יב. ציוד נוסף'!D12","v":0},{"$f":"'יב. ציוד נוסף'!M12","v":0},null,{"$f":"'יב. ציוד נוסף'!O12","v":0},{"$f":"'יב. ציוד נוסף'!P12","v":0},{"$f":"IF(F223=0,\"\",'יב. ציוד נוסף'!Q12)","v":""},{"$f":"'יב. ציוד נוסף'!R12","v":0}]
[{"$f":"'יב. ציוד נוסף'!B13","v":0},{"$f":"'יב. ציוד נוסף'!D13","v":0},{"$f":"'יב. ציוד נוסף'!M13","v":0},null,{"$f":"'יב. ציוד נוסף'!O13","v":0},{"$f":"'יב. ציוד נוסף'!P13","v":0},{"$f":"IF(F224=0,\"\",'יב. ציוד נוסף'!Q13)","v":""},{"$f":"'יב. ציוד נוסף'!R13","v":0}]
[{"$f":"'יב. ציוד נוסף'!B14","v":0},{"$f":"'יב. ציוד נוסף'!D14","v":0},{"$f":"'יב. ציוד נוסף'!M14","v":0},null,{"$f":"'יב. ציוד נוסף'!O14","v":0},{"$f":"'יב. ציוד נוסף'!P14","v":0},{"$f":"IF(F225=0,\"\",'יב. ציוד נוסף'!Q14)","v":""},{"$f":"'יב. ציוד נוסף'!R14","v":0}]
[{"$f":"'יב. ציוד נוסף'!B15","v":0},{"$f":"'יב. ציוד נוסף'!D15","v":0},{"$f":"'יב. ציוד נוסף'!M15","v":0},null,{"$f":"'יב. ציוד נוסף'!O15","v":0},{"$f":"'יב. ציוד נוסף'!P15","v":0},{"$f":"IF(F226=0,\"\",'יב. ציוד נוסף'!Q15)","v":""},{"$f":"'יב. ציוד נוסף'!R15","v":0}]
[{"$f":"'יב. ציוד נוסף'!B16","v":0},{"$f":"'יב. ציוד נוסף'!D16","v":0},{"$f":"'יב. ציוד נוסף'!M16","v":0},null,{"$f":"'יב. ציוד נוסף'!O16","v":0},{"$f":"'יב. ציוד נוסף'!P16","v":0},{"$f":"IF(F227=0,\"\",'יב. ציוד נוסף'!Q16)","v":""},{"$f":"'יב. ציוד נוסף'!R16","v":0}]
[{"$f":"'יב. ציוד נוסף'!B17","v":0},{"$f":"'יב. ציוד נוסף'!D17","v":0},{"$f":"'יב. ציוד נוסף'!M17","v":0},null,{"$f":"'יב. ציוד נוסף'!O17","v":0},{"$f":"'יב. ציוד נוסף'!P17","v":0},{"$f":"IF(F228=0,\"\",'יב. ציוד נוסף'!Q17)","v":""},{"$f":"'יב. ציוד נוסף'!R17","v":0}]
[{"$f":"'יב. ציוד נוסף'!B18","v":0},{"$f":"'יב. ציוד נוסף'!D18","v":0},{"$f":"'יב. ציוד נוסף'!M18","v":0},null,{"$f":"'יב. ציוד נוסף'!O18","v":0},{"$f":"'יב. ציוד נוסף'!P18","v":0},{"$f":"IF(F229=0,\"\",'יב. ציוד נוסף'!Q18)","v":""},{"$f":"'יב. ציוד נוסף'!R18","v":0}]
[{"$f":"'יב. ציוד נוסף'!B19","v":0},{"$f":"'יב. ציוד נוסף'!D19","v":0},{"$f":"'יב. ציוד נוסף'!M19","v":0},null,{"$f":"'יב. ציוד נוסף'!O19","v":0},{"$f":"'יב. ציוד נוסף'!P19","v":0},{"$f":"IF(F230=0,\"\",'יב. ציוד נוסף'!Q19)","v":""},{"$f":"'יב. ציוד נוסף'!R19","v":0}]
[{"$f":"'יב. ציוד נוסף'!B20","v":0},{"$f":"'יב. ציוד נוסף'!D20","v":0},{"$f":"'יב. ציוד נוסף'!M20","v":0},null,{"$f":"'יב. ציוד נוסף'!O20","v":0},{"$f":"'יב. ציוד נוסף'!P20","v":0},{"$f":"IF(F231=0,\"\",'יב. ציוד נוסף'!Q20)","v":""},{"$f":"'יב. ציוד נוסף'!R20","v":0}]
[{"$f":"'יב. ציוד נוסף'!B21","v":0},{"$f":"'יב. ציוד נוסף'!D21","v":0},{"$f":"'יב. ציוד נוסף'!M21","v":0},null,{"$f":"'יב. ציוד נוסף'!O21","v":0},{"$f":"'יב. ציוד נוסף'!P21","v":0},{"$f":"IF(F232=0,\"\",'יב. ציוד נוסף'!Q21)","v":""},{"$f":"'יב. ציוד נוסף'!R21","v":0}]
[{"$f":"'יב. ציוד נוסף'!B22","v":0},{"$f":"'יב. ציוד נוסף'!D22","v":0},{"$f":"'יב. ציוד נוסף'!M22","v":0},null,{"$f":"'יב. ציוד נוסף'!O22","v":0},{"$f":"'יב. ציוד נוסף'!P22","v":0},{"$f":"IF(F233=0,\"\",'יב. ציוד נוסף'!Q22)","v":""},{"$f":"'יב. ציוד נוסף'!R22","v":0}]
[{"$f":"'יב. ציוד נוסף'!B23","v":0},{"$f":"'יב. ציוד נוסף'!D23","v":0},{"$f":"'יב. ציוד נוסף'!M23","v":0},null,{"$f":"'יב. ציוד נוסף'!O23","v":0},{"$f":"'יב. ציוד נוסף'!P23","v":0},{"$f":"IF(F234=0,\"\",'יב. ציוד נוסף'!Q23)","v":""},{"$f":"'יב. ציוד נוסף'!R23","v":0}]
[{"$f":"'יב. ציוד נוסף'!B24","v":0},{"$f":"'יב. ציוד נוסף'!D24","v":0},{"$f":"'יב. ציוד נוסף'!M24","v":0},null,{"$f":"'יב. ציוד נוסף'!O24","v":0},{"$f":"'יב. ציוד נוסף'!P24","v":0},{"$f":"IF(F235=0,\"\",'יב. ציוד נוסף'!Q24)","v":""},{"$f":"'יב. ציוד נוסף'!R24","v":0}]
[{"$f":"'יב. ציוד נוסף'!B25","v":0},{"$f":"'יב. ציוד נוסף'!D25","v":0},{"$f":"'יב. ציוד נוסף'!M25","v":0},null,{"$f":"'יב. ציוד נוסף'!O25","v":0},{"$f":"'יב. ציוד נוסף'!P25","v":0},{"$f":"IF(F236=0,\"\",'יב. ציוד נוסף'!Q25)","v":""},{"$f":"'יב. ציוד נוסף'!R25","v":0}]
[{"$f":"'יב. ציוד נוסף'!B26","v":0},{"$f":"'יב. ציוד נוסף'!D26","v":0},{"$f":"'יב. ציוד נוסף'!M26","v":0},null,{"$f":"'יב. ציוד נוסף'!O26","v":0},{"$f":"'יב. ציוד נוסף'!P26","v":0},{"$f":"IF(F237=0,\"\",'יב. ציוד נוסף'!Q26)","v":""},{"$f":"'יב. ציוד נוסף'!R26","v":0}]
[{"$f":"'יב. ציוד נוסף'!B27","v":0},{"$f":"'יב. ציוד נוסף'!D27","v":0},{"$f":"'יב. ציוד נוסף'!M27","v":0},null,{"$f":"'יב. ציוד נוסף'!O27","v":0},{"$f":"'יב. ציוד נוסף'!P27","v":0},{"$f":"IF(F238=0,\"\",'יב. ציוד נוסף'!Q27)","v":""},{"$f":"'יב. ציוד נוסף'!R27","v":0}]
[{"$f":"'יב. ציוד נוסף'!B28","v":0},{"$f":"'יב. ציוד נוסף'!D28","v":0},{"$f":"'יב. ציוד נוסף'!M28","v":0},null,{"$f":"'יב. ציוד נוסף'!O28","v":0},{"$f":"'יב. ציוד נוסף'!P28","v":0},{"$f":"IF(F239=0,\"\",'יב. ציוד נוסף'!Q28)","v":""},{"$f":"'יב. ציוד נוסף'!R28","v":0}]
[{"$f":"'יב. ציוד נוסף'!B29","v":"סה\"כ  ציוד נוסף כולל מע\"מ"},null,{"$f":"SUM(C219:C239)","v":0},null,{"$f":"A240","v":"סה\"כ  ציוד נוסף כולל מע\"מ"},null,null,{"$f":"SUM(H219:H239)","v":0}]
["סה\"כ פרויקט כולל מע\"מ",null,{"$f":"C46+C66+C84+C106+C167+C179+C207+C217+C240","v":0},null,null,null,null,{"$f":"H46+H66+H84+H106+H167+H179+H207+H217+H240","v":0}]